{"text_format":"1","workbook":"xlsx","n_sheets":13,"sheets":["evalerg","ESQUEMA CONCEPTUAL","EF.REF.,RELEV.Y EF.ADIM.","COSTOS","ALT.1","ALT.2","ALT.3","ALT.4","ALT.5","ALT.6","RESULTADOS","RANKING","IMPRIMIR"],"not_rendered":{"charts":0,"images":0,"macros":1,"external_links":0,"defined_names":12,"comments":12,"pivot_tables":0},"unopened":[],"bounds":{"document_bytes":16777216,"sheet_cells":100000,"rows_first":2000,"rows_last":500,"rows_between":2000,"halvings":0,"cell_chars":16384,"cell_head_chars":4096},"cells_cut":0,"cells_raw":0,"read":"whole","date_system":"1900"}

{"sheet":"evalerg","index":0,"n_rows":29,"n_cols":12,"rows_kept":29,"cut":false,"hidden":false,"merged":[[7,4,8,6],[20,1,22,9],[24,0,24,4],[9,1,19,9],[28,0,29,10],[25,2,25,4],[25,6,25,9],[26,6,26,9],[26,1,26,4]]}
[]
[]
[]
[]
[]
[]
[]
[null,null,null,null,"VERSIÓN b"]
[]
[null,"Este es un programa diseñado para la evaluación multidimensional y sistémico-jerárquica de hasta seis alternativas ergonómicas, considerando a tres factores y a siete subfactores de decisión de segundo nivel y a diecinueve subfactores de tercer nivel, con sinergia parcial y predeterminada, dimensionado para un período de evaluación de hasta cinco años, según el esquema conceptual de las variables intervinientes que se muestra en la hoja siguiente. El programa evalerg se basa en la metodología de evaluación multidimensional esbozada en el artículo al cual se adjunta. Antes de ser utilizado se recomienda copiarlo tantas veces como se requiera y conservar este archivo como programa madre. Las instrucciones para operar este programa se encuentran detalladas en dicho artículo. También aparecen guías de uso como comentarios en las hojas del programa, las que se leen colocando el puntero sobre los signos de información i correspondientes. Cuando está vacío de datos como se lo entrega aparecerá en muchas celdas la indicación de división por cero; una vez completados los datos el cálculo se normaliza. El programa funciona en Excel 2010, posteriores y compatibles."]
[]
[]
[]
[]
[]
[]
[]
[]
[]
[]
[null,"Este programa ha sido cedido por el autor a la Asociación de Ergonomía Argentina (AdEA) que lo entrega gratuitamente y en versión b con el único fin didáctico de permitir prácticas simuladas a los lectores del artículo y por ello no se asume ninguna responsabilidad por las consecuencias de su utilización en casos reales de decisión."]
[]
[]
[]
["CELDAS  COLOR  VERDE",null,null,null,null,null,"PARA  INTRODUCIR  DATOS"]
[null,null,"CELDAS COLOR AMARILLO",null,null,null,"CON DATOS ELABORADOS"]
[null,"CELDAS  COLOR  ROJO",null,null,null,null,"ANULADAS  PARA  EL  CÁLCULO",null,null,null,null,3]
[]
["ã ING. OSVALDO CÉSAR BELLETTINI - HECHO EL DEPÓSITO QUE INDICAN LAS LEYES 11.723 Y 23.412"]

{"sheet":"ESQUEMA CONCEPTUAL","index":1,"n_rows":23,"n_cols":6,"rows_kept":23,"cut":false,"hidden":false,"merged":[[20,3,21,3],[21,1,22,1],[0,1,0,5],[4,3,4,4],[4,2,5,2],[1,2,1,5],[9,1,10,1],[9,2,10,2],[9,3,10,3]]}
[null,"programa evalerg AdEA"]
[null,"i","ESQUEMA CONCEPTUAL GENERAL"]
[null,"FACTORES","i EVALUACIÓN","SUBFACTORES","SUBFACTORES","ESCALAS DE MEDICIÓN"]
[null,"EN NIVEL -1","DE RELEVANCIAS","EN NIVEL -2","EN NIVEL -3","DE LOS EFECTOS"]
[null,"i",null,"OCUPACION (SF A.1)",null,"Nº de SSH por cada SHM"]
[null,"i",null,null,"CREATIVA","escala cualicuantitativa"]
[null,"PARTICIPACION","ER F A","PARTICIPACION","ECONOMICA","(um/año)promedio"]
[null,"(F A)",3,"PROMEDIO","PSICOSOCIAL","escala cualicuantitativa"]
[null,null,null,"(SF A.2)","DECISIONAL","escala cualicuantitativa"]
[null,"i","ER SF B.1","i EFICACIA","CAPACIDAD UNITARIA DE PRODUCC.","up/año"]
[null,null,null,null,"CALIDAD","escala cualicuantitativa"]
[null,null,4,"(SF B.1)","FIABILIDAD OPERATIVA","1 - tasa de fallas"]
[null,"PRODUCCION","ER SF B.2","i  SUSTENTABILIDAD","ELASTICIDAD CUANTITATIVA","escala cualicuantitativa"]
[null,"( F B)",4,"(SF B.2)","ADAPTABILIDAD CUALITATIVA","escala cualicuantitativa"]
[null,null,"ER SF B.3","i  EFICIENCIA","COSTO POR INVERS. UNITARIO","um/up"]
[null,null,4,"      i      (SF B.3)","COSTO OPERATIVO UNITARIO","um/up"]
[null,"i",null,null,"SSH","escala cualicuantitativa"]
[null,"i","ER SF C.1","RIESGO","SSM","escala cualicuantitativa"]
[null,null,4,"(SF C.1)","SSGTR","escala cualicuantitativa"]
[null,"PROTECCION",null,null,"ENTORNO DEL SHM","escala cualicuantitativa"]
[null,"( F C )",null,"INCONFORT","SSH","escala cualicuantitativa"]
[null,null,"ER SF C.2",null,"SSGTR","escala cualicuantitativa"]
[null,null,4,"(SF C.2)","ENTORNO DEL SHM","escala cualicuantitativa"]

{"sheet":"EF.REF.,RELEV.Y EF.ADIM.","index":2,"n_rows":29,"n_cols":21,"rows_kept":29,"cut":false,"hidden":false,"merged":[[1,0,2,3],[1,4,2,15],[0,0,0,20],[3,18,7,20],[1,19,2,20],[1,16,2,18],[4,12,4,15],[5,11,5,12],[5,13,5,14],[5,15,5,16],[3,3,3,16],[15,0,16,2],[4,7,4,10],[4,4,7,4],[8,0,12,2],[5,5,7,5],[5,6,7,6],[4,5,4,6],[4,0,7,3],[13,0,14,2],[6,9,6,10],[8,5,8,6],[6,7,6,8],[5,9,5,10],[5,7,5,8],[16,18,17,18],[16,19,17,19],[16,20,17,20],[6,11,6,12],[6,13,6,14],[6,15,6,16],[8,18,9,18],[8,19,9,19],[8,20,9,20],[4,17,7,17],[28,5,28,6],[27,5,27,6],[27,13,27,14],[28,15,28,16],[28,13,28,14],[28,11,28,12],[27,7,27,8],[28,7,28,8],[28,9,28,10],[27,9,27,10],[27,15,27,16],[27,11,27,12],[17,0,19,2],[20,0,23,2],[24,0,26,2],[27,0,27,4],[28,0,28,4]]}
["      programa evalerg AdEA"]
["DENOMINACIÓN DE LA EVALUACION: ",null,null,null,null,null,null,null,null,null,null,null,null,null,null,null,"FECHA DE REFERENCIA"]
[]
["i","i","i"," EFECTOS DE REFERENCIA, EVALUACIONES DE RELEVANCIA Y GRADOS DE IMPORTANCIA ",null,null,null,null,null,null,null,null,null,null,null,null,null,"i","EFECTOS DE REFERENCIA                     EN EL AÑO 1 PARA EL                                      SUBFACTOR EFICIENCIA "]
["FACTORES Y SUBFACTORES",null,null,null,"ESCALAS DE MEDICION DE EFECTOS","GRAD. IMPORT.",null,"NUMERO DE AÑOS (hasta 5)",null,null,null,1,"NUMERO DE ALTERNATIVAS (hasta 6)",null,null,null,1,"EFECTOS ADIMEN-                      SIONANTES"]
[null,null,null,null,null,"ABSOL.","RELAT.","AÑO",null,"AÑO",null,"AÑO",null,"AÑO",null,"AÑO"]
[null,null,null,null,null,null,null,1,null,2,null,3,null,4,null,5]
[null,null,null,null,null,null,null,"EFECT. REF.","RELEVANC.","EFECT. REF.","RELEVANC.","EFECT. REF.","RELEVANC.","EFECT. REF.","RELEVANC.","EFECT. REF.","RELEVANC."]
["PARTICIPACION               (F A)",null,null,"OCUPACION","nro. de SSH por SHM","*****",null,null,null,null,null,null,null,null,null,null,null,{"$f":"+(IF($H$7>$L$5,0,$H9)+IF($J$7>$L$5,0,$J9)+IF($L$7>$L$5,0,$L9)+IF($N$7>$L$5,0,$N9)+IF($P$7>$L$5,0,$P9))/$L$5","v":0},"ALTER-          NATIVA","CIU DEL AÑO 1","COU DEL AÑO 1"]
[null,null,null,"PARTICIPACION CREATIVA","escala cualicuantitativa",null,{"$f":"+F10*4/SUM($F$10:$F$13)","v":{"$error":"#DIV/0!"}},null,{"$f":"+(I$9)/(ABS(I$9)+ABS(I$14)+ABS(I$16)+ABS(I$18)+ABS(I$21)+ABS(I$25))","v":{"$error":"#DIV/0!"}},null,{"$f":"+(K$9)/(ABS(K$9)+ABS(K$14)+ABS(K$16)+ABS(K$18)+ABS(K$21)+ABS(K$25))","v":{"$error":"#DIV/0!"}},null,{"$f":"+(M$9)/(ABS(M$9)+ABS(M$14)+ABS(M$16)+ABS(M$18)+ABS(M$21)+ABS(M$25))","v":{"$error":"#DIV/0!"}},null,{"$f":"+(O$9)/(ABS(O$9)+ABS(O$14)+ABS(O$16)+ABS(O$18)+ABS(O$21)+ABS(O$25))","v":{"$error":"#DIV/0!"}},null,{"$f":"+(Q$9)/(ABS(Q$9)+ABS(Q$14)+ABS(Q$16)+ABS(Q$18)+ABS(Q$21)+ABS(Q$25))","v":{"$error":"#DIV/0!"}},{"$f":"+(IF($H$7>$L$5,0,$H10)+IF($J$7>$L$5,0,$J10)+IF($L$7>$L$5,0,$L10)+IF($N$7>$L$5,0,$N10)+IF($P$7>$L$5,0,$P10))/$L$5","v":0}]
[null,null,null,"PARTICIPACION ECONOMICA","escala de (um / año)",null,{"$f":"+F11*4/SUM($F$10:$F$13)","v":{"$error":"#DIV/0!"}},null,"*****",null,"*****",null,"*****",null,"*****",null,"*****",0,1,{"$f":"+ABS(ALT.1!D$18)*IF($S11<=$Q$5,1,0)","v":{"$error":"#DIV/0!"}},{"$f":"+ABS(ALT.1!D$19)*IF(S11<=$Q$5,1,0)","v":{"$error":"#DIV/0!"}}]
[null,null,null,"PARTICIPACION PSICOSOCIAL","escala cualicuantitativa",null,{"$f":"+F12*4/SUM($F$10:$F$13)","v":{"$error":"#DIV/0!"}},null,"*****",null,"*****",null,"*****",null,"*****",null,"*****",0,2,{"$f":"+ABS(ALT.2!D$18)*IF($S12<=$Q$5,1,0)","v":{"$error":"#DIV/0!"}},{"$f":"+ABS(ALT.2!D$19)*IF(S12<=$Q$5,1,0)","v":{"$error":"#DIV/0!"}}]
[null,null,null,"PARTICIPACION DECISIONAL","escala cualicuantitativa",null,{"$f":"+F13*4/SUM($F$10:$F$13)","v":{"$error":"#DIV/0!"}},null,"*****",null,"*****",null,"*****",null,"*****",null,"*****",0,3,{"$f":"+ABS(ALT.3!D$18)*IF($S13<=$Q$5,1,0)","v":{"$error":"#DIV/0!"}},{"$f":"+ABS(ALT.3!D$19)*IF(S13<=$Q$5,1,0)","v":{"$error":"#DIV/0!"}}]
["EFICACIA                               (SF B.1)",null,null,"CALIDAD","escala cualicuantitativa",null,{"$f":"+F14*2/SUM($F$14:$F$15)","v":{"$error":"#DIV/0!"}},null,null,null,null,null,null,null,null,null,null,0,4,{"$f":"+ABS(ALT.4!D$18)*IF($S14<=$Q$5,1,0)","v":{"$error":"#DIV/0!"}},{"$f":"+ABS(ALT.4!D$19)*IF(S14<=$Q$5,1,0)","v":{"$error":"#DIV/0!"}}]
[null,null,null,"FIABILIDAD OPERATIVA","1 - tasa de fallas",null,{"$f":"+F15*2/SUM($F$14:$F$15)","v":{"$error":"#DIV/0!"}},null,{"$f":"+(I$14)/(ABS(I$9)+ABS(I$14)+ABS(I$16)+ABS(I$18)+ABS(I$21)+ABS(I$25))","v":{"$error":"#DIV/0!"}},null,{"$f":"+(K$14)/(ABS(K$9)+ABS(K$14)+ABS(K$16)+ABS(K$18)+ABS(K$21)+ABS(K$25))","v":{"$error":"#DIV/0!"}},null,{"$f":"+(M$14)/(ABS(M$9)+ABS(M$14)+ABS(M$16)+ABS(M$18)+ABS(M$21)+ABS(M$25))","v":{"$error":"#DIV/0!"}},null,{"$f":"+(O$14)/(ABS(O$9)+ABS(O$14)+ABS(O$16)+ABS(O$18)+ABS(O$21)+ABS(O$25))","v":{"$error":"#DIV/0!"}},null,{"$f":"+(Q$14)/(ABS(Q$9)+ABS(Q$14)+ABS(Q$16)+ABS(Q$18)+ABS(Q$21)+ABS(Q$25))","v":{"$error":"#DIV/0!"}},0,5,{"$f":"+ABS(ALT.5!D$18)*IF($S15<=$Q$5,1,0)","v":{"$error":"#DIV/0!"}},{"$f":"+ABS(ALT.5!D$19)*IF(S15<=$Q$5,1,0)","v":{"$error":"#DIV/0!"}}]
["SUSTENTABI- LIDAD (SF B.2)",null,null,"ELASTICIDAD CUANTITATIVA","escala cualicuantitativa",null,{"$f":"+F16*2/SUM($F$16:$F$17)","v":{"$error":"#DIV/0!"}},null,null,null,null,null,null,null,null,null,null,0,6,{"$f":"+ABS(ALT.6!D$18)*IF($S16<=$Q$5,1,0)","v":{"$error":"#DIV/0!"}},{"$f":"+ABS(ALT.6!D$19)*IF(S16<=$Q$5,1,0)","v":{"$error":"#DIV/0!"}}]
[null,null,null,"ADAPTABILIDAD CUALITATIVA","escala cualicuantitativa",null,{"$f":"+F17*2/SUM($F$16:$F$17)","v":{"$error":"#DIV/0!"}},null,{"$f":"+(I$16)/(ABS(I$9)+ABS(I$14)+ABS(I$16)+ABS(I$18)+ABS(I$21)+ABS(I$25))","v":{"$error":"#DIV/0!"}},null,{"$f":"+(K$16)/(ABS(K$9)+ABS(K$14)+ABS(K$16)+ABS(K$18)+ABS(K$21)+ABS(K$25))","v":{"$error":"#DIV/0!"}},null,{"$f":"+(M$16)/(ABS(M$9)+ABS(M$14)+ABS(M$16)+ABS(M$18)+ABS(M$21)+ABS(M$25))","v":{"$error":"#DIV/0!"}},null,{"$f":"+(O$16)/(ABS(O$9)+ABS(O$14)+ABS(O$16)+ABS(O$18)+ABS(O$21)+ABS(O$25))","v":{"$error":"#DIV/0!"}},null,{"$f":"+(Q$16)/(ABS(Q$9)+ABS(Q$14)+ABS(Q$16)+ABS(Q$18)+ABS(Q$21)+ABS(Q$25))","v":{"$error":"#DIV/0!"}},0,"VALOR PROMEDIO DE ABSOL. ACTUALIZ.",{"$f":"+SUM(T11:T16)/($Q$5*(1+$F$18))","v":{"$error":"#DIV/0!"}},{"$f":"+SUM(U11:U16)/($Q$5*(1+$F$18))","v":{"$error":"#DIV/0!"}}]
["EFICIENCIA                             (SF B.3)",null,null,"TASA CONSTANTE DE ACTUALIZACIÓN MONETARIA","por unidad   (% / 100)",null,"fmic:",{"$f":"+(1+$F$18)^(H7-1)","v":1},null,{"$f":"+(1+$F$18)^(J7-1)","v":1},null,{"$f":"+(1+$F$18)^(L7-1)","v":1},null,{"$f":"+(1+$F$18)^(N7-1)","v":1},null,{"$f":"+(1+$F$18)^(P7-1)","v":1},null,"*****"]
[null,null,null,"COSTO POR INVERS. UNIT.","um / up",null,{"$f":"+F19*2/SUM($F$19:$F$20)","v":{"$error":"#DIV/0!"}},{"$f":"-$T$17*H18","v":{"$error":"#DIV/0!"}},{"$f":"+(I$18)/(ABS(I$9)+ABS(I$14)+ABS(I$16)+ABS(I$18)+ABS(I$21)+ABS(I$25))","v":{"$error":"#DIV/0!"}},{"$f":"+$T$17*J18","v":{"$error":"#DIV/0!"}},{"$f":"+(K$18)/(ABS(K$9)+ABS(K$14)+ABS(K$16)+ABS(K$18)+ABS(K$21)+ABS(K$25))","v":{"$error":"#DIV/0!"}},{"$f":"+$T$17*L18","v":{"$error":"#DIV/0!"}},{"$f":"+(M$18)/(ABS(M$9)+ABS(M$14)+ABS(M$16)+ABS(M$18)+ABS(M$21)+ABS(M$25))","v":{"$error":"#DIV/0!"}},{"$f":"+$T$17*N18","v":{"$error":"#DIV/0!"}},{"$f":"+(O$18)/(ABS(O$9)+ABS(O$14)+ABS(O$16)+ABS(O$18)+ABS(O$21)+ABS(O$25))","v":{"$error":"#DIV/0!"}},{"$f":"+$T$17*P18","v":{"$error":"#DIV/0!"}},{"$f":"+(Q$18)/(ABS(Q$9)+ABS(Q$14)+ABS(Q$16)+ABS(Q$18)+ABS(Q$21)+ABS(Q$25))","v":{"$error":"#DIV/0!"}},{"$f":"+(IF($H$7>$L$5,0,$H19)+IF($J$7>$L$5,0,$J19)+IF($L$7>$L$5,0,$L19)+IF($N$7>$L$5,0,$N19)+IF($P$7>$L$5,0,$P19))/$L$5","v":{"$error":"#DIV/0!"}}]
[null,null,null,"COSTO OPERATIVO UNIT.","um / up",null,{"$f":"+F20*2/SUM($F$19:$F$20)","v":{"$error":"#DIV/0!"}},{"$f":"-$U$17*H18","v":{"$error":"#DIV/0!"}},"*****",{"$f":"+$U$17*J18","v":{"$error":"#DIV/0!"}},"*****",{"$f":"+$U$17*L18","v":{"$error":"#DIV/0!"}},"*****",{"$f":"+$U$17*N18","v":{"$error":"#DIV/0!"}},"*****",{"$f":"+$U$17*P18","v":{"$error":"#DIV/0!"}},"*****",{"$error":"#DIV/0!"}]
["RIESGO                                            (SF C.1)",null,null,"SSH","escala cualicuantitativa",null,{"$f":"+F21*4/SUM($F$21:$F$24)","v":{"$error":"#DIV/0!"}},null,null,null,null,null,null,null,null,null,null,0]
[null,null,null,"SSM","escala cualicuantitativa",null,{"$f":"+F22*4/SUM($F$21:$F$24)","v":{"$error":"#DIV/0!"}},null,{"$f":"+(I$21)/(ABS(I$9)+ABS(I$14)+ABS(I$16)+ABS(I$18)+ABS(I$21)+ABS(I$25))","v":{"$error":"#DIV/0!"}},null,{"$f":"+(K$21)/(ABS(K$9)+ABS(K$14)+ABS(K$16)+ABS(K$18)+ABS(K$21)+ABS(K$25))","v":{"$error":"#DIV/0!"}},null,{"$f":"+(M$21)/(ABS(M$9)+ABS(M$14)+ABS(M$16)+ABS(M$18)+ABS(M$21)+ABS(M$25))","v":{"$error":"#DIV/0!"}},null,{"$f":"+(O$21)/(ABS(O$9)+ABS(O$14)+ABS(O$16)+ABS(O$18)+ABS(O$21)+ABS(O$25))","v":{"$error":"#DIV/0!"}},null,{"$f":"+(Q$21)/(ABS(Q$9)+ABS(Q$14)+ABS(Q$16)+ABS(Q$18)+ABS(Q$21)+ABS(Q$25))","v":{"$error":"#DIV/0!"}},0]
[null,null,null,"SSGTR","escala cualicuantitativa",null,{"$f":"+F23*4/SUM($F$21:$F$24)","v":{"$error":"#DIV/0!"}},null,"*****",null,"*****",null,"*****",null,"*****",null,"*****",0]
[null,null,null,"ENTORNO DEL SHM","escala cualicuantitativa",null,{"$f":"+F24*4/SUM($F$21:$F$24)","v":{"$error":"#DIV/0!"}},null,"*****",null,"*****",null,"*****",null,"*****",null,"*****",0]
["INCONFORT                                       (SF C.2)",null,null,"SSH","escala cualicuantitativa",null,{"$f":"+F25*3/SUM($F$25:$F$27)","v":{"$error":"#DIV/0!"}},null,null,null,null,null,null,null,null,null,null,0]
[null,null,null,"SSGTR","escala cualicuantitativa",null,{"$f":"+F26*3/SUM($F$25:$F$27)","v":{"$error":"#DIV/0!"}},null,{"$f":"+(I$25)/(ABS(I$9)+ABS(I$14)+ABS(I$16)+ABS(I$18)+ABS(I$21)+ABS(I$25))","v":{"$error":"#DIV/0!"}},null,{"$f":"+(K$25)/(ABS(K$9)+ABS(K$14)+ABS(K$16)+ABS(K$18)+ABS(K$21)+ABS(K$25))","v":{"$error":"#DIV/0!"}},null,{"$f":"+(M$25)/(ABS(M$9)+ABS(M$14)+ABS(M$16)+ABS(M$18)+ABS(M$21)+ABS(M$25))","v":{"$error":"#DIV/0!"}},null,{"$f":"+(O$25)/(ABS(O$9)+ABS(O$14)+ABS(O$16)+ABS(O$18)+ABS(O$21)+ABS(O$25))","v":{"$error":"#DIV/0!"}},null,{"$f":"+(Q$25)/(ABS(Q$9)+ABS(Q$14)+ABS(Q$16)+ABS(Q$18)+ABS(Q$21)+ABS(Q$25))","v":{"$error":"#DIV/0!"}},0]
[null,null,null,"ENTORNO DEL SHM","escala cualicuantitativa",null,{"$f":"+F27*3/SUM($F$25:$F$27)","v":{"$error":"#DIV/0!"}},null,"*****",null,"*****",null,"*****",null,"*****",null,"*****",0]
["PRODUCCIÓN TOTAL REQUERIDA POR AÑO",null,null,null,null,"up/año",null,0,null,0,null,0,null,0,null,0]
["EFECTO DE REFERENCIA DEL NÚMERO TOTAL DE SHM",null,null,null,null,"pu",null,{"$f":"+(IF(ALT.1!$E$2<=ALT.1!$H$31,ALT.1!$D$29,0)+IF(ALT.2!$E$2<=ALT.2!$I$8,ALT.2!$D$29,0)+IF(ALT.3!$E$2<=ALT.3!$I$8,ALT.3!$D$29,0)+IF(ALT.4!$E$2<=ALT.4!$I$8,ALT.4!$D$29,0)+IF(ALT.5!$E$2<=ALT.5!$I$8,ALT.5!$D$29,0)+IF(ALT.6!$E$2<=ALT.6!$I$8,ALT.6!$D$29,0))/$Q$5","v":1},null,{"$f":"+(IF(ALT.1!$E$2<=ALT.1!$H$31,ALT.1!$E$29,0)+IF(ALT.2!$E$2<=ALT.2!$I$8,ALT.2!$E$29,0)+IF(ALT.3!$E$2<=ALT.3!$I$8,ALT.3!$E$29,0)+IF(ALT.4!$E$2<=ALT.4!$I$8,ALT.4!$E$29,0)+IF(ALT.5!$E$2<=ALT.5!$I$8,ALT.5!$E$29,0)+IF(ALT.6!$E$2<=ALT.6!$I$8,ALT.6!$E$29,0))/$Q$5","v":1},null,{"$f":"+(IF(ALT.1!$E$2<=ALT.1!$H$31,ALT.1!$F$29,0)+IF(ALT.2!$E$2<=ALT.2!$I$8,ALT.2!$F$29,0)+IF(ALT.3!$E$2<=ALT.3!$I$8,ALT.3!$F$29,0)+IF(ALT.4!$E$2<=ALT.4!$I$8,ALT.4!$F$29,0)+IF(ALT.5!$E$2<=ALT.5!$I$8,ALT.5!$F$29,0)+IF(ALT.6!$E$2<=ALT.6!$I$8,ALT.6!$F$29,0))/$Q$5","v":1},null,{"$f":"+(IF(ALT.1!$E$2<=ALT.1!$H$31,ALT.1!$G$29,0)+IF(ALT.2!$E$2<=ALT.2!$I$8,ALT.2!$G$29,0)+IF(ALT.3!$E$2<=ALT.3!$I$8,ALT.3!$G$29,0)+IF(ALT.4!$E$2<=ALT.4!$I$8,ALT.4!$G$29,0)+IF(ALT.5!$E$2<=ALT.5!$I$8,ALT.5!$G$29,0)+IF(ALT.6!$E$2<=ALT.6!$I$8,ALT.6!$G$29,0))/$Q$5","v":1},null,{"$f":"+(IF(ALT.1!$E$2<=ALT.1!$H$31,ALT.1!$H$29,0)+IF(ALT.2!$E$2<=ALT.2!$I$8,ALT.2!$H$29,0)+IF(ALT.3!$E$2<=ALT.3!$I$8,ALT.3!$H$29,0)+IF(ALT.4!$E$2<=ALT.4!$I$8,ALT.4!$H$29,0)+IF(ALT.5!$E$2<=ALT.5!$I$8,ALT.5!$H$29,0)+IF(ALT.6!$E$2<=ALT.6!$I$8,ALT.6!$H$29,0))/$Q$5","v":1}]

{"sheet":"COSTOS","index":3,"n_rows":32,"n_cols":8,"rows_kept":32,"cut":false,"hidden":false,"merged":[[23,1,23,4],[4,1,5,1],[14,1,15,1],[24,1,25,1],[0,0,0,7],[14,5,15,5],[14,6,15,6],[3,1,3,5],[13,1,13,7],[1,1,1,7],[17,3,21,3]]}
["             programa evalerg AdEA"]
["i","COSTO POR INVERSION ANUAL Y COSTOS ANUALES OPERATIVOS FIJOS Y VARIABLES"]
[]
["i","COSTO POR INVERSION ANUAL (CINVA) DE UN SSM",null,null,null,null,null,"Nº DE AÑOS"]
["ALTERNATIVA","DENOMINACIÓN","INVERSION","VIDA UTIL","VALOR RECUP.","CINVA",null,{"$f":"+'EF.REF.,RELEV.Y EF.ADIM.'!$L$5","v":1}]
["Nº",null,"(um)","(años)","(um)","(um/año)",null,"Nª ALTERN."]
[1,"Escribir denominación alternativa 1",0,0,{"$f":"+IF($D7>$H$5,$C7*($D7-$H$5)/$D7,0)","v":0},{"$f":"+IF(D7<=$H$5,0,(C7-E7)*(($H$9*((1+$H$9)^D7)))/(((1+$H$9)^D7)-1))+E7*$H$9","v":0},null,{"$f":"+'EF.REF.,RELEV.Y EF.ADIM.'!$Q$5","v":1}]
[2,"Escribir denominación alternativa 2",0,1E-3,0,{"$f":"+IF(D8<=$H$5,0,(C8-E8)*(($H$9*((1+$H$9)^D8)))/(((1+$H$9)^D8)-1))+E8*$H$9","v":0},null,"tum (pu)"]
[3,"Escribir denominación alternativa 3",0,0,0,0,null,{"$f":"+'EF.REF.,RELEV.Y EF.ADIM.'!$F$18","v":0}]
[4,"Escribir denominación alternativa 4",0,0,0,0,null,"u.m."]
[5,"Escribir denominación alternativa 5",0,0,0,0,null,"?"]
[6,"Escribir denominación alternativa 6",0,0,0,0]
[]
["i","COSTO ANUAL OPERATIVO FIJO DE UN SSM"]
["ALTERNATIVA","DENOMINACIÓN","SUELDO PROM.","COEF. CARGAS","IMPUESTOS","COEF.MANT.FIJO                                (%/INV/año)","MANTENIM. FIJO                           (um/año)","CAOF"]
["Nº",null,"(um/año)","SOCIALES (%)","(%/año)",null,null,"(um/año)"]
[1,{"$f":"+B7","v":"Escribir denominación alternativa 1"},9.9999999999999995E-8,9.9999999999999995E-8,9.9999999999999995E-8,9.9999999999999995E-8,9.9999999999999995E-8,{"$f":"+C17*ALT.1!$D$7*(1+$D$17/100)+((C7+E7)/2*E17/100)+G17","v":9.9999999999999995E-8}]
[2,"Escribir denominación alternativa 2",9.9999999999999995E-8,"IGUAL COEFICIENTE PARA TODAS LAS ALTERNATIVAS",9.9999999999999995E-8,9.9999999999999995E-8,9.9999999999999995E-8,{"$f":"+C18*ALT.1!$D$7*(1+$D$17/100)+((C8+E8)/2*E18/100)+G18","v":9.9999999999999995E-8}]
[3,"Escribir denominación alternativa 3",9.9999999999999995E-8,null,9.9999999999999995E-8,9.9999999999999995E-8,9.9999999999999995E-8,{"$f":"+C19*ALT.1!$D$7*(1+$D$17/100)+((C9+E9)/2*E19/100)+G19","v":9.9999999999999995E-8}]
[4,"Escribir denominación alternativa 4",9.9999999999999995E-8,null,9.9999999999999995E-8,9.9999999999999995E-8,9.9999999999999995E-8,{"$f":"+C20*ALT.1!$D$7*(1+$D$17/100)+((C10+E10)/2*E20/100)+G20","v":9.9999999999999995E-8}]
[5,"Escribir denominación alternativa 5",9.9999999999999995E-8,null,9.9999999999999995E-8,9.9999999999999995E-8,9.9999999999999995E-8,{"$f":"+C21*ALT.1!$D$7*(1+$D$17/100)+((C11+E11)/2*E21/100)+G21","v":9.9999999999999995E-8}]
[6,"Escribir denominación alternativa 6",9.9999999999999995E-8,null,9.9999999999999995E-8,9.9999999999999995E-8,9.9999999999999995E-8,{"$f":"+C22*ALT.1!$D$7*(1+$D$17/100)+((C12+E12)/2*E22/100)+G22","v":9.9999999999999995E-8}]
[]
["i","COSTO OPERATIVO VARIABLE UNITARIO"]
["ALTERNATIVA","DENOMINACIÓN","COSTO MANTEN. VARIABLE UNIT.","COSTO ENERGIA UNITARIO","COVU"]
["Nº",null,"(um/up)","(um/up)","(um/up)"]
[1,{"$f":"+B17","v":"Escribir denominación alternativa 1"},9.9999999999999995E-8,9.9999999999999995E-8,{"$f":"+(C27+D27)*IF(A27>$H$7,0,1)","v":1.9999999999999999E-7}]
[2,"Escribir denominación alternativa 2",9.9999999999999995E-8,9.9999999999999995E-8,{"$f":"+(C28+D28)*IF(A28>$H$7,0,1)","v":0}]
[3,"Escribir denominación alternativa 3",9.9999999999999995E-8,9.9999999999999995E-8,0]
[4,"Escribir denominación alternativa 4",9.9999999999999995E-8,9.9999999999999995E-8,0]
[5,"Escribir denominación alternativa 5",9.9999999999999995E-8,9.9999999999999995E-8,0]
[6,"Escribir denominación alternativa 6",9.9999999999999995E-8,9.9999999999999995E-8,0]

{"sheet":"ALT.1","index":4,"n_rows":31,"n_cols":8,"rows_kept":31,"cut":false,"hidden":false,"merged":[[3,0,3,1],[1,1,2,2],[1,0,2,0],[0,2,0,7],[4,0,5,1],[3,2,3,7],[1,4,2,4],[1,6,2,7],[1,3,2,3],[5,3,5,7],[29,0,29,2],[30,0,30,2],[12,0,14,0],[6,0,10,0],[24,0,26,0],[28,0,28,1],[19,0,19,2],[27,0,27,2],[11,0,11,2],[15,0,16,0]]}
["i","i","programa evalerg AdEA"]
["DENOMINACIÓN        EVALUACIÓN",{"$f":"+'EF.REF.,RELEV.Y EF.ADIM.'!E2","v":0},null,{"$f":"+IF(H31>=1,\"ALTERNATIVA\",\" ALTERNATIVA \")","v":"ALTERNATIVA"},{"$f":"+IF($H$31>=1,1,\"VACÍA\")","v":1},"DENOMINAC. ",{"$f":"+COSTOS!B7","v":"Escribir denominación alternativa 1"}]
[null,null,null,null,null,"ALTERNATIVA"]
[{"$f":"+IF(D2=\"ALTERNATIVA\",\"DESCRIPCIÓN:\",\"SIN DESCRIPCIÓN\")","v":"DESCRIPCIÓN:"}]
["FACTORES Y SUBFACTORES",null,"AÑOS:",1,2,3,4,5]
[null,null,"ESC. MEDIC. EFECT.","EFECTOS ANUALES"]
["PARTICI- PACION                         (F A)","OCUPACION","nro. de SSH por SHM"]
[null,"PARTICIPACION CREATIVA","escala cualicuantitativa",1]
[null,"PARTICIPACION ECONOMICA","(um/año)promedio",{"$f":"+COSTOS!$C$17","v":9.9999999999999995E-8},{"$f":"+COSTOS!$C$17","v":9.9999999999999995E-8},{"$f":"+COSTOS!$C$17","v":9.9999999999999995E-8},{"$f":"+COSTOS!$C$17","v":9.9999999999999995E-8},{"$f":"+COSTOS!$C$17","v":9.9999999999999995E-8}]
[null,"PARTICIPACION PSICOSOCIAL","escala cualicuantitativa"]
[null,"PARTICIPACION DECISIONAL","escala cualicuantitativa"]
["PARTICIPACIONES ANUALES DEL FACTOR PARTICIPACIÓN",null,null,{"$f":"+(D$29*'EF.REF.,RELEV.Y EF.ADIM.'!I$10*ALT.1!D7/'EF.REF.,RELEV.Y EF.ADIM.'!H9)*(('EF.REF.,RELEV.Y EF.ADIM.'!$G10*('EF.REF.,RELEV.Y EF.ADIM.'!H10/'EF.REF.,RELEV.Y EF.ADIM.'!$R10)*(ALT.1!D8/'EF.REF.,RELEV.Y EF.ADIM.'!H10))+('EF.REF.,RELEV.Y EF.ADIM.'!$G11*('EF.REF.,RELEV.Y EF.ADIM.'!H11/'EF.REF.,RELEV.Y EF.ADIM.'!$R11)*(ALT.1!D9/'EF.REF.,RELEV.Y EF.ADIM.'!H11))+('EF.REF.,RELEV.Y EF.ADIM.'!$G12*('EF.REF.,RELEV.Y EF.ADIM.'!H12/'EF.REF.,RELEV.Y EF.ADIM.'!$R12)*(ALT.1!D10/'EF.REF.,RELEV.Y EF.ADIM.'!H12))+('EF.REF.,RELEV.Y EF.ADIM.'!$G13*('EF.REF.,RELEV.Y EF.ADIM.'!H13/'EF.REF.,RELEV.Y EF.ADIM.'!$R13)*(ALT.1!D11/'EF.REF.,RELEV.Y EF.ADIM.'!H13))) *IF(D$5>$F$31,0,1)*IF($E$2>$H$31,0,1)","v":{"$error":"#DIV/0!"}},{"$f":"+(E$29*'EF.REF.,RELEV.Y EF.ADIM.'!K$10*ALT.1!E7/'EF.REF.,RELEV.Y EF.ADIM.'!J9)*(('EF.REF.,RELEV.Y EF.ADIM.'!$G10*('EF.REF.,RELEV.Y EF.ADIM.'!J10/'EF.REF.,RELEV.Y EF.ADIM.'!$R10)*(ALT.1!E8/'EF.REF.,RELEV.Y EF.ADIM.'!J10))+('EF.REF.,RELEV.Y EF.ADIM.'!$G11*('EF.REF.,RELEV.Y EF.ADIM.'!J11/'EF.REF.,RELEV.Y EF.ADIM.'!$R11)*(ALT.1!E9/'EF.REF.,RELEV.Y EF.ADIM.'!J11))+('EF.REF.,RELEV.Y EF.ADIM.'!$G12*('EF.REF.,RELEV.Y EF.ADIM.'!J12/'EF.REF.,RELEV.Y EF.ADIM.'!$R12)*(ALT.1!E10/'EF.REF.,RELEV.Y EF.ADIM.'!J12))+('EF.REF.,RELEV.Y EF.ADIM.'!$G13*('EF.REF.,RELEV.Y EF.ADIM.'!J13/'EF.REF.,RELEV.Y EF.ADIM.'!$R13)*(ALT.1!E11/'EF.REF.,RELEV.Y EF.ADIM.'!J13))) *IF(E$5>$F$31,0,1)*IF($E$2>$H$31,0,1)","v":{"$error":"#DIV/0!"}},{"$f":"+(F$29*'EF.REF.,RELEV.Y EF.ADIM.'!M$10*ALT.1!F7/'EF.REF.,RELEV.Y EF.ADIM.'!L9)*(('EF.REF.,RELEV.Y EF.ADIM.'!$G10*('EF.REF.,RELEV.Y EF.ADIM.'!L10/'EF.REF.,RELEV.Y EF.ADIM.'!$R10)*(ALT.1!F8/'EF.REF.,RELEV.Y EF.ADIM.'!L10))+('EF.REF.,RELEV.Y EF.ADIM.'!$G11*('EF.REF.,RELEV.Y EF.ADIM.'!L11/'EF.REF.,RELEV.Y EF.ADIM.'!$R11)*(ALT.1!F9/'EF.REF.,RELEV.Y EF.ADIM.'!L11))+('EF.REF.,RELEV.Y EF.ADIM.'!$G12*('EF.REF.,RELEV.Y EF.ADIM.'!L12/'EF.REF.,RELEV.Y EF.ADIM.'!$R12)*(ALT.1!F10/'EF.REF.,RELEV.Y EF.ADIM.'!L12))+('EF.REF.,RELEV.Y EF.ADIM.'!$G13*('EF.REF.,RELEV.Y EF.ADIM.'!L13/'EF.REF.,RELEV.Y EF.ADIM.'!$R13)*(ALT.1!F11/'EF.REF.,RELEV.Y EF.ADIM.'!L13))) *IF(F$5>$F$31,0,1)*IF($E$2>$H$31,0,1)","v":{"$error":"#DIV/0!"}},{"$f":"+(G$29*'EF.REF.,RELEV.Y EF.ADIM.'!O$10*ALT.1!G7/'EF.REF.,RELEV.Y EF.ADIM.'!N9)*(('EF.REF.,RELEV.Y EF.ADIM.'!$G10*('EF.REF.,RELEV.Y EF.ADIM.'!N10/'EF.REF.,RELEV.Y EF.ADIM.'!$R10)*(ALT.1!G8/'EF.REF.,RELEV.Y EF.ADIM.'!N10))+('EF.REF.,RELEV.Y EF.ADIM.'!$G11*('EF.REF.,RELEV.Y EF.ADIM.'!N11/'EF.REF.,RELEV.Y EF.ADIM.'!$R11)*(ALT.1!G9/'EF.REF.,RELEV.Y EF.ADIM.'!N11))+('EF.REF.,RELEV.Y EF.ADIM.'!$G12*('EF.REF.,RELEV.Y EF.ADIM.'!N12/'EF.REF.,RELEV.Y EF.ADIM.'!$R12)*(ALT.1!G10/'EF.REF.,RELEV.Y EF.ADIM.'!N12))+('EF.REF.,RELEV.Y EF.ADIM.'!$G13*('EF.REF.,RELEV.Y EF.ADIM.'!N13/'EF.REF.,RELEV.Y EF.ADIM.'!$R13)*(ALT.1!G11/'EF.REF.,RELEV.Y EF.ADIM.'!N13))) *IF(G$5>$F$31,0,1)*IF($E$2>$H$31,0,1)","v":{"$error":"#DIV/0!"}},{"$f":"+(H$29*'EF.REF.,RELEV.Y EF.ADIM.'!Q$10*ALT.1!H7/'EF.REF.,RELEV.Y EF.ADIM.'!P9)*(('EF.REF.,RELEV.Y EF.ADIM.'!$G10*('EF.REF.,RELEV.Y EF.ADIM.'!P10/'EF.REF.,RELEV.Y EF.ADIM.'!$R10)*(ALT.1!H8/'EF.REF.,RELEV.Y EF.ADIM.'!P10))+('EF.REF.,RELEV.Y EF.ADIM.'!$G11*('EF.REF.,RELEV.Y EF.ADIM.'!P11/'EF.REF.,RELEV.Y EF.ADIM.'!$R11)*(ALT.1!H9/'EF.REF.,RELEV.Y EF.ADIM.'!P11))+('EF.REF.,RELEV.Y EF.ADIM.'!$G12*('EF.REF.,RELEV.Y EF.ADIM.'!P12/'EF.REF.,RELEV.Y EF.ADIM.'!$R12)*(ALT.1!H10/'EF.REF.,RELEV.Y EF.ADIM.'!P12))+('EF.REF.,RELEV.Y EF.ADIM.'!$G13*('EF.REF.,RELEV.Y EF.ADIM.'!P13/'EF.REF.,RELEV.Y EF.ADIM.'!$R13)*(ALT.1!H11/'EF.REF.,RELEV.Y EF.ADIM.'!P13))) *IF(H$5>$F$31,0,1)*IF($E$2>$H$31,0,1)","v":{"$error":"#DIV/0!"}}]
["EFICACIA                               (F B)","CAPACIDAD UNITARIA DE PRODUC.","up/año"]
[null,"CALIDAD","escala cualicuantitativa"]
[null,"FIABILIDAD OPERATIVA","1 - tasa de fallas"]
["SUSTENTABI-  LIDAD (SF B2)","ELASTICIDAD CUANTITATIVA","escala cualicuantitativa"]
[null,"ADAPTABILIDAD CUALITATIVA","escala cualicuantitativa"]
["EFICIENCIA","COSTO POR INVERS. UNITARIO","um/up",{"$f":"-COSTOS!$F$7*D29/'EF.REF.,RELEV.Y EF.ADIM.'!$H$28","v":{"$error":"#DIV/0!"}},{"$f":"-COSTOS!$F$7*E29/'EF.REF.,RELEV.Y EF.ADIM.'!$J$28","v":{"$error":"#DIV/0!"}},{"$f":"-COSTOS!$F$7*F29/'EF.REF.,RELEV.Y EF.ADIM.'!$L$28","v":{"$error":"#DIV/0!"}},{"$f":"-COSTOS!$F$7*G29/'EF.REF.,RELEV.Y EF.ADIM.'!$N$28","v":{"$error":"#DIV/0!"}},{"$f":"-COSTOS!$F$7*H29/'EF.REF.,RELEV.Y EF.ADIM.'!$P$28","v":{"$error":"#DIV/0!"}}]
["(SF B.3)","COSTO OPERATIVO UNITARIO","um/up",{"$f":"-(COSTOS!$H$17*D29/'EF.REF.,RELEV.Y EF.ADIM.'!$H$28)-COSTOS!$E$27","v":{"$error":"#DIV/0!"}},{"$f":"-(COSTOS!$H$17*E29/'EF.REF.,RELEV.Y EF.ADIM.'!$J$28)-COSTOS!$E$27","v":{"$error":"#DIV/0!"}},{"$f":"-(COSTOS!$H$17*F29/'EF.REF.,RELEV.Y EF.ADIM.'!$L$28)-COSTOS!$E$27","v":{"$error":"#DIV/0!"}},{"$f":"-(COSTOS!$H$17*G29/'EF.REF.,RELEV.Y EF.ADIM.'!$N$28)-COSTOS!$E$27","v":{"$error":"#DIV/0!"}},{"$f":"-(COSTOS!$H$17*H29/'EF.REF.,RELEV.Y EF.ADIM.'!$P$28)-COSTOS!$E$27","v":{"$error":"#DIV/0!"}}]
["PARTICIPACIONES ANUALES DEL FACTOR PRODUCCIÓN",null,null,{"$f":"+('EF.REF.,RELEV.Y EF.ADIM.'!I$15*('EF.REF.,RELEV.Y EF.ADIM.'!$G14*('EF.REF.,RELEV.Y EF.ADIM.'!$H14/'EF.REF.,RELEV.Y EF.ADIM.'!$R14)*(ALT.1!D14/'EF.REF.,RELEV.Y EF.ADIM.'!H14)) +'EF.REF.,RELEV.Y EF.ADIM.'!I$15*('EF.REF.,RELEV.Y EF.ADIM.'!$G15*('EF.REF.,RELEV.Y EF.ADIM.'!$H15/'EF.REF.,RELEV.Y EF.ADIM.'!$R15)*(ALT.1!D15/'EF.REF.,RELEV.Y EF.ADIM.'!H15))+'EF.REF.,RELEV.Y EF.ADIM.'!I$17*('EF.REF.,RELEV.Y EF.ADIM.'!$G17*('EF.REF.,RELEV.Y EF.ADIM.'!$H16/'EF.REF.,RELEV.Y EF.ADIM.'!$R16)*(ALT.1!D16/'EF.REF.,RELEV.Y EF.ADIM.'!H16))+'EF.REF.,RELEV.Y EF.ADIM.'!I$17*('EF.REF.,RELEV.Y EF.ADIM.'!$G19*('EF.REF.,RELEV.Y EF.ADIM.'!$H17/'EF.REF.,RELEV.Y EF.ADIM.'!$R17)*(ALT.1!D17/'EF.REF.,RELEV.Y EF.ADIM.'!H17))+'EF.REF.,RELEV.Y EF.ADIM.'!I$19*('EF.REF.,RELEV.Y EF.ADIM.'!$G14*('EF.REF.,RELEV.Y EF.ADIM.'!$H19/'EF.REF.,RELEV.Y EF.ADIM.'!$R19)*(ALT.1!D18/'EF.REF.,RELEV.Y EF.ADIM.'!H19))+'EF.REF.,RELEV.Y EF.ADIM.'!I$19*('EF.REF.,RELEV.Y EF.ADIM.'!$G20*('EF.REF.,RELEV.Y EF.ADIM.'!$H20/'EF.REF.,RELEV.Y EF.ADIM.'!$R20)*(ALT.1!D19/'EF.REF.,RELEV.Y EF.ADIM.'!H20)))*IF(D$5>$F$31,0,1)*IF($E$2>$H$31,0,1)\n\n+('EF.REF.,RELEV.Y EF.ADIM.'!I$15*('EF.REF.,RELEV.Y EF.ADIM.'!$G14*('EF.REF.,RELEV.Y EF.ADIM.'!$H14/'EF.REF.,RELEV.Y EF.ADIM.'!$R14)*(ALT.1!D14/'EF.REF.,RELEV.Y EF.ADIM.'!H14)) +'EF.REF.,RELEV.Y EF.ADIM.'!I$15*('EF.REF.,RELEV.Y EF.ADIM.'!$G15*('EF.REF.,RELEV.Y EF.ADIM.'!$H15/'EF.REF.,RELEV.Y EF.ADIM.'!$R15)*(ALT.1!D15/'EF.REF.,RELEV.Y EF.ADIM.'!H15))+'EF.REF.,RELEV.Y EF.ADIM.'!I$17*('EF.REF.,RELEV.Y EF.ADIM.'!$G17*('EF.REF.,RELEV.Y EF.ADIM.'!$H16/'EF.REF.,RELEV.Y EF.ADIM.'!$R16)*(ALT.1!D16/'EF.REF.,RELEV.Y EF.ADIM.'!H16))+'EF.REF.,RELEV.Y EF.ADIM.'!I$17*('EF.REF.,RELEV.Y EF.ADIM.'!$G19*('EF.REF.,RELEV.Y EF.ADIM.'!$H17/'EF.REF.,RELEV.Y EF.ADIM.'!$R17)*(ALT.1!D17/'EF.REF.,RELEV.Y EF.ADIM.'!H17))+'EF.REF.,RELEV.Y EF.ADIM.'!I$19*('EF.REF.,RELEV.Y EF.ADIM.'!$G14*('EF.REF.,RELEV.Y EF.ADIM.'!$H19/'EF.REF.,RELEV.Y EF.ADIM.'!$R19)*(ALT.1!D18/'EF.REF.,RELEV.Y EF.ADIM.'!H19))+'EF.REF.,RELEV.Y EF.ADIM.'!I$19*('EF.REF.,RELEV.Y EF.ADIM.'!$G20*('EF.REF.,RELEV.Y EF.ADIM.'!$H20/'EF.REF.,RELEV.Y EF.ADIM.'!$R20)*(ALT.1!D19/'EF.REF.,RELEV.Y EF.ADIM.'!H20)))*IF(D$5>$F$31,0,1)*IF($E$2>$H$31,0,1)","v":{"$error":"#DIV/0!"}},{"$f":"+('EF.REF.,RELEV.Y EF.ADIM.'!K$15*('EF.REF.,RELEV.Y EF.ADIM.'!$G14*('EF.REF.,RELEV.Y EF.ADIM.'!$J14/'EF.REF.,RELEV.Y EF.ADIM.'!$R14)*(ALT.1!E14/'EF.REF.,RELEV.Y EF.ADIM.'!J14)) +'EF.REF.,RELEV.Y EF.ADIM.'!K$15*('EF.REF.,RELEV.Y EF.ADIM.'!$G15*('EF.REF.,RELEV.Y EF.ADIM.'!$J15/'EF.REF.,RELEV.Y EF.ADIM.'!$R15)*(ALT.1!E15/'EF.REF.,RELEV.Y EF.ADIM.'!J15))+'EF.REF.,RELEV.Y EF.ADIM.'!K$17*('EF.REF.,RELEV.Y EF.ADIM.'!$G17*('EF.REF.,RELEV.Y EF.ADIM.'!$J16/'EF.REF.,RELEV.Y EF.ADIM.'!$R16)*(ALT.1!E16/'EF.REF.,RELEV.Y EF.ADIM.'!J16))+'EF.REF.,RELEV.Y EF.ADIM.'!K$17*('EF.REF.,RELEV.Y EF.ADIM.'!$G19*('EF.REF.,RELEV.Y EF.ADIM.'!$J17/'EF.REF.,RELEV.Y EF.ADIM.'!$R17)*(ALT.1!E17/'EF.REF.,RELEV.Y EF.ADIM.'!J17))+'EF.REF.,RELEV.Y EF.ADIM.'!K$19*('EF.REF.,RELEV.Y EF.ADIM.'!$G14*('EF.REF.,RELEV.Y EF.ADIM.'!$J19/'EF.REF.,RELEV.Y EF.ADIM.'!$R19)*(ALT.1!E18/'EF.REF.,RELEV.Y EF.ADIM.'!J19))+'EF.REF.,RELEV.Y EF.ADIM.'!K$19*('EF.REF.,RELEV.Y EF.ADIM.'!$G20*('EF.REF.,RELEV.Y EF.ADIM.'!$J20/'EF.REF.,RELEV.Y EF.ADIM.'!$R20)*(ALT.1!E19/'EF.REF.,RELEV.Y EF.ADIM.'!J20)))*IF(E$5>$F$31,0,1)*IF($E$2>$H$31,0,1)","v":{"$error":"#DIV/0!"}},{"$f":"+('EF.REF.,RELEV.Y EF.ADIM.'!M$15*('EF.REF.,RELEV.Y EF.ADIM.'!$G14*('EF.REF.,RELEV.Y EF.ADIM.'!$L14/'EF.REF.,RELEV.Y EF.ADIM.'!$R14)*(ALT.1!F14/'EF.REF.,RELEV.Y EF.ADIM.'!L14)) +'EF.REF.,RELEV.Y EF.ADIM.'!M$15*('EF.REF.,RELEV.Y EF.ADIM.'!$G15*('EF.REF.,RELEV.Y EF.ADIM.'!$L15/'EF.REF.,RELEV.Y EF.ADIM.'!$R15)*(ALT.1!F15/'EF.REF.,RELEV.Y EF.ADIM.'!L15))+'EF.REF.,RELEV.Y EF.ADIM.'!M$17*('EF.REF.,RELEV.Y EF.ADIM.'!$G17*('EF.REF.,RELEV.Y EF.ADIM.'!$L16/'EF.REF.,RELEV.Y EF.ADIM.'!$R16)*(ALT.1!F16/'EF.REF.,RELEV.Y EF.ADIM.'!L16))+'EF.REF.,RELEV.Y EF.ADIM.'!M$17*('EF.REF.,RELEV.Y EF.ADIM.'!$G19*('EF.REF.,RELEV.Y EF.ADIM.'!$L17/'EF.REF.,RELEV.Y EF.ADIM.'!$R17)*(ALT.1!F17/'EF.REF.,RELEV.Y EF.ADIM.'!L17))+'EF.REF.,RELEV.Y EF.ADIM.'!M$19*('EF.REF.,RELEV.Y EF.ADIM.'!$G14*('EF.REF.,RELEV.Y EF.ADIM.'!$L19/'EF.REF.,RELEV.Y EF.ADIM.'!$R19)*(ALT.1!F18/'EF.REF.,RELEV.Y EF.ADIM.'!L19))+'EF.REF.,RELEV.Y EF.ADIM.'!M$19*('EF.REF.,RELEV.Y EF.ADIM.'!$G20*('EF.REF.,RELEV.Y EF.ADIM.'!$L20/'EF.REF.,RELEV.Y EF.ADIM.'!$R20)*(ALT.1!F19/'EF.REF.,RELEV.Y EF.ADIM.'!L20)))*IF(F$5>$F$31,0,1)*IF($E$2>$H$31,0,1)","v":{"$error":"#DIV/0!"}},{"$f":"+('EF.REF.,RELEV.Y EF.ADIM.'!O$15*('EF.REF.,RELEV.Y EF.ADIM.'!$G14*('EF.REF.,RELEV.Y EF.ADIM.'!$N14/'EF.REF.,RELEV.Y EF.ADIM.'!$R14)*(ALT.1!G14/'EF.REF.,RELEV.Y EF.ADIM.'!N14)) +'EF.REF.,RELEV.Y EF.ADIM.'!O$15*('EF.REF.,RELEV.Y EF.ADIM.'!$G15*('EF.REF.,RELEV.Y EF.ADIM.'!$N15/'EF.REF.,RELEV.Y EF.ADIM.'!$R15)*(ALT.1!G15/'EF.REF.,RELEV.Y EF.ADIM.'!N15))+'EF.REF.,RELEV.Y EF.ADIM.'!O$17*('EF.REF.,RELEV.Y EF.ADIM.'!$G17*('EF.REF.,RELEV.Y EF.ADIM.'!$N16/'EF.REF.,RELEV.Y EF.ADIM.'!$R16)*(ALT.1!G16/'EF.REF.,RELEV.Y EF.ADIM.'!N16))+'EF.REF.,RELEV.Y EF.ADIM.'!O$17*('EF.REF.,RELEV.Y EF.ADIM.'!$G19*('EF.REF.,RELEV.Y EF.ADIM.'!$N17/'EF.REF.,RELEV.Y EF.ADIM.'!$R17)*(ALT.1!G17/'EF.REF.,RELEV.Y EF.ADIM.'!N17))+'EF.REF.,RELEV.Y EF.ADIM.'!O$19*('EF.REF.,RELEV.Y EF.ADIM.'!$G14*('EF.REF.,RELEV.Y EF.ADIM.'!$N19/'EF.REF.,RELEV.Y EF.ADIM.'!$R19)*(ALT.1!G18/'EF.REF.,RELEV.Y EF.ADIM.'!N19))+'EF.REF.,RELEV.Y EF.ADIM.'!O$19*('EF.REF.,RELEV.Y EF.ADIM.'!$G20*('EF.REF.,RELEV.Y EF.ADIM.'!$N20/'EF.REF.,RELEV.Y EF.ADIM.'!$R20)*(ALT.1!G19/'EF.REF.,RELEV.Y EF.ADIM.'!N20)))*IF(G$5>$F$31,0,1)*IF($E$2>$H$31,0,1)","v":{"$error":"#DIV/0!"}},{"$f":"+('EF.REF.,RELEV.Y EF.ADIM.'!Q$15*('EF.REF.,RELEV.Y EF.ADIM.'!$G14*('EF.REF.,RELEV.Y EF.ADIM.'!$P14/'EF.REF.,RELEV.Y EF.ADIM.'!$R14)*(ALT.1!H14/'EF.REF.,RELEV.Y EF.ADIM.'!P14)) +'EF.REF.,RELEV.Y EF.ADIM.'!Q$15*('EF.REF.,RELEV.Y EF.ADIM.'!$G15*('EF.REF.,RELEV.Y EF.ADIM.'!$P15/'EF.REF.,RELEV.Y EF.ADIM.'!$R15)*(ALT.1!H15/'EF.REF.,RELEV.Y EF.ADIM.'!P15))+'EF.REF.,RELEV.Y EF.ADIM.'!Q$17*('EF.REF.,RELEV.Y EF.ADIM.'!$G17*('EF.REF.,RELEV.Y EF.ADIM.'!$P16/'EF.REF.,RELEV.Y EF.ADIM.'!$R16)*(ALT.1!H16/'EF.REF.,RELEV.Y EF.ADIM.'!P16))+'EF.REF.,RELEV.Y EF.ADIM.'!Q$17*('EF.REF.,RELEV.Y EF.ADIM.'!$G19*('EF.REF.,RELEV.Y EF.ADIM.'!$P17/'EF.REF.,RELEV.Y EF.ADIM.'!$R17)*(ALT.1!H17/'EF.REF.,RELEV.Y EF.ADIM.'!P17))+'EF.REF.,RELEV.Y EF.ADIM.'!Q$19*('EF.REF.,RELEV.Y EF.ADIM.'!$G14*('EF.REF.,RELEV.Y EF.ADIM.'!$P19/'EF.REF.,RELEV.Y EF.ADIM.'!$R19)*(ALT.1!H18/'EF.REF.,RELEV.Y EF.ADIM.'!P19))+'EF.REF.,RELEV.Y EF.ADIM.'!Q$19*('EF.REF.,RELEV.Y EF.ADIM.'!$G20*('EF.REF.,RELEV.Y EF.ADIM.'!$P20/'EF.REF.,RELEV.Y EF.ADIM.'!$R20)*(ALT.1!H19/'EF.REF.,RELEV.Y EF.ADIM.'!P20)))*IF(H$5>$F$31,0,1)*IF($E$2>$H$31,0,1)","v":{"$error":"#DIV/0!"}}]
[null,"SSH","escala cualicuantitativa"]
["RIESGO","SSM","escala cualicuantitativa"]
["(SF C.1)","SSGTR","escala cualicuantitativa"]
[null,"ENTORNO DEL SHM","escala cualicuantitativa"]
["INCONFORT       (SF C.2)","SSH","escala cualicuantitativa"]
[null,"SSGTR","escala cualicuantitativa"]
[null,"ENTORNO DEL SHM","escala cualicuantitativa"]
["PARTICIPACIONES ANUALES DEL FACTOR PROTECCIÓN",null,null,{"$f":"+('EF.REF.,RELEV.Y EF.ADIM.'!I$22*('EF.REF.,RELEV.Y EF.ADIM.'!$G21*('EF.REF.,RELEV.Y EF.ADIM.'!$H21/'EF.REF.,RELEV.Y EF.ADIM.'!$R21)*(ALT.1!D21/'EF.REF.,RELEV.Y EF.ADIM.'!H21)) +'EF.REF.,RELEV.Y EF.ADIM.'!I$22*('EF.REF.,RELEV.Y EF.ADIM.'!$G22*('EF.REF.,RELEV.Y EF.ADIM.'!$H22/'EF.REF.,RELEV.Y EF.ADIM.'!$R22)*(ALT.1!D22/'EF.REF.,RELEV.Y EF.ADIM.'!H22))+'EF.REF.,RELEV.Y EF.ADIM.'!I$22*('EF.REF.,RELEV.Y EF.ADIM.'!$G23*('EF.REF.,RELEV.Y EF.ADIM.'!$H23/'EF.REF.,RELEV.Y EF.ADIM.'!$R23)*(ALT.1!D23/'EF.REF.,RELEV.Y EF.ADIM.'!H23))+'EF.REF.,RELEV.Y EF.ADIM.'!I$22*('EF.REF.,RELEV.Y EF.ADIM.'!$G24*('EF.REF.,RELEV.Y EF.ADIM.'!$H24/'EF.REF.,RELEV.Y EF.ADIM.'!$R24)*(ALT.1!D24/'EF.REF.,RELEV.Y EF.ADIM.'!H24))+'EF.REF.,RELEV.Y EF.ADIM.'!I$26*('EF.REF.,RELEV.Y EF.ADIM.'!$G25*('EF.REF.,RELEV.Y EF.ADIM.'!$H25/'EF.REF.,RELEV.Y EF.ADIM.'!$R25)*(ALT.1!D25/'EF.REF.,RELEV.Y EF.ADIM.'!H25))+'EF.REF.,RELEV.Y EF.ADIM.'!I$26*('EF.REF.,RELEV.Y EF.ADIM.'!$G26*('EF.REF.,RELEV.Y EF.ADIM.'!$H26/'EF.REF.,RELEV.Y EF.ADIM.'!$R26)*(ALT.1!D26/'EF.REF.,RELEV.Y EF.ADIM.'!H26))+'EF.REF.,RELEV.Y EF.ADIM.'!I$26*('EF.REF.,RELEV.Y EF.ADIM.'!$G27*('EF.REF.,RELEV.Y EF.ADIM.'!$H27/'EF.REF.,RELEV.Y EF.ADIM.'!$R27)*(ALT.1!D26/'EF.REF.,RELEV.Y EF.ADIM.'!H27)))*IF(D$5>$F$31,0,1)*IF($E$2>$H$31,0,1)","v":{"$error":"#DIV/0!"}},{"$f":"+('EF.REF.,RELEV.Y EF.ADIM.'!K$22*('EF.REF.,RELEV.Y EF.ADIM.'!$G21*('EF.REF.,RELEV.Y EF.ADIM.'!$J21/'EF.REF.,RELEV.Y EF.ADIM.'!$R21)*(ALT.1!E21/'EF.REF.,RELEV.Y EF.ADIM.'!J21)) +'EF.REF.,RELEV.Y EF.ADIM.'!K$22*('EF.REF.,RELEV.Y EF.ADIM.'!$G22*('EF.REF.,RELEV.Y EF.ADIM.'!$J22/'EF.REF.,RELEV.Y EF.ADIM.'!$R22)*(ALT.1!E22/'EF.REF.,RELEV.Y EF.ADIM.'!J22))+'EF.REF.,RELEV.Y EF.ADIM.'!K$22*('EF.REF.,RELEV.Y EF.ADIM.'!$G23*('EF.REF.,RELEV.Y EF.ADIM.'!$J23/'EF.REF.,RELEV.Y EF.ADIM.'!$R23)*(ALT.1!E23/'EF.REF.,RELEV.Y EF.ADIM.'!J23))+'EF.REF.,RELEV.Y EF.ADIM.'!K$22*('EF.REF.,RELEV.Y EF.ADIM.'!$G24*('EF.REF.,RELEV.Y EF.ADIM.'!$J24/'EF.REF.,RELEV.Y EF.ADIM.'!$R24)*(ALT.1!E24/'EF.REF.,RELEV.Y EF.ADIM.'!J24))+'EF.REF.,RELEV.Y EF.ADIM.'!K$26*('EF.REF.,RELEV.Y EF.ADIM.'!$G25*('EF.REF.,RELEV.Y EF.ADIM.'!$J25/'EF.REF.,RELEV.Y EF.ADIM.'!$R25)*(ALT.1!E25/'EF.REF.,RELEV.Y EF.ADIM.'!J25))+'EF.REF.,RELEV.Y EF.ADIM.'!K$26*('EF.REF.,RELEV.Y EF.ADIM.'!$G26*('EF.REF.,RELEV.Y EF.ADIM.'!$J26/'EF.REF.,RELEV.Y EF.ADIM.'!$R26)*(ALT.1!E26/'EF.REF.,RELEV.Y EF.ADIM.'!J26))+'EF.REF.,RELEV.Y EF.ADIM.'!K$26*('EF.REF.,RELEV.Y EF.ADIM.'!$G27*('EF.REF.,RELEV.Y EF.ADIM.'!$J27/'EF.REF.,RELEV.Y EF.ADIM.'!$R27)*(ALT.1!E26/'EF.REF.,RELEV.Y EF.ADIM.'!J27)))*IF(E$5>$F$31,0,1)*IF($E$2>$H$31,0,1)","v":{"$error":"#DIV/0!"}},{"$f":"+('EF.REF.,RELEV.Y EF.ADIM.'!M$22*('EF.REF.,RELEV.Y EF.ADIM.'!$G21*('EF.REF.,RELEV.Y EF.ADIM.'!$L21/'EF.REF.,RELEV.Y EF.ADIM.'!$R21)*(ALT.1!F21/'EF.REF.,RELEV.Y EF.ADIM.'!L21)) +'EF.REF.,RELEV.Y EF.ADIM.'!M$22*('EF.REF.,RELEV.Y EF.ADIM.'!$G22*('EF.REF.,RELEV.Y EF.ADIM.'!$L22/'EF.REF.,RELEV.Y EF.ADIM.'!$R22)*(ALT.1!F22/'EF.REF.,RELEV.Y EF.ADIM.'!L22))+'EF.REF.,RELEV.Y EF.ADIM.'!M$22*('EF.REF.,RELEV.Y EF.ADIM.'!$G23*('EF.REF.,RELEV.Y EF.ADIM.'!$L23/'EF.REF.,RELEV.Y EF.ADIM.'!$R23)*(ALT.1!F23/'EF.REF.,RELEV.Y EF.ADIM.'!L23))+'EF.REF.,RELEV.Y EF.ADIM.'!M$22*('EF.REF.,RELEV.Y EF.ADIM.'!$G24*('EF.REF.,RELEV.Y EF.ADIM.'!$L24/'EF.REF.,RELEV.Y EF.ADIM.'!$R24)*(ALT.1!F24/'EF.REF.,RELEV.Y EF.ADIM.'!L24))+'EF.REF.,RELEV.Y EF.ADIM.'!M$26*('EF.REF.,RELEV.Y EF.ADIM.'!$G25*('EF.REF.,RELEV.Y EF.ADIM.'!$L25/'EF.REF.,RELEV.Y EF.ADIM.'!$R25)*(ALT.1!F25/'EF.REF.,RELEV.Y EF.ADIM.'!L25))+'EF.REF.,RELEV.Y EF.ADIM.'!M$26*('EF.REF.,RELEV.Y EF.ADIM.'!$G26*('EF.REF.,RELEV.Y EF.ADIM.'!$L26/'EF.REF.,RELEV.Y EF.ADIM.'!$R26)*(ALT.1!F26/'EF.REF.,RELEV.Y EF.ADIM.'!L26))+'EF.REF.,RELEV.Y EF.ADIM.'!M$26*('EF.REF.,RELEV.Y EF.ADIM.'!$G27*('EF.REF.,RELEV.Y EF.ADIM.'!$L27/'EF.REF.,RELEV.Y EF.ADIM.'!$R27)*(ALT.1!F26/'EF.REF.,RELEV.Y EF.ADIM.'!L27)))*IF(F$5>$F$31,0,1)*IF($E$2>$H$31,0,1)","v":{"$error":"#DIV/0!"}},{"$f":"+('EF.REF.,RELEV.Y EF.ADIM.'!O$22*('EF.REF.,RELEV.Y EF.ADIM.'!$G21*('EF.REF.,RELEV.Y EF.ADIM.'!$N21/'EF.REF.,RELEV.Y EF.ADIM.'!$R21)*(ALT.1!G21/'EF.REF.,RELEV.Y EF.ADIM.'!N21)) +'EF.REF.,RELEV.Y EF.ADIM.'!O$22*('EF.REF.,RELEV.Y EF.ADIM.'!$G22*('EF.REF.,RELEV.Y EF.ADIM.'!$N22/'EF.REF.,RELEV.Y EF.ADIM.'!$R22)*(ALT.1!G22/'EF.REF.,RELEV.Y EF.ADIM.'!N22))+'EF.REF.,RELEV.Y EF.ADIM.'!O$22*('EF.REF.,RELEV.Y EF.ADIM.'!$G23*('EF.REF.,RELEV.Y EF.ADIM.'!$N23/'EF.REF.,RELEV.Y EF.ADIM.'!$R23)*(ALT.1!G23/'EF.REF.,RELEV.Y EF.ADIM.'!N23))+'EF.REF.,RELEV.Y EF.ADIM.'!O$22*('EF.REF.,RELEV.Y EF.ADIM.'!$G24*('EF.REF.,RELEV.Y EF.ADIM.'!$N24/'EF.REF.,RELEV.Y EF.ADIM.'!$R24)*(ALT.1!G24/'EF.REF.,RELEV.Y EF.ADIM.'!N24))+'EF.REF.,RELEV.Y EF.ADIM.'!O$26*('EF.REF.,RELEV.Y EF.ADIM.'!$G25*('EF.REF.,RELEV.Y EF.ADIM.'!$N25/'EF.REF.,RELEV.Y EF.ADIM.'!$R25)*(ALT.1!G25/'EF.REF.,RELEV.Y EF.ADIM.'!N25))+'EF.REF.,RELEV.Y EF.ADIM.'!O$26*('EF.REF.,RELEV.Y EF.ADIM.'!$G26*('EF.REF.,RELEV.Y EF.ADIM.'!$N26/'EF.REF.,RELEV.Y EF.ADIM.'!$R26)*(ALT.1!G26/'EF.REF.,RELEV.Y EF.ADIM.'!N26))+'EF.REF.,RELEV.Y EF.ADIM.'!O$26*('EF.REF.,RELEV.Y EF.ADIM.'!$G27*('EF.REF.,RELEV.Y EF.ADIM.'!$N27/'EF.REF.,RELEV.Y EF.ADIM.'!$R27)*(ALT.1!G26/'EF.REF.,RELEV.Y EF.ADIM.'!N27)))*IF(G$5>$F$31,0,1)*IF($E$2>$H$31,0,1)","v":{"$error":"#DIV/0!"}},{"$f":"+('EF.REF.,RELEV.Y EF.ADIM.'!Q$22*('EF.REF.,RELEV.Y EF.ADIM.'!$G21*('EF.REF.,RELEV.Y EF.ADIM.'!$P21/'EF.REF.,RELEV.Y EF.ADIM.'!$R21)*(ALT.1!H21/'EF.REF.,RELEV.Y EF.ADIM.'!P21)) +'EF.REF.,RELEV.Y EF.ADIM.'!Q$22*('EF.REF.,RELEV.Y EF.ADIM.'!$G22*('EF.REF.,RELEV.Y EF.ADIM.'!$P22/'EF.REF.,RELEV.Y EF.ADIM.'!$R22)*(ALT.1!H22/'EF.REF.,RELEV.Y EF.ADIM.'!P22))+'EF.REF.,RELEV.Y EF.ADIM.'!Q$22*('EF.REF.,RELEV.Y EF.ADIM.'!$G23*('EF.REF.,RELEV.Y EF.ADIM.'!$P23/'EF.REF.,RELEV.Y EF.ADIM.'!$R23)*(ALT.1!H23/'EF.REF.,RELEV.Y EF.ADIM.'!P23))+'EF.REF.,RELEV.Y EF.ADIM.'!Q$22*('EF.REF.,RELEV.Y EF.ADIM.'!$G24*('EF.REF.,RELEV.Y EF.ADIM.'!$P24/'EF.REF.,RELEV.Y EF.ADIM.'!$R24)*(ALT.1!H24/'EF.REF.,RELEV.Y EF.ADIM.'!P24))+'EF.REF.,RELEV.Y EF.ADIM.'!Q$26*('EF.REF.,RELEV.Y EF.ADIM.'!$G25*('EF.REF.,RELEV.Y EF.ADIM.'!$P25/'EF.REF.,RELEV.Y EF.ADIM.'!$R25)*(ALT.1!H25/'EF.REF.,RELEV.Y EF.ADIM.'!P25))+'EF.REF.,RELEV.Y EF.ADIM.'!Q$26*('EF.REF.,RELEV.Y EF.ADIM.'!$G26*('EF.REF.,RELEV.Y EF.ADIM.'!$P26/'EF.REF.,RELEV.Y EF.ADIM.'!$R26)*(ALT.1!H26/'EF.REF.,RELEV.Y EF.ADIM.'!P26))+'EF.REF.,RELEV.Y EF.ADIM.'!Q$26*('EF.REF.,RELEV.Y EF.ADIM.'!$G27*('EF.REF.,RELEV.Y EF.ADIM.'!$P27/'EF.REF.,RELEV.Y EF.ADIM.'!$R27)*(ALT.1!H26/'EF.REF.,RELEV.Y EF.ADIM.'!P27)))*IF(H$5>$F$31,0,1)*IF($E$2>$H$31,0,1)","v":{"$error":"#DIV/0!"}}]
["NÚMERO TOTAL DE SHM",null,"pu",{"$f":"+IF(D13<'EF.REF.,RELEV.Y EF.ADIM.'!$H$28,INT('EF.REF.,RELEV.Y EF.ADIM.'!$H$28/ALT.1!D13+0.9999),1)","v":1},{"$f":"+IF(E13<'EF.REF.,RELEV.Y EF.ADIM.'!$J$28,INT('EF.REF.,RELEV.Y EF.ADIM.'!$J$28/ALT.1!E13+0.9999),1)","v":1},{"$f":"+IF(F13<'EF.REF.,RELEV.Y EF.ADIM.'!$L$28,INT('EF.REF.,RELEV.Y EF.ADIM.'!$L$28/ALT.1!F13+0.9999),1)","v":1},{"$f":"+IF(G13<'EF.REF.,RELEV.Y EF.ADIM.'!$N$28,INT('EF.REF.,RELEV.Y EF.ADIM.'!$N$28/ALT.1!G13+0.9999),1)","v":1},{"$f":"+IF(H13<'EF.REF.,RELEV.Y EF.ADIM.'!$P$28,INT('EF.REF.,RELEV.Y EF.ADIM.'!$P$28/ALT.1!H13+0.9999),1)","v":1}]
["   ANUALIDADES RELATIVAS DE CONVENIENCIA ACTUALIZADAS",null,null,{"$f":"+D12+D20+D28","v":{"$error":"#DIV/0!"}},{"$f":"+E12+E20+E28","v":{"$error":"#DIV/0!"}},{"$error":"#DIV/0!"},{"$error":"#DIV/0!"},{"$error":"#DIV/0!"}]
["   INDICE RELATIVO DE CONVENIENCIA ALTERNATIVA 1",null,null,{"$f":"+IF($E$2<>\"VACÍA\",($D$30+$E$30+$F$30+G30+H30),-999999)","v":{"$error":"#DIV/0!"}},"Nº DE AÑOS",{"$f":"+'EF.REF.,RELEV.Y EF.ADIM.'!$L$5","v":1},"Nª DE ALTS",{"$f":"+'EF.REF.,RELEV.Y EF.ADIM.'!$Q$5","v":1}]

{"sheet":"ALT.2","index":5,"n_rows":31,"n_cols":8,"rows_kept":31,"cut":false,"hidden":false,"merged":[[30,0,30,2],[4,0,5,1],[6,0,10,0],[12,0,14,0],[24,0,26,0],[28,0,28,1],[29,0,29,2],[11,0,11,2],[19,0,19,2],[27,0,27,2],[15,0,16,0],[5,3,5,7],[0,2,0,7],[1,3,2,3],[1,0,2,0],[1,4,2,4],[3,0,3,1],[3,2,3,7],[1,6,2,7],[1,1,2,2]]}
["i","i","programa evalerg AdEA"]
["DENOMINACIÓN        EVALUACIÓN",{"$f":"+'EF.REF.,RELEV.Y EF.ADIM.'!E2","v":0},null,{"$f":"+IF(H31>=2,\"ALTERNATIVA\",\" ALTERNATIVA \")","v":" ALTERNATIVA "},{"$f":"+IF($H$31>=2,2,\"VACÍA\")","v":"VACÍA"},"DENOMINAC. ",{"$f":"+COSTOS!B8","v":"Escribir denominación alternativa 2"}]
[null,null,null,null,null,"ALTERNATIVA"]
[{"$f":"+IF(D2=\"ALTERNATIVA\",\"DESCRIPCIÓN:\",\"SIN DESCRIPCIÓN\")","v":"SIN DESCRIPCIÓN"}]
["FACTORES Y SUBFACTORES",null,"AÑOS:",1,2,3,4,5]
[null,null,"ESC. MEDIC. EFECT.","EFECTOS ANUALES"]
["PARTICIPACION                         (F A)","OCUPACION","nro. de SSH por SHM"]
[null,"PARTICIPACION CREATIVA","escala cualicuantitativa"]
[null,"PARTICIPACION ECONOMICA","(um/año)promedio",{"$f":"+COSTOS!$C$18","v":9.9999999999999995E-8},{"$f":"+COSTOS!$C$18","v":9.9999999999999995E-8},{"$f":"+COSTOS!$C$18","v":9.9999999999999995E-8},{"$f":"+COSTOS!$C$18","v":9.9999999999999995E-8},{"$f":"+COSTOS!$C$18","v":9.9999999999999995E-8}]
[null,"PARTICIPACION PSICOSOCIAL","escala cualicuantitativa"]
[null,"PARTICIPACION DECISIONAL","escala cualicuantitativa"]
["PARTICIPACIONES ANUALES DEL FACTOR PARTICIPACIÓN",null,null,{"$f":"+(D$29*'EF.REF.,RELEV.Y EF.ADIM.'!I$10*ALT.2!D7/'EF.REF.,RELEV.Y EF.ADIM.'!H9)*(('EF.REF.,RELEV.Y EF.ADIM.'!$G10*('EF.REF.,RELEV.Y EF.ADIM.'!H10/'EF.REF.,RELEV.Y EF.ADIM.'!$R10)*(ALT.2!D8/'EF.REF.,RELEV.Y EF.ADIM.'!H10))+('EF.REF.,RELEV.Y EF.ADIM.'!$G11*('EF.REF.,RELEV.Y EF.ADIM.'!H11/'EF.REF.,RELEV.Y EF.ADIM.'!$R11)*(ALT.2!D9/'EF.REF.,RELEV.Y EF.ADIM.'!H11))+('EF.REF.,RELEV.Y EF.ADIM.'!$G12*('EF.REF.,RELEV.Y EF.ADIM.'!H12/'EF.REF.,RELEV.Y EF.ADIM.'!$R12)*(ALT.2!D10/'EF.REF.,RELEV.Y EF.ADIM.'!H12))+('EF.REF.,RELEV.Y EF.ADIM.'!$G13*('EF.REF.,RELEV.Y EF.ADIM.'!H13/'EF.REF.,RELEV.Y EF.ADIM.'!$R13)*(ALT.2!D11/'EF.REF.,RELEV.Y EF.ADIM.'!H13))) *IF(D$5>$F$31,0,1)*IF($E$2>$H$31,0,1)","v":{"$error":"#DIV/0!"}},{"$f":"+(E$29*'EF.REF.,RELEV.Y EF.ADIM.'!K$10*ALT.2!E7/'EF.REF.,RELEV.Y EF.ADIM.'!J9)*(('EF.REF.,RELEV.Y EF.ADIM.'!$G10*('EF.REF.,RELEV.Y EF.ADIM.'!J10/'EF.REF.,RELEV.Y EF.ADIM.'!$R10)*(ALT.2!E8/'EF.REF.,RELEV.Y EF.ADIM.'!J10))+('EF.REF.,RELEV.Y EF.ADIM.'!$G11*('EF.REF.,RELEV.Y EF.ADIM.'!J11/'EF.REF.,RELEV.Y EF.ADIM.'!$R11)*(ALT.2!E9/'EF.REF.,RELEV.Y EF.ADIM.'!J11))+('EF.REF.,RELEV.Y EF.ADIM.'!$G12*('EF.REF.,RELEV.Y EF.ADIM.'!J12/'EF.REF.,RELEV.Y EF.ADIM.'!$R12)*(ALT.2!E10/'EF.REF.,RELEV.Y EF.ADIM.'!J12))+('EF.REF.,RELEV.Y EF.ADIM.'!$G13*('EF.REF.,RELEV.Y EF.ADIM.'!J13/'EF.REF.,RELEV.Y EF.ADIM.'!$R13)*(ALT.2!E11/'EF.REF.,RELEV.Y EF.ADIM.'!J13))) *IF(E$5>$F$31,0,1)*IF($E$2>$H$31,0,1)","v":{"$error":"#DIV/0!"}},{"$f":"+(F$29*'EF.REF.,RELEV.Y EF.ADIM.'!M$10*ALT.2!F7/'EF.REF.,RELEV.Y EF.ADIM.'!L9)*(('EF.REF.,RELEV.Y EF.ADIM.'!$G10*('EF.REF.,RELEV.Y EF.ADIM.'!L10/'EF.REF.,RELEV.Y EF.ADIM.'!$R10)*(ALT.2!F8/'EF.REF.,RELEV.Y EF.ADIM.'!L10))+('EF.REF.,RELEV.Y EF.ADIM.'!$G11*('EF.REF.,RELEV.Y EF.ADIM.'!L11/'EF.REF.,RELEV.Y EF.ADIM.'!$R11)*(ALT.2!F9/'EF.REF.,RELEV.Y EF.ADIM.'!L11))+('EF.REF.,RELEV.Y EF.ADIM.'!$G12*('EF.REF.,RELEV.Y EF.ADIM.'!L12/'EF.REF.,RELEV.Y EF.ADIM.'!$R12)*(ALT.2!F10/'EF.REF.,RELEV.Y EF.ADIM.'!L12))+('EF.REF.,RELEV.Y EF.ADIM.'!$G13*('EF.REF.,RELEV.Y EF.ADIM.'!L13/'EF.REF.,RELEV.Y EF.ADIM.'!$R13)*(ALT.2!F11/'EF.REF.,RELEV.Y EF.ADIM.'!L13))) *IF(F$5>$F$31,0,1)*IF($E$2>$H$31,0,1)","v":{"$error":"#DIV/0!"}},{"$f":"+(G$29*'EF.REF.,RELEV.Y EF.ADIM.'!O$10*ALT.2!G7/'EF.REF.,RELEV.Y EF.ADIM.'!N9)*(('EF.REF.,RELEV.Y EF.ADIM.'!$G10*('EF.REF.,RELEV.Y EF.ADIM.'!N10/'EF.REF.,RELEV.Y EF.ADIM.'!$R10)*(ALT.2!G8/'EF.REF.,RELEV.Y EF.ADIM.'!N10))+('EF.REF.,RELEV.Y EF.ADIM.'!$G11*('EF.REF.,RELEV.Y EF.ADIM.'!N11/'EF.REF.,RELEV.Y EF.ADIM.'!$R11)*(ALT.2!G9/'EF.REF.,RELEV.Y EF.ADIM.'!N11))+('EF.REF.,RELEV.Y EF.ADIM.'!$G12*('EF.REF.,RELEV.Y EF.ADIM.'!N12/'EF.REF.,RELEV.Y EF.ADIM.'!$R12)*(ALT.2!G10/'EF.REF.,RELEV.Y EF.ADIM.'!N12))+('EF.REF.,RELEV.Y EF.ADIM.'!$G13*('EF.REF.,RELEV.Y EF.ADIM.'!N13/'EF.REF.,RELEV.Y EF.ADIM.'!$R13)*(ALT.2!G11/'EF.REF.,RELEV.Y EF.ADIM.'!N13))) *IF(G$5>$F$31,0,1)*IF($E$2>$H$31,0,1)","v":{"$error":"#DIV/0!"}},{"$f":"+(H$29*'EF.REF.,RELEV.Y EF.ADIM.'!Q$10*ALT.2!H7/'EF.REF.,RELEV.Y EF.ADIM.'!P9)*(('EF.REF.,RELEV.Y EF.ADIM.'!$G10*('EF.REF.,RELEV.Y EF.ADIM.'!P10/'EF.REF.,RELEV.Y EF.ADIM.'!$R10)*(ALT.2!H8/'EF.REF.,RELEV.Y EF.ADIM.'!P10))+('EF.REF.,RELEV.Y EF.ADIM.'!$G11*('EF.REF.,RELEV.Y EF.ADIM.'!P11/'EF.REF.,RELEV.Y EF.ADIM.'!$R11)*(ALT.2!H9/'EF.REF.,RELEV.Y EF.ADIM.'!P11))+('EF.REF.,RELEV.Y EF.ADIM.'!$G12*('EF.REF.,RELEV.Y EF.ADIM.'!P12/'EF.REF.,RELEV.Y EF.ADIM.'!$R12)*(ALT.2!H10/'EF.REF.,RELEV.Y EF.ADIM.'!P12))+('EF.REF.,RELEV.Y EF.ADIM.'!$G13*('EF.REF.,RELEV.Y EF.ADIM.'!P13/'EF.REF.,RELEV.Y EF.ADIM.'!$R13)*(ALT.2!H11/'EF.REF.,RELEV.Y EF.ADIM.'!P13))) *IF(H$5>$F$31,0,1)*IF($E$2>$H$31,0,1)","v":{"$error":"#DIV/0!"}}]
["EFICACIA                               (F B)","CAPACIDAD UNITARIA DE PRODUC.","up/año"]
[null,"CALIDAD","escala cualicuantitativa"]
[null,"FIABILIDAD OPERATIVA","1 - tasa de fallas"]
["SUSTENTABI-  LIDAD (SF B2)","ELASTICIDAD CUANTITATIVA","escala cualicuantitativa"]
[null,"ADAPTABILIDAD CUALITATIVA","escala cualicuantitativa"]
["EFICIENCIA","COSTO POR INVERS. UNITARIO","um/up",{"$f":"-COSTOS!$F$8*D29/'EF.REF.,RELEV.Y EF.ADIM.'!$H$28","v":{"$error":"#DIV/0!"}},{"$f":"-COSTOS!$F$8*E29/'EF.REF.,RELEV.Y EF.ADIM.'!$J$28","v":{"$error":"#DIV/0!"}},{"$f":"-COSTOS!$F$8*F29/'EF.REF.,RELEV.Y EF.ADIM.'!$L$28","v":{"$error":"#DIV/0!"}},{"$f":"-COSTOS!$F$8*G29/'EF.REF.,RELEV.Y EF.ADIM.'!$N$28","v":{"$error":"#DIV/0!"}},{"$f":"-COSTOS!$F$8*H29/'EF.REF.,RELEV.Y EF.ADIM.'!$P$28","v":{"$error":"#DIV/0!"}}]
["(SF B.3)","COSTO OPERATIVO UNITARIO","um/up",{"$f":"-(COSTOS!$H$18*D29/'EF.REF.,RELEV.Y EF.ADIM.'!$H$28)-COSTOS!$E$28","v":{"$error":"#DIV/0!"}},{"$f":"-(COSTOS!$H$18*E29/'EF.REF.,RELEV.Y EF.ADIM.'!$J$28)-COSTOS!$E$28","v":{"$error":"#DIV/0!"}},{"$f":"-(COSTOS!$H$18*F29/'EF.REF.,RELEV.Y EF.ADIM.'!$L$28)-COSTOS!$E$28","v":{"$error":"#DIV/0!"}},{"$f":"-(COSTOS!$H$18*G29/'EF.REF.,RELEV.Y EF.ADIM.'!$N$28)-COSTOS!$E$28","v":{"$error":"#DIV/0!"}},{"$f":"-(COSTOS!$H$18*H29/'EF.REF.,RELEV.Y EF.ADIM.'!$P$28)-COSTOS!$E$28","v":{"$error":"#DIV/0!"}}]
["PARTICIPACIONES ANUALES DEL FACTOR PRODUCCIÓN",null,null,{"$f":"+('EF.REF.,RELEV.Y EF.ADIM.'!I$15*('EF.REF.,RELEV.Y EF.ADIM.'!$G14*('EF.REF.,RELEV.Y EF.ADIM.'!$H14/'EF.REF.,RELEV.Y EF.ADIM.'!$R14)*(ALT.2!D14/'EF.REF.,RELEV.Y EF.ADIM.'!H14)) +'EF.REF.,RELEV.Y EF.ADIM.'!I$15*('EF.REF.,RELEV.Y EF.ADIM.'!$G15*('EF.REF.,RELEV.Y EF.ADIM.'!$H15/'EF.REF.,RELEV.Y EF.ADIM.'!$R15)*(ALT.2!D15/'EF.REF.,RELEV.Y EF.ADIM.'!H15))+'EF.REF.,RELEV.Y EF.ADIM.'!I$17*('EF.REF.,RELEV.Y EF.ADIM.'!$G17*('EF.REF.,RELEV.Y EF.ADIM.'!$H16/'EF.REF.,RELEV.Y EF.ADIM.'!$R16)*(ALT.2!D16/'EF.REF.,RELEV.Y EF.ADIM.'!H16))+'EF.REF.,RELEV.Y EF.ADIM.'!I$17*('EF.REF.,RELEV.Y EF.ADIM.'!$G19*('EF.REF.,RELEV.Y EF.ADIM.'!$H17/'EF.REF.,RELEV.Y EF.ADIM.'!$R17)*(ALT.2!D17/'EF.REF.,RELEV.Y EF.ADIM.'!H17))+'EF.REF.,RELEV.Y EF.ADIM.'!I$19*('EF.REF.,RELEV.Y EF.ADIM.'!$G14*('EF.REF.,RELEV.Y EF.ADIM.'!$H19/'EF.REF.,RELEV.Y EF.ADIM.'!$R19)*(ALT.2!D18/'EF.REF.,RELEV.Y EF.ADIM.'!H19))+'EF.REF.,RELEV.Y EF.ADIM.'!I$19*('EF.REF.,RELEV.Y EF.ADIM.'!$G20*('EF.REF.,RELEV.Y EF.ADIM.'!$H20/'EF.REF.,RELEV.Y EF.ADIM.'!$R20)*(ALT.2!D19/'EF.REF.,RELEV.Y EF.ADIM.'!H20)))*IF(D$5>$F$31,0,1)*IF($E$2>$H$31,0,1)\n\n+('EF.REF.,RELEV.Y EF.ADIM.'!I$15*('EF.REF.,RELEV.Y EF.ADIM.'!$G14*('EF.REF.,RELEV.Y EF.ADIM.'!$H14/'EF.REF.,RELEV.Y EF.ADIM.'!$R14)*(ALT.2!D14/'EF.REF.,RELEV.Y EF.ADIM.'!H14)) +'EF.REF.,RELEV.Y EF.ADIM.'!I$15*('EF.REF.,RELEV.Y EF.ADIM.'!$G15*('EF.REF.,RELEV.Y EF.ADIM.'!$H15/'EF.REF.,RELEV.Y EF.ADIM.'!$R15)*(ALT.2!D15/'EF.REF.,RELEV.Y EF.ADIM.'!H15))+'EF.REF.,RELEV.Y EF.ADIM.'!I$17*('EF.REF.,RELEV.Y EF.ADIM.'!$G17*('EF.REF.,RELEV.Y EF.ADIM.'!$H16/'EF.REF.,RELEV.Y EF.ADIM.'!$R16)*(ALT.2!D16/'EF.REF.,RELEV.Y EF.ADIM.'!H16))+'EF.REF.,RELEV.Y EF.ADIM.'!I$17*('EF.REF.,RELEV.Y EF.ADIM.'!$G19*('EF.REF.,RELEV.Y EF.ADIM.'!$H17/'EF.REF.,RELEV.Y EF.ADIM.'!$R17)*(ALT.2!D17/'EF.REF.,RELEV.Y EF.ADIM.'!H17))+'EF.REF.,RELEV.Y EF.ADIM.'!I$19*('EF.REF.,RELEV.Y EF.ADIM.'!$G14*('EF.REF.,RELEV.Y EF.ADIM.'!$H19/'EF.REF.,RELEV.Y EF.ADIM.'!$R19)*(ALT.2!D18/'EF.REF.,RELEV.Y EF.ADIM.'!H19))+'EF.REF.,RELEV.Y EF.ADIM.'!I$19*('EF.REF.,RELEV.Y EF.ADIM.'!$G20*('EF.REF.,RELEV.Y EF.ADIM.'!$H20/'EF.REF.,RELEV.Y EF.ADIM.'!$R20)*(ALT.2!D19/'EF.REF.,RELEV.Y EF.ADIM.'!H20)))*IF(D$5>$F$31,0,1)*IF($E$2>$H$31,0,1)","v":{"$error":"#DIV/0!"}},{"$f":"+('EF.REF.,RELEV.Y EF.ADIM.'!K$15*('EF.REF.,RELEV.Y EF.ADIM.'!$G14*('EF.REF.,RELEV.Y EF.ADIM.'!$J14/'EF.REF.,RELEV.Y EF.ADIM.'!$R14)*(ALT.2!E14/'EF.REF.,RELEV.Y EF.ADIM.'!J14)) +'EF.REF.,RELEV.Y EF.ADIM.'!K$15*('EF.REF.,RELEV.Y EF.ADIM.'!$G15*('EF.REF.,RELEV.Y EF.ADIM.'!$J15/'EF.REF.,RELEV.Y EF.ADIM.'!$R15)*(ALT.2!E15/'EF.REF.,RELEV.Y EF.ADIM.'!J15))+'EF.REF.,RELEV.Y EF.ADIM.'!K$17*('EF.REF.,RELEV.Y EF.ADIM.'!$G17*('EF.REF.,RELEV.Y EF.ADIM.'!$J16/'EF.REF.,RELEV.Y EF.ADIM.'!$R16)*(ALT.2!E16/'EF.REF.,RELEV.Y EF.ADIM.'!J16))+'EF.REF.,RELEV.Y EF.ADIM.'!K$17*('EF.REF.,RELEV.Y EF.ADIM.'!$G19*('EF.REF.,RELEV.Y EF.ADIM.'!$J17/'EF.REF.,RELEV.Y EF.ADIM.'!$R17)*(ALT.2!E17/'EF.REF.,RELEV.Y EF.ADIM.'!J17))+'EF.REF.,RELEV.Y EF.ADIM.'!K$19*('EF.REF.,RELEV.Y EF.ADIM.'!$G14*('EF.REF.,RELEV.Y EF.ADIM.'!$J19/'EF.REF.,RELEV.Y EF.ADIM.'!$R19)*(ALT.2!E18/'EF.REF.,RELEV.Y EF.ADIM.'!J19))+'EF.REF.,RELEV.Y EF.ADIM.'!K$19*('EF.REF.,RELEV.Y EF.ADIM.'!$G20*('EF.REF.,RELEV.Y EF.ADIM.'!$J20/'EF.REF.,RELEV.Y EF.ADIM.'!$R20)*(ALT.2!E19/'EF.REF.,RELEV.Y EF.ADIM.'!J20)))*IF(E$5>$F$31,0,1)*IF($E$2>$H$31,0,1)","v":{"$error":"#DIV/0!"}},{"$f":"+('EF.REF.,RELEV.Y EF.ADIM.'!M$15*('EF.REF.,RELEV.Y EF.ADIM.'!$G14*('EF.REF.,RELEV.Y EF.ADIM.'!$L14/'EF.REF.,RELEV.Y EF.ADIM.'!$R14)*(ALT.2!F14/'EF.REF.,RELEV.Y EF.ADIM.'!L14)) +'EF.REF.,RELEV.Y EF.ADIM.'!M$15*('EF.REF.,RELEV.Y EF.ADIM.'!$G15*('EF.REF.,RELEV.Y EF.ADIM.'!$L15/'EF.REF.,RELEV.Y EF.ADIM.'!$R15)*(ALT.2!F15/'EF.REF.,RELEV.Y EF.ADIM.'!L15))+'EF.REF.,RELEV.Y EF.ADIM.'!M$17*('EF.REF.,RELEV.Y EF.ADIM.'!$G17*('EF.REF.,RELEV.Y EF.ADIM.'!$L16/'EF.REF.,RELEV.Y EF.ADIM.'!$R16)*(ALT.2!F16/'EF.REF.,RELEV.Y EF.ADIM.'!L16))+'EF.REF.,RELEV.Y EF.ADIM.'!M$17*('EF.REF.,RELEV.Y EF.ADIM.'!$G19*('EF.REF.,RELEV.Y EF.ADIM.'!$L17/'EF.REF.,RELEV.Y EF.ADIM.'!$R17)*(ALT.2!F17/'EF.REF.,RELEV.Y EF.ADIM.'!L17))+'EF.REF.,RELEV.Y EF.ADIM.'!M$19*('EF.REF.,RELEV.Y EF.ADIM.'!$G14*('EF.REF.,RELEV.Y EF.ADIM.'!$L19/'EF.REF.,RELEV.Y EF.ADIM.'!$R19)*(ALT.2!F18/'EF.REF.,RELEV.Y EF.ADIM.'!L19))+'EF.REF.,RELEV.Y EF.ADIM.'!M$19*('EF.REF.,RELEV.Y EF.ADIM.'!$G20*('EF.REF.,RELEV.Y EF.ADIM.'!$L20/'EF.REF.,RELEV.Y EF.ADIM.'!$R20)*(ALT.2!F19/'EF.REF.,RELEV.Y EF.ADIM.'!L20)))*IF(F$5>$F$31,0,1)*IF($E$2>$H$31,0,1)","v":{"$error":"#DIV/0!"}},{"$f":"+('EF.REF.,RELEV.Y EF.ADIM.'!O$15*('EF.REF.,RELEV.Y EF.ADIM.'!$G14*('EF.REF.,RELEV.Y EF.ADIM.'!$N14/'EF.REF.,RELEV.Y EF.ADIM.'!$R14)*(ALT.2!G14/'EF.REF.,RELEV.Y EF.ADIM.'!N14)) +'EF.REF.,RELEV.Y EF.ADIM.'!O$15*('EF.REF.,RELEV.Y EF.ADIM.'!$G15*('EF.REF.,RELEV.Y EF.ADIM.'!$N15/'EF.REF.,RELEV.Y EF.ADIM.'!$R15)*(ALT.2!G15/'EF.REF.,RELEV.Y EF.ADIM.'!N15))+'EF.REF.,RELEV.Y EF.ADIM.'!O$17*('EF.REF.,RELEV.Y EF.ADIM.'!$G17*('EF.REF.,RELEV.Y EF.ADIM.'!$N16/'EF.REF.,RELEV.Y EF.ADIM.'!$R16)*(ALT.2!G16/'EF.REF.,RELEV.Y EF.ADIM.'!N16))+'EF.REF.,RELEV.Y EF.ADIM.'!O$17*('EF.REF.,RELEV.Y EF.ADIM.'!$G19*('EF.REF.,RELEV.Y EF.ADIM.'!$N17/'EF.REF.,RELEV.Y EF.ADIM.'!$R17)*(ALT.2!G17/'EF.REF.,RELEV.Y EF.ADIM.'!N17))+'EF.REF.,RELEV.Y EF.ADIM.'!O$19*('EF.REF.,RELEV.Y EF.ADIM.'!$G14*('EF.REF.,RELEV.Y EF.ADIM.'!$N19/'EF.REF.,RELEV.Y EF.ADIM.'!$R19)*(ALT.2!G18/'EF.REF.,RELEV.Y EF.ADIM.'!N19))+'EF.REF.,RELEV.Y EF.ADIM.'!O$19*('EF.REF.,RELEV.Y EF.ADIM.'!$G20*('EF.REF.,RELEV.Y EF.ADIM.'!$N20/'EF.REF.,RELEV.Y EF.ADIM.'!$R20)*(ALT.2!G19/'EF.REF.,RELEV.Y EF.ADIM.'!N20)))*IF(G$5>$F$31,0,1)*IF($E$2>$H$31,0,1)","v":{"$error":"#DIV/0!"}},{"$f":"+('EF.REF.,RELEV.Y EF.ADIM.'!Q$15*('EF.REF.,RELEV.Y EF.ADIM.'!$G14*('EF.REF.,RELEV.Y EF.ADIM.'!$P14/'EF.REF.,RELEV.Y EF.ADIM.'!$R14)*(ALT.2!H14/'EF.REF.,RELEV.Y EF.ADIM.'!P14)) +'EF.REF.,RELEV.Y EF.ADIM.'!Q$15*('EF.REF.,RELEV.Y EF.ADIM.'!$G15*('EF.REF.,RELEV.Y EF.ADIM.'!$P15/'EF.REF.,RELEV.Y EF.ADIM.'!$R15)*(ALT.2!H15/'EF.REF.,RELEV.Y EF.ADIM.'!P15))+'EF.REF.,RELEV.Y EF.ADIM.'!Q$17*('EF.REF.,RELEV.Y EF.ADIM.'!$G17*('EF.REF.,RELEV.Y EF.ADIM.'!$P16/'EF.REF.,RELEV.Y EF.ADIM.'!$R16)*(ALT.2!H16/'EF.REF.,RELEV.Y EF.ADIM.'!P16))+'EF.REF.,RELEV.Y EF.ADIM.'!Q$17*('EF.REF.,RELEV.Y EF.ADIM.'!$G19*('EF.REF.,RELEV.Y EF.ADIM.'!$P17/'EF.REF.,RELEV.Y EF.ADIM.'!$R17)*(ALT.2!H17/'EF.REF.,RELEV.Y EF.ADIM.'!P17))+'EF.REF.,RELEV.Y EF.ADIM.'!Q$19*('EF.REF.,RELEV.Y EF.ADIM.'!$G14*('EF.REF.,RELEV.Y EF.ADIM.'!$P19/'EF.REF.,RELEV.Y EF.ADIM.'!$R19)*(ALT.2!H18/'EF.REF.,RELEV.Y EF.ADIM.'!P19))+'EF.REF.,RELEV.Y EF.ADIM.'!Q$19*('EF.REF.,RELEV.Y EF.ADIM.'!$G20*('EF.REF.,RELEV.Y EF.ADIM.'!$P20/'EF.REF.,RELEV.Y EF.ADIM.'!$R20)*(ALT.2!H19/'EF.REF.,RELEV.Y EF.ADIM.'!P20)))*IF(H$5>$F$31,0,1)*IF($E$2>$H$31,0,1)","v":{"$error":"#DIV/0!"}}]
[null,"SSH","escala cualicuantitativa"]
["RIESGO","SSM","escala cualicuantitativa"]
["(SF C.1)","SSGTR","escala cualicuantitativa"]
[null,"ENTORNO DEL SHM","escala cualicuantitativa"]
["INCONFORT       (SF C.2)","SSH","escala cualicuantitativa"]
[null,"SSGTR","escala cualicuantitativa"]
[null,"ENTORNO DEL SHM","escala cualicuantitativa"]
["PARTICIPACIONES ANUALES DEL FACTOR PROTECCIÓN",null,null,{"$f":"+('EF.REF.,RELEV.Y EF.ADIM.'!I$22*('EF.REF.,RELEV.Y EF.ADIM.'!$G21*('EF.REF.,RELEV.Y EF.ADIM.'!$H21/'EF.REF.,RELEV.Y EF.ADIM.'!$R21)*(ALT.2!D21/'EF.REF.,RELEV.Y EF.ADIM.'!H21)) +'EF.REF.,RELEV.Y EF.ADIM.'!I$22*('EF.REF.,RELEV.Y EF.ADIM.'!$G22*('EF.REF.,RELEV.Y EF.ADIM.'!$H22/'EF.REF.,RELEV.Y EF.ADIM.'!$R22)*(ALT.2!D22/'EF.REF.,RELEV.Y EF.ADIM.'!H22))+'EF.REF.,RELEV.Y EF.ADIM.'!I$22*('EF.REF.,RELEV.Y EF.ADIM.'!$G23*('EF.REF.,RELEV.Y EF.ADIM.'!$H23/'EF.REF.,RELEV.Y EF.ADIM.'!$R23)*(ALT.2!D23/'EF.REF.,RELEV.Y EF.ADIM.'!H23))+'EF.REF.,RELEV.Y EF.ADIM.'!I$22*('EF.REF.,RELEV.Y EF.ADIM.'!$G24*('EF.REF.,RELEV.Y EF.ADIM.'!$H24/'EF.REF.,RELEV.Y EF.ADIM.'!$R24)*(ALT.2!D24/'EF.REF.,RELEV.Y EF.ADIM.'!H24))+'EF.REF.,RELEV.Y EF.ADIM.'!I$26*('EF.REF.,RELEV.Y EF.ADIM.'!$G25*('EF.REF.,RELEV.Y EF.ADIM.'!$H25/'EF.REF.,RELEV.Y EF.ADIM.'!$R25)*(ALT.2!D25/'EF.REF.,RELEV.Y EF.ADIM.'!H25))+'EF.REF.,RELEV.Y EF.ADIM.'!I$26*('EF.REF.,RELEV.Y EF.ADIM.'!$G26*('EF.REF.,RELEV.Y EF.ADIM.'!$H26/'EF.REF.,RELEV.Y EF.ADIM.'!$R26)*(ALT.2!D26/'EF.REF.,RELEV.Y EF.ADIM.'!H26))+'EF.REF.,RELEV.Y EF.ADIM.'!I$26*('EF.REF.,RELEV.Y EF.ADIM.'!$G27*('EF.REF.,RELEV.Y EF.ADIM.'!$H27/'EF.REF.,RELEV.Y EF.ADIM.'!$R27)*(ALT.2!D26/'EF.REF.,RELEV.Y EF.ADIM.'!H27)))*IF(D$5>$F$31,0,1)*IF($E$2>$H$31,0,1)","v":{"$error":"#DIV/0!"}},{"$f":"+('EF.REF.,RELEV.Y EF.ADIM.'!K$22*('EF.REF.,RELEV.Y EF.ADIM.'!$G21*('EF.REF.,RELEV.Y EF.ADIM.'!$J21/'EF.REF.,RELEV.Y EF.ADIM.'!$R21)*(ALT.2!E21/'EF.REF.,RELEV.Y EF.ADIM.'!J21)) +'EF.REF.,RELEV.Y EF.ADIM.'!K$22*('EF.REF.,RELEV.Y EF.ADIM.'!$G22*('EF.REF.,RELEV.Y EF.ADIM.'!$J22/'EF.REF.,RELEV.Y EF.ADIM.'!$R22)*(ALT.2!E22/'EF.REF.,RELEV.Y EF.ADIM.'!J22))+'EF.REF.,RELEV.Y EF.ADIM.'!K$22*('EF.REF.,RELEV.Y EF.ADIM.'!$G23*('EF.REF.,RELEV.Y EF.ADIM.'!$J23/'EF.REF.,RELEV.Y EF.ADIM.'!$R23)*(ALT.2!E23/'EF.REF.,RELEV.Y EF.ADIM.'!J23))+'EF.REF.,RELEV.Y EF.ADIM.'!K$22*('EF.REF.,RELEV.Y EF.ADIM.'!$G24*('EF.REF.,RELEV.Y EF.ADIM.'!$J24/'EF.REF.,RELEV.Y EF.ADIM.'!$R24)*(ALT.2!E24/'EF.REF.,RELEV.Y EF.ADIM.'!J24))+'EF.REF.,RELEV.Y EF.ADIM.'!K$26*('EF.REF.,RELEV.Y EF.ADIM.'!$G25*('EF.REF.,RELEV.Y EF.ADIM.'!$J25/'EF.REF.,RELEV.Y EF.ADIM.'!$R25)*(ALT.2!E25/'EF.REF.,RELEV.Y EF.ADIM.'!J25))+'EF.REF.,RELEV.Y EF.ADIM.'!K$26*('EF.REF.,RELEV.Y EF.ADIM.'!$G26*('EF.REF.,RELEV.Y EF.ADIM.'!$J26/'EF.REF.,RELEV.Y EF.ADIM.'!$R26)*(ALT.2!E26/'EF.REF.,RELEV.Y EF.ADIM.'!J26))+'EF.REF.,RELEV.Y EF.ADIM.'!K$26*('EF.REF.,RELEV.Y EF.ADIM.'!$G27*('EF.REF.,RELEV.Y EF.ADIM.'!$J27/'EF.REF.,RELEV.Y EF.ADIM.'!$R27)*(ALT.2!E26/'EF.REF.,RELEV.Y EF.ADIM.'!J27)))*IF(E$5>$F$31,0,1)*IF($E$2>$H$31,0,1)","v":{"$error":"#DIV/0!"}},{"$f":"+('EF.REF.,RELEV.Y EF.ADIM.'!M$22*('EF.REF.,RELEV.Y EF.ADIM.'!$G21*('EF.REF.,RELEV.Y EF.ADIM.'!$L21/'EF.REF.,RELEV.Y EF.ADIM.'!$R21)*(ALT.2!F21/'EF.REF.,RELEV.Y EF.ADIM.'!L21)) +'EF.REF.,RELEV.Y EF.ADIM.'!M$22*('EF.REF.,RELEV.Y EF.ADIM.'!$G22*('EF.REF.,RELEV.Y EF.ADIM.'!$L22/'EF.REF.,RELEV.Y EF.ADIM.'!$R22)*(ALT.2!F22/'EF.REF.,RELEV.Y EF.ADIM.'!L22))+'EF.REF.,RELEV.Y EF.ADIM.'!M$22*('EF.REF.,RELEV.Y EF.ADIM.'!$G23*('EF.REF.,RELEV.Y EF.ADIM.'!$L23/'EF.REF.,RELEV.Y EF.ADIM.'!$R23)*(ALT.2!F23/'EF.REF.,RELEV.Y EF.ADIM.'!L23))+'EF.REF.,RELEV.Y EF.ADIM.'!M$22*('EF.REF.,RELEV.Y EF.ADIM.'!$G24*('EF.REF.,RELEV.Y EF.ADIM.'!$L24/'EF.REF.,RELEV.Y EF.ADIM.'!$R24)*(ALT.2!F24/'EF.REF.,RELEV.Y EF.ADIM.'!L24))+'EF.REF.,RELEV.Y EF.ADIM.'!M$26*('EF.REF.,RELEV.Y EF.ADIM.'!$G25*('EF.REF.,RELEV.Y EF.ADIM.'!$L25/'EF.REF.,RELEV.Y EF.ADIM.'!$R25)*(ALT.2!F25/'EF.REF.,RELEV.Y EF.ADIM.'!L25))+'EF.REF.,RELEV.Y EF.ADIM.'!M$26*('EF.REF.,RELEV.Y EF.ADIM.'!$G26*('EF.REF.,RELEV.Y EF.ADIM.'!$L26/'EF.REF.,RELEV.Y EF.ADIM.'!$R26)*(ALT.2!F26/'EF.REF.,RELEV.Y EF.ADIM.'!L26))+'EF.REF.,RELEV.Y EF.ADIM.'!M$26*('EF.REF.,RELEV.Y EF.ADIM.'!$G27*('EF.REF.,RELEV.Y EF.ADIM.'!$L27/'EF.REF.,RELEV.Y EF.ADIM.'!$R27)*(ALT.2!F26/'EF.REF.,RELEV.Y EF.ADIM.'!L27)))*IF(F$5>$F$31,0,1)*IF($E$2>$H$31,0,1)","v":{"$error":"#DIV/0!"}},{"$f":"+('EF.REF.,RELEV.Y EF.ADIM.'!O$22*('EF.REF.,RELEV.Y EF.ADIM.'!$G21*('EF.REF.,RELEV.Y EF.ADIM.'!$N21/'EF.REF.,RELEV.Y EF.ADIM.'!$R21)*(ALT.2!G21/'EF.REF.,RELEV.Y EF.ADIM.'!N21)) +'EF.REF.,RELEV.Y EF.ADIM.'!O$22*('EF.REF.,RELEV.Y EF.ADIM.'!$G22*('EF.REF.,RELEV.Y EF.ADIM.'!$N22/'EF.REF.,RELEV.Y EF.ADIM.'!$R22)*(ALT.2!G22/'EF.REF.,RELEV.Y EF.ADIM.'!N22))+'EF.REF.,RELEV.Y EF.ADIM.'!O$22*('EF.REF.,RELEV.Y EF.ADIM.'!$G23*('EF.REF.,RELEV.Y EF.ADIM.'!$N23/'EF.REF.,RELEV.Y EF.ADIM.'!$R23)*(ALT.2!G23/'EF.REF.,RELEV.Y EF.ADIM.'!N23))+'EF.REF.,RELEV.Y EF.ADIM.'!O$22*('EF.REF.,RELEV.Y EF.ADIM.'!$G24*('EF.REF.,RELEV.Y EF.ADIM.'!$N24/'EF.REF.,RELEV.Y EF.ADIM.'!$R24)*(ALT.2!G24/'EF.REF.,RELEV.Y EF.ADIM.'!N24))+'EF.REF.,RELEV.Y EF.ADIM.'!O$26*('EF.REF.,RELEV.Y EF.ADIM.'!$G25*('EF.REF.,RELEV.Y EF.ADIM.'!$N25/'EF.REF.,RELEV.Y EF.ADIM.'!$R25)*(ALT.2!G25/'EF.REF.,RELEV.Y EF.ADIM.'!N25))+'EF.REF.,RELEV.Y EF.ADIM.'!O$26*('EF.REF.,RELEV.Y EF.ADIM.'!$G26*('EF.REF.,RELEV.Y EF.ADIM.'!$N26/'EF.REF.,RELEV.Y EF.ADIM.'!$R26)*(ALT.2!G26/'EF.REF.,RELEV.Y EF.ADIM.'!N26))+'EF.REF.,RELEV.Y EF.ADIM.'!O$26*('EF.REF.,RELEV.Y EF.ADIM.'!$G27*('EF.REF.,RELEV.Y EF.ADIM.'!$N27/'EF.REF.,RELEV.Y EF.ADIM.'!$R27)*(ALT.2!G26/'EF.REF.,RELEV.Y EF.ADIM.'!N27)))*IF(G$5>$F$31,0,1)*IF($E$2>$H$31,0,1)","v":{"$error":"#DIV/0!"}},{"$f":"+('EF.REF.,RELEV.Y EF.ADIM.'!Q$22*('EF.REF.,RELEV.Y EF.ADIM.'!$G21*('EF.REF.,RELEV.Y EF.ADIM.'!$P21/'EF.REF.,RELEV.Y EF.ADIM.'!$R21)*(ALT.2!H21/'EF.REF.,RELEV.Y EF.ADIM.'!P21)) +'EF.REF.,RELEV.Y EF.ADIM.'!Q$22*('EF.REF.,RELEV.Y EF.ADIM.'!$G22*('EF.REF.,RELEV.Y EF.ADIM.'!$P22/'EF.REF.,RELEV.Y EF.ADIM.'!$R22)*(ALT.2!H22/'EF.REF.,RELEV.Y EF.ADIM.'!P22))+'EF.REF.,RELEV.Y EF.ADIM.'!Q$22*('EF.REF.,RELEV.Y EF.ADIM.'!$G23*('EF.REF.,RELEV.Y EF.ADIM.'!$P23/'EF.REF.,RELEV.Y EF.ADIM.'!$R23)*(ALT.2!H23/'EF.REF.,RELEV.Y EF.ADIM.'!P23))+'EF.REF.,RELEV.Y EF.ADIM.'!Q$22*('EF.REF.,RELEV.Y EF.ADIM.'!$G24*('EF.REF.,RELEV.Y EF.ADIM.'!$P24/'EF.REF.,RELEV.Y EF.ADIM.'!$R24)*(ALT.2!H24/'EF.REF.,RELEV.Y EF.ADIM.'!P24))+'EF.REF.,RELEV.Y EF.ADIM.'!Q$26*('EF.REF.,RELEV.Y EF.ADIM.'!$G25*('EF.REF.,RELEV.Y EF.ADIM.'!$P25/'EF.REF.,RELEV.Y EF.ADIM.'!$R25)*(ALT.2!H25/'EF.REF.,RELEV.Y EF.ADIM.'!P25))+'EF.REF.,RELEV.Y EF.ADIM.'!Q$26*('EF.REF.,RELEV.Y EF.ADIM.'!$G26*('EF.REF.,RELEV.Y EF.ADIM.'!$P26/'EF.REF.,RELEV.Y EF.ADIM.'!$R26)*(ALT.2!H26/'EF.REF.,RELEV.Y EF.ADIM.'!P26))+'EF.REF.,RELEV.Y EF.ADIM.'!Q$26*('EF.REF.,RELEV.Y EF.ADIM.'!$G27*('EF.REF.,RELEV.Y EF.ADIM.'!$P27/'EF.REF.,RELEV.Y EF.ADIM.'!$R27)*(ALT.2!H26/'EF.REF.,RELEV.Y EF.ADIM.'!P27)))*IF(H$5>$F$31,0,1)*IF($E$2>$H$31,0,1)","v":{"$error":"#DIV/0!"}}]
["NÚMERO TOTAL DE SHM",null,"pu",{"$f":"+IF(D13<'EF.REF.,RELEV.Y EF.ADIM.'!$H$28,INT('EF.REF.,RELEV.Y EF.ADIM.'!$H$28/D13+0.9999),1)","v":1},{"$f":"+IF(E13<'EF.REF.,RELEV.Y EF.ADIM.'!$J$28,INT('EF.REF.,RELEV.Y EF.ADIM.'!$J$28/E13+0.9999),1)","v":1},{"$f":"+IF(F13<'EF.REF.,RELEV.Y EF.ADIM.'!$L$28,INT('EF.REF.,RELEV.Y EF.ADIM.'!$L$28/F13+0.9999),1)","v":1},{"$f":"+IF(G13<'EF.REF.,RELEV.Y EF.ADIM.'!$N$28,INT('EF.REF.,RELEV.Y EF.ADIM.'!$N$28/G13+0.9999),1)","v":1},{"$f":"+IF(H13<'EF.REF.,RELEV.Y EF.ADIM.'!$P$28,INT('EF.REF.,RELEV.Y EF.ADIM.'!$P$28/H13+0.9999),1)","v":1}]
["   ANUALIDADES RELATIVAS DE CONVENIENCIA ACTUALIZADAS",null,null,{"$f":"+D12+D20+D28","v":{"$error":"#DIV/0!"}},{"$f":"+E12+E20+E28","v":{"$error":"#DIV/0!"}},{"$error":"#DIV/0!"},{"$error":"#DIV/0!"},{"$error":"#DIV/0!"}]
["   INDICE RELATIVO DE CONVENIENCIA ALTERNATIVA 2",null,null,{"$f":"+IF($E$2<>\"VACÍA\",($D$30+$E$30+$F$30+G30+H30),-999999)","v":-999999},"Nº DE AÑOS",{"$f":"+'EF.REF.,RELEV.Y EF.ADIM.'!$L$5","v":1},"Nª DE ALTS",{"$f":"+'EF.REF.,RELEV.Y EF.ADIM.'!$Q$5","v":1}]

{"sheet":"ALT.3","index":6,"n_rows":31,"n_cols":8,"rows_kept":31,"cut":false,"hidden":false,"merged":[[30,0,30,2],[4,0,5,1],[6,0,10,0],[12,0,14,0],[24,0,26,0],[28,0,28,1],[29,0,29,2],[11,0,11,2],[19,0,19,2],[27,0,27,2],[15,0,16,0],[5,3,5,7],[0,2,0,7],[1,3,2,3],[1,0,2,0],[1,4,2,4],[3,0,3,1],[3,2,3,7],[1,6,2,7],[1,1,2,2]]}
["i","i","programa evalerg AdEA"]
["DENOMINACIÓN        EVALUACIÓN",{"$f":"+'EF.REF.,RELEV.Y EF.ADIM.'!E2","v":0},null,{"$f":"+IF(H31>=3,\"ALTERNATIVA\",\" ALTERNATIVA \")","v":" ALTERNATIVA "},{"$f":"+IF($H$31>=3,3,\"VACÍA\")","v":"VACÍA"},"DENOMINAC. ",{"$f":"+COSTOS!B9","v":"Escribir denominación alternativa 3"}]
[null,null,null,null,null,"ALTERNATIVA"]
[{"$f":"+IF(D2=\"ALTERNATIVA\",\"DESCRIPCIÓN:\",\"SIN DESCRIPCIÓN\")","v":"SIN DESCRIPCIÓN"}]
["FACTORES Y SUBFACTORES",null,"AÑOS:",1,2,3,4,5]
[null,null,"ESC. MEDIC. EFECT.","EFECTOS ANUALES"]
["PARTICIPACION                         (F A)","OCUPACION","nro. de SSH por SHM"]
[null,"PARTICIPACION CREATIVA","escala cualicuantitativa"]
[null,"PARTICIPACION ECONOMICA","(um/año)promedio",{"$f":"+COSTOS!$C$19","v":9.9999999999999995E-8},{"$f":"+COSTOS!$C$19","v":9.9999999999999995E-8},{"$f":"+COSTOS!$C$19","v":9.9999999999999995E-8},{"$f":"+COSTOS!$C$19","v":9.9999999999999995E-8},{"$f":"+COSTOS!$C$19","v":9.9999999999999995E-8}]
[null,"PARTICIPACION PSICOSOCIAL","escala cualicuantitativa"]
[null,"PARTICIPACION DECISIONAL","escala cualicuantitativa"]
["PARTICIPACIONES ANUALES DEL FACTOR PARTICIPACIÓN",null,null,{"$f":"+(D$29*'EF.REF.,RELEV.Y EF.ADIM.'!I$10*ALT.3!D7/'EF.REF.,RELEV.Y EF.ADIM.'!H9)*(('EF.REF.,RELEV.Y EF.ADIM.'!$G10*('EF.REF.,RELEV.Y EF.ADIM.'!H10/'EF.REF.,RELEV.Y EF.ADIM.'!$R10)*(ALT.3!D8/'EF.REF.,RELEV.Y EF.ADIM.'!H10))+('EF.REF.,RELEV.Y EF.ADIM.'!$G11*('EF.REF.,RELEV.Y EF.ADIM.'!H11/'EF.REF.,RELEV.Y EF.ADIM.'!$R11)*(ALT.3!D9/'EF.REF.,RELEV.Y EF.ADIM.'!H11))+('EF.REF.,RELEV.Y EF.ADIM.'!$G12*('EF.REF.,RELEV.Y EF.ADIM.'!H12/'EF.REF.,RELEV.Y EF.ADIM.'!$R12)*(ALT.3!D10/'EF.REF.,RELEV.Y EF.ADIM.'!H12))+('EF.REF.,RELEV.Y EF.ADIM.'!$G13*('EF.REF.,RELEV.Y EF.ADIM.'!H13/'EF.REF.,RELEV.Y EF.ADIM.'!$R13)*(ALT.3!D11/'EF.REF.,RELEV.Y EF.ADIM.'!H13))) *IF(D$5>$F$31,0,1)*IF($E$2>$H$31,0,1)","v":{"$error":"#DIV/0!"}},{"$f":"+(E$29*'EF.REF.,RELEV.Y EF.ADIM.'!K$10*ALT.3!E7/'EF.REF.,RELEV.Y EF.ADIM.'!J9)*(('EF.REF.,RELEV.Y EF.ADIM.'!$G10*('EF.REF.,RELEV.Y EF.ADIM.'!J10/'EF.REF.,RELEV.Y EF.ADIM.'!$R10)*(ALT.3!E8/'EF.REF.,RELEV.Y EF.ADIM.'!J10))+('EF.REF.,RELEV.Y EF.ADIM.'!$G11*('EF.REF.,RELEV.Y EF.ADIM.'!J11/'EF.REF.,RELEV.Y EF.ADIM.'!$R11)*(ALT.3!E9/'EF.REF.,RELEV.Y EF.ADIM.'!J11))+('EF.REF.,RELEV.Y EF.ADIM.'!$G12*('EF.REF.,RELEV.Y EF.ADIM.'!J12/'EF.REF.,RELEV.Y EF.ADIM.'!$R12)*(ALT.3!E10/'EF.REF.,RELEV.Y EF.ADIM.'!J12))+('EF.REF.,RELEV.Y EF.ADIM.'!$G13*('EF.REF.,RELEV.Y EF.ADIM.'!J13/'EF.REF.,RELEV.Y EF.ADIM.'!$R13)*(ALT.3!E11/'EF.REF.,RELEV.Y EF.ADIM.'!J13))) *IF(E$5>$F$31,0,1)*IF($E$2>$H$31,0,1)","v":{"$error":"#DIV/0!"}},{"$f":"+(F$29*'EF.REF.,RELEV.Y EF.ADIM.'!M$10*ALT.3!F7/'EF.REF.,RELEV.Y EF.ADIM.'!L9)*(('EF.REF.,RELEV.Y EF.ADIM.'!$G10*('EF.REF.,RELEV.Y EF.ADIM.'!L10/'EF.REF.,RELEV.Y EF.ADIM.'!$R10)*(ALT.3!F8/'EF.REF.,RELEV.Y EF.ADIM.'!L10))+('EF.REF.,RELEV.Y EF.ADIM.'!$G11*('EF.REF.,RELEV.Y EF.ADIM.'!L11/'EF.REF.,RELEV.Y EF.ADIM.'!$R11)*(ALT.3!F9/'EF.REF.,RELEV.Y EF.ADIM.'!L11))+('EF.REF.,RELEV.Y EF.ADIM.'!$G12*('EF.REF.,RELEV.Y EF.ADIM.'!L12/'EF.REF.,RELEV.Y EF.ADIM.'!$R12)*(ALT.3!F10/'EF.REF.,RELEV.Y EF.ADIM.'!L12))+('EF.REF.,RELEV.Y EF.ADIM.'!$G13*('EF.REF.,RELEV.Y EF.ADIM.'!L13/'EF.REF.,RELEV.Y EF.ADIM.'!$R13)*(ALT.3!F11/'EF.REF.,RELEV.Y EF.ADIM.'!L13))) *IF(F$5>$F$31,0,1)*IF($E$2>$H$31,0,1)","v":{"$error":"#DIV/0!"}},{"$f":"+(G$29*'EF.REF.,RELEV.Y EF.ADIM.'!O$10*ALT.3!G7/'EF.REF.,RELEV.Y EF.ADIM.'!N9)*(('EF.REF.,RELEV.Y EF.ADIM.'!$G10*('EF.REF.,RELEV.Y EF.ADIM.'!N10/'EF.REF.,RELEV.Y EF.ADIM.'!$R10)*(ALT.3!G8/'EF.REF.,RELEV.Y EF.ADIM.'!N10))+('EF.REF.,RELEV.Y EF.ADIM.'!$G11*('EF.REF.,RELEV.Y EF.ADIM.'!N11/'EF.REF.,RELEV.Y EF.ADIM.'!$R11)*(ALT.3!G9/'EF.REF.,RELEV.Y EF.ADIM.'!N11))+('EF.REF.,RELEV.Y EF.ADIM.'!$G12*('EF.REF.,RELEV.Y EF.ADIM.'!N12/'EF.REF.,RELEV.Y EF.ADIM.'!$R12)*(ALT.3!G10/'EF.REF.,RELEV.Y EF.ADIM.'!N12))+('EF.REF.,RELEV.Y EF.ADIM.'!$G13*('EF.REF.,RELEV.Y EF.ADIM.'!N13/'EF.REF.,RELEV.Y EF.ADIM.'!$R13)*(ALT.3!G11/'EF.REF.,RELEV.Y EF.ADIM.'!N13))) *IF(G$5>$F$31,0,1)*IF($E$2>$H$31,0,1)","v":{"$error":"#DIV/0!"}},{"$f":"+(H$29*'EF.REF.,RELEV.Y EF.ADIM.'!Q$10*ALT.3!H7/'EF.REF.,RELEV.Y EF.ADIM.'!P9)*(('EF.REF.,RELEV.Y EF.ADIM.'!$G10*('EF.REF.,RELEV.Y EF.ADIM.'!P10/'EF.REF.,RELEV.Y EF.ADIM.'!$R10)*(ALT.3!H8/'EF.REF.,RELEV.Y EF.ADIM.'!P10))+('EF.REF.,RELEV.Y EF.ADIM.'!$G11*('EF.REF.,RELEV.Y EF.ADIM.'!P11/'EF.REF.,RELEV.Y EF.ADIM.'!$R11)*(ALT.3!H9/'EF.REF.,RELEV.Y EF.ADIM.'!P11))+('EF.REF.,RELEV.Y EF.ADIM.'!$G12*('EF.REF.,RELEV.Y EF.ADIM.'!P12/'EF.REF.,RELEV.Y EF.ADIM.'!$R12)*(ALT.3!H10/'EF.REF.,RELEV.Y EF.ADIM.'!P12))+('EF.REF.,RELEV.Y EF.ADIM.'!$G13*('EF.REF.,RELEV.Y EF.ADIM.'!P13/'EF.REF.,RELEV.Y EF.ADIM.'!$R13)*(ALT.3!H11/'EF.REF.,RELEV.Y EF.ADIM.'!P13))) *IF(H$5>$F$31,0,1)*IF($E$2>$H$31,0,1)","v":{"$error":"#DIV/0!"}}]
["EFICACIA                               (F B)","CAPACIDAD UNITARIA DE PRODUC.","up/año"]
[null,"CALIDAD","escala cualicuantitativa"]
[null,"FIABILIDAD OPERATIVA","1 - tasa de fallas"]
["SUSTENTABI-  LIDAD (SF B2)","ELASTICIDAD CUANTITATIVA","escala cualicuantitativa"]
[null,"ADAPTABILIDAD CUALITATIVA","escala cualicuantitativa"]
["EFICIENCIA","COSTO POR INVERS. UNITARIO","um/up",{"$f":"-COSTOS!$F$9*D29/'EF.REF.,RELEV.Y EF.ADIM.'!$H$28","v":{"$error":"#DIV/0!"}},{"$f":"-COSTOS!$F$9*E29/'EF.REF.,RELEV.Y EF.ADIM.'!$J$28","v":{"$error":"#DIV/0!"}},{"$f":"-COSTOS!$F$9*F29/'EF.REF.,RELEV.Y EF.ADIM.'!$L$28","v":{"$error":"#DIV/0!"}},{"$f":"-COSTOS!$F$9*G29/'EF.REF.,RELEV.Y EF.ADIM.'!$N$28","v":{"$error":"#DIV/0!"}},{"$f":"-COSTOS!$F$9*H29/'EF.REF.,RELEV.Y EF.ADIM.'!$P$28","v":{"$error":"#DIV/0!"}}]
["(SF B.3)","COSTO OPERATIVO UNITARIO","um/up",{"$f":"-(COSTOS!$H$19*D29/'EF.REF.,RELEV.Y EF.ADIM.'!$H$28)-COSTOS!$E$29","v":{"$error":"#DIV/0!"}},{"$f":"-(COSTOS!$H$19*E29/'EF.REF.,RELEV.Y EF.ADIM.'!$J$28)-COSTOS!$E$29","v":{"$error":"#DIV/0!"}},{"$f":"-(COSTOS!$H$19*F29/'EF.REF.,RELEV.Y EF.ADIM.'!$L$28)-COSTOS!$E$29","v":{"$error":"#DIV/0!"}},{"$f":"-(COSTOS!$H$19*G29/'EF.REF.,RELEV.Y EF.ADIM.'!$N$28)-COSTOS!$E$29","v":{"$error":"#DIV/0!"}},{"$f":"-(COSTOS!$H$19*H29/'EF.REF.,RELEV.Y EF.ADIM.'!$P$28)-COSTOS!$E$29","v":{"$error":"#DIV/0!"}}]
["PARTICIPACIONES ANUALES DEL FACTOR PRODUCCIÓN",null,null,{"$f":"+('EF.REF.,RELEV.Y EF.ADIM.'!I$15*('EF.REF.,RELEV.Y EF.ADIM.'!$G14*('EF.REF.,RELEV.Y EF.ADIM.'!$H14/'EF.REF.,RELEV.Y EF.ADIM.'!$R14)*(ALT.3!D14/'EF.REF.,RELEV.Y EF.ADIM.'!H14)) +'EF.REF.,RELEV.Y EF.ADIM.'!I$15*('EF.REF.,RELEV.Y EF.ADIM.'!$G15*('EF.REF.,RELEV.Y EF.ADIM.'!$H15/'EF.REF.,RELEV.Y EF.ADIM.'!$R15)*(ALT.3!D15/'EF.REF.,RELEV.Y EF.ADIM.'!H15))+'EF.REF.,RELEV.Y EF.ADIM.'!I$17*('EF.REF.,RELEV.Y EF.ADIM.'!$G17*('EF.REF.,RELEV.Y EF.ADIM.'!$H16/'EF.REF.,RELEV.Y EF.ADIM.'!$R16)*(ALT.3!D16/'EF.REF.,RELEV.Y EF.ADIM.'!H16))+'EF.REF.,RELEV.Y EF.ADIM.'!I$17*('EF.REF.,RELEV.Y EF.ADIM.'!$G19*('EF.REF.,RELEV.Y EF.ADIM.'!$H17/'EF.REF.,RELEV.Y EF.ADIM.'!$R17)*(ALT.3!D17/'EF.REF.,RELEV.Y EF.ADIM.'!H17))+'EF.REF.,RELEV.Y EF.ADIM.'!I$19*('EF.REF.,RELEV.Y EF.ADIM.'!$G14*('EF.REF.,RELEV.Y EF.ADIM.'!$H19/'EF.REF.,RELEV.Y EF.ADIM.'!$R19)*(ALT.3!D18/'EF.REF.,RELEV.Y EF.ADIM.'!H19))+'EF.REF.,RELEV.Y EF.ADIM.'!I$19*('EF.REF.,RELEV.Y EF.ADIM.'!$G20*('EF.REF.,RELEV.Y EF.ADIM.'!$H20/'EF.REF.,RELEV.Y EF.ADIM.'!$R20)*(ALT.3!D19/'EF.REF.,RELEV.Y EF.ADIM.'!H20)))*IF(D$5>$F$31,0,1)*IF($E$2>$H$31,0,1)\n\n+('EF.REF.,RELEV.Y EF.ADIM.'!I$15*('EF.REF.,RELEV.Y EF.ADIM.'!$G14*('EF.REF.,RELEV.Y EF.ADIM.'!$H14/'EF.REF.,RELEV.Y EF.ADIM.'!$R14)*(ALT.3!D14/'EF.REF.,RELEV.Y EF.ADIM.'!H14)) +'EF.REF.,RELEV.Y EF.ADIM.'!I$15*('EF.REF.,RELEV.Y EF.ADIM.'!$G15*('EF.REF.,RELEV.Y EF.ADIM.'!$H15/'EF.REF.,RELEV.Y EF.ADIM.'!$R15)*(ALT.3!D15/'EF.REF.,RELEV.Y EF.ADIM.'!H15))+'EF.REF.,RELEV.Y EF.ADIM.'!I$17*('EF.REF.,RELEV.Y EF.ADIM.'!$G17*('EF.REF.,RELEV.Y EF.ADIM.'!$H16/'EF.REF.,RELEV.Y EF.ADIM.'!$R16)*(ALT.3!D16/'EF.REF.,RELEV.Y EF.ADIM.'!H16))+'EF.REF.,RELEV.Y EF.ADIM.'!I$17*('EF.REF.,RELEV.Y EF.ADIM.'!$G19*('EF.REF.,RELEV.Y EF.ADIM.'!$H17/'EF.REF.,RELEV.Y EF.ADIM.'!$R17)*(ALT.3!D17/'EF.REF.,RELEV.Y EF.ADIM.'!H17))+'EF.REF.,RELEV.Y EF.ADIM.'!I$19*('EF.REF.,RELEV.Y EF.ADIM.'!$G14*('EF.REF.,RELEV.Y EF.ADIM.'!$H19/'EF.REF.,RELEV.Y EF.ADIM.'!$R19)*(ALT.3!D18/'EF.REF.,RELEV.Y EF.ADIM.'!H19))+'EF.REF.,RELEV.Y EF.ADIM.'!I$19*('EF.REF.,RELEV.Y EF.ADIM.'!$G20*('EF.REF.,RELEV.Y EF.ADIM.'!$H20/'EF.REF.,RELEV.Y EF.ADIM.'!$R20)*(ALT.3!D19/'EF.REF.,RELEV.Y EF.ADIM.'!H20)))*IF(D$5>$F$31,0,1)*IF($E$2>$H$31,0,1)","v":{"$error":"#DIV/0!"}},{"$f":"+('EF.REF.,RELEV.Y EF.ADIM.'!K$15*('EF.REF.,RELEV.Y EF.ADIM.'!$G14*('EF.REF.,RELEV.Y EF.ADIM.'!$J14/'EF.REF.,RELEV.Y EF.ADIM.'!$R14)*(ALT.3!E14/'EF.REF.,RELEV.Y EF.ADIM.'!J14)) +'EF.REF.,RELEV.Y EF.ADIM.'!K$15*('EF.REF.,RELEV.Y EF.ADIM.'!$G15*('EF.REF.,RELEV.Y EF.ADIM.'!$J15/'EF.REF.,RELEV.Y EF.ADIM.'!$R15)*(ALT.3!E15/'EF.REF.,RELEV.Y EF.ADIM.'!J15))+'EF.REF.,RELEV.Y EF.ADIM.'!K$17*('EF.REF.,RELEV.Y EF.ADIM.'!$G17*('EF.REF.,RELEV.Y EF.ADIM.'!$J16/'EF.REF.,RELEV.Y EF.ADIM.'!$R16)*(ALT.3!E16/'EF.REF.,RELEV.Y EF.ADIM.'!J16))+'EF.REF.,RELEV.Y EF.ADIM.'!K$17*('EF.REF.,RELEV.Y EF.ADIM.'!$G19*('EF.REF.,RELEV.Y EF.ADIM.'!$J17/'EF.REF.,RELEV.Y EF.ADIM.'!$R17)*(ALT.3!E17/'EF.REF.,RELEV.Y EF.ADIM.'!J17))+'EF.REF.,RELEV.Y EF.ADIM.'!K$19*('EF.REF.,RELEV.Y EF.ADIM.'!$G14*('EF.REF.,RELEV.Y EF.ADIM.'!$J19/'EF.REF.,RELEV.Y EF.ADIM.'!$R19)*(ALT.3!E18/'EF.REF.,RELEV.Y EF.ADIM.'!J19))+'EF.REF.,RELEV.Y EF.ADIM.'!K$19*('EF.REF.,RELEV.Y EF.ADIM.'!$G20*('EF.REF.,RELEV.Y EF.ADIM.'!$J20/'EF.REF.,RELEV.Y EF.ADIM.'!$R20)*(ALT.3!E19/'EF.REF.,RELEV.Y EF.ADIM.'!J20)))*IF(E$5>$F$31,0,1)*IF($E$2>$H$31,0,1)","v":{"$error":"#DIV/0!"}},{"$f":"+('EF.REF.,RELEV.Y EF.ADIM.'!M$15*('EF.REF.,RELEV.Y EF.ADIM.'!$G14*('EF.REF.,RELEV.Y EF.ADIM.'!$L14/'EF.REF.,RELEV.Y EF.ADIM.'!$R14)*(ALT.3!F14/'EF.REF.,RELEV.Y EF.ADIM.'!L14)) +'EF.REF.,RELEV.Y EF.ADIM.'!M$15*('EF.REF.,RELEV.Y EF.ADIM.'!$G15*('EF.REF.,RELEV.Y EF.ADIM.'!$L15/'EF.REF.,RELEV.Y EF.ADIM.'!$R15)*(ALT.3!F15/'EF.REF.,RELEV.Y EF.ADIM.'!L15))+'EF.REF.,RELEV.Y EF.ADIM.'!M$17*('EF.REF.,RELEV.Y EF.ADIM.'!$G17*('EF.REF.,RELEV.Y EF.ADIM.'!$L16/'EF.REF.,RELEV.Y EF.ADIM.'!$R16)*(ALT.3!F16/'EF.REF.,RELEV.Y EF.ADIM.'!L16))+'EF.REF.,RELEV.Y EF.ADIM.'!M$17*('EF.REF.,RELEV.Y EF.ADIM.'!$G19*('EF.REF.,RELEV.Y EF.ADIM.'!$L17/'EF.REF.,RELEV.Y EF.ADIM.'!$R17)*(ALT.3!F17/'EF.REF.,RELEV.Y EF.ADIM.'!L17))+'EF.REF.,RELEV.Y EF.ADIM.'!M$19*('EF.REF.,RELEV.Y EF.ADIM.'!$G14*('EF.REF.,RELEV.Y EF.ADIM.'!$L19/'EF.REF.,RELEV.Y EF.ADIM.'!$R19)*(ALT.3!F18/'EF.REF.,RELEV.Y EF.ADIM.'!L19))+'EF.REF.,RELEV.Y EF.ADIM.'!M$19*('EF.REF.,RELEV.Y EF.ADIM.'!$G20*('EF.REF.,RELEV.Y EF.ADIM.'!$L20/'EF.REF.,RELEV.Y EF.ADIM.'!$R20)*(ALT.3!F19/'EF.REF.,RELEV.Y EF.ADIM.'!L20)))*IF(F$5>$F$31,0,1)*IF($E$2>$H$31,0,1)","v":{"$error":"#DIV/0!"}},{"$f":"+('EF.REF.,RELEV.Y EF.ADIM.'!O$15*('EF.REF.,RELEV.Y EF.ADIM.'!$G14*('EF.REF.,RELEV.Y EF.ADIM.'!$N14/'EF.REF.,RELEV.Y EF.ADIM.'!$R14)*(ALT.3!G14/'EF.REF.,RELEV.Y EF.ADIM.'!N14)) +'EF.REF.,RELEV.Y EF.ADIM.'!O$15*('EF.REF.,RELEV.Y EF.ADIM.'!$G15*('EF.REF.,RELEV.Y EF.ADIM.'!$N15/'EF.REF.,RELEV.Y EF.ADIM.'!$R15)*(ALT.3!G15/'EF.REF.,RELEV.Y EF.ADIM.'!N15))+'EF.REF.,RELEV.Y EF.ADIM.'!O$17*('EF.REF.,RELEV.Y EF.ADIM.'!$G17*('EF.REF.,RELEV.Y EF.ADIM.'!$N16/'EF.REF.,RELEV.Y EF.ADIM.'!$R16)*(ALT.3!G16/'EF.REF.,RELEV.Y EF.ADIM.'!N16))+'EF.REF.,RELEV.Y EF.ADIM.'!O$17*('EF.REF.,RELEV.Y EF.ADIM.'!$G19*('EF.REF.,RELEV.Y EF.ADIM.'!$N17/'EF.REF.,RELEV.Y EF.ADIM.'!$R17)*(ALT.3!G17/'EF.REF.,RELEV.Y EF.ADIM.'!N17))+'EF.REF.,RELEV.Y EF.ADIM.'!O$19*('EF.REF.,RELEV.Y EF.ADIM.'!$G14*('EF.REF.,RELEV.Y EF.ADIM.'!$N19/'EF.REF.,RELEV.Y EF.ADIM.'!$R19)*(ALT.3!G18/'EF.REF.,RELEV.Y EF.ADIM.'!N19))+'EF.REF.,RELEV.Y EF.ADIM.'!O$19*('EF.REF.,RELEV.Y EF.ADIM.'!$G20*('EF.REF.,RELEV.Y EF.ADIM.'!$N20/'EF.REF.,RELEV.Y EF.ADIM.'!$R20)*(ALT.3!G19/'EF.REF.,RELEV.Y EF.ADIM.'!N20)))*IF(G$5>$F$31,0,1)*IF($E$2>$H$31,0,1)","v":{"$error":"#DIV/0!"}},{"$f":"+('EF.REF.,RELEV.Y EF.ADIM.'!Q$15*('EF.REF.,RELEV.Y EF.ADIM.'!$G14*('EF.REF.,RELEV.Y EF.ADIM.'!$P14/'EF.REF.,RELEV.Y EF.ADIM.'!$R14)*(ALT.3!H14/'EF.REF.,RELEV.Y EF.ADIM.'!P14)) +'EF.REF.,RELEV.Y EF.ADIM.'!Q$15*('EF.REF.,RELEV.Y EF.ADIM.'!$G15*('EF.REF.,RELEV.Y EF.ADIM.'!$P15/'EF.REF.,RELEV.Y EF.ADIM.'!$R15)*(ALT.3!H15/'EF.REF.,RELEV.Y EF.ADIM.'!P15))+'EF.REF.,RELEV.Y EF.ADIM.'!Q$17*('EF.REF.,RELEV.Y EF.ADIM.'!$G17*('EF.REF.,RELEV.Y EF.ADIM.'!$P16/'EF.REF.,RELEV.Y EF.ADIM.'!$R16)*(ALT.3!H16/'EF.REF.,RELEV.Y EF.ADIM.'!P16))+'EF.REF.,RELEV.Y EF.ADIM.'!Q$17*('EF.REF.,RELEV.Y EF.ADIM.'!$G19*('EF.REF.,RELEV.Y EF.ADIM.'!$P17/'EF.REF.,RELEV.Y EF.ADIM.'!$R17)*(ALT.3!H17/'EF.REF.,RELEV.Y EF.ADIM.'!P17))+'EF.REF.,RELEV.Y EF.ADIM.'!Q$19*('EF.REF.,RELEV.Y EF.ADIM.'!$G14*('EF.REF.,RELEV.Y EF.ADIM.'!$P19/'EF.REF.,RELEV.Y EF.ADIM.'!$R19)*(ALT.3!H18/'EF.REF.,RELEV.Y EF.ADIM.'!P19))+'EF.REF.,RELEV.Y EF.ADIM.'!Q$19*('EF.REF.,RELEV.Y EF.ADIM.'!$G20*('EF.REF.,RELEV.Y EF.ADIM.'!$P20/'EF.REF.,RELEV.Y EF.ADIM.'!$R20)*(ALT.3!H19/'EF.REF.,RELEV.Y EF.ADIM.'!P20)))*IF(H$5>$F$31,0,1)*IF($E$2>$H$31,0,1)","v":{"$error":"#DIV/0!"}}]
[null,"SSH","escala cualicuantitativa"]
["RIESGO","SSM","escala cualicuantitativa"]
["(SF C.1)","SSGTR","escala cualicuantitativa"]
[null,"ENTORNO DEL SHM","escala cualicuantitativa"]
["INCONFORT       (SF C.2)","SSH","escala cualicuantitativa"]
[null,"SSGTR","escala cualicuantitativa"]
[null,"ENTORNO DEL SHM","escala cualicuantitativa"]
["PARTICIPACIONES ANUALES DEL FACTOR PROTECCIÓN",null,null,{"$f":"+('EF.REF.,RELEV.Y EF.ADIM.'!I$22*('EF.REF.,RELEV.Y EF.ADIM.'!$G21*('EF.REF.,RELEV.Y EF.ADIM.'!$H21/'EF.REF.,RELEV.Y EF.ADIM.'!$R21)*(ALT.3!D21/'EF.REF.,RELEV.Y EF.ADIM.'!H21)) +'EF.REF.,RELEV.Y EF.ADIM.'!I$22*('EF.REF.,RELEV.Y EF.ADIM.'!$G22*('EF.REF.,RELEV.Y EF.ADIM.'!$H22/'EF.REF.,RELEV.Y EF.ADIM.'!$R22)*(ALT.3!D22/'EF.REF.,RELEV.Y EF.ADIM.'!H22))+'EF.REF.,RELEV.Y EF.ADIM.'!I$22*('EF.REF.,RELEV.Y EF.ADIM.'!$G23*('EF.REF.,RELEV.Y EF.ADIM.'!$H23/'EF.REF.,RELEV.Y EF.ADIM.'!$R23)*(ALT.3!D23/'EF.REF.,RELEV.Y EF.ADIM.'!H23))+'EF.REF.,RELEV.Y EF.ADIM.'!I$22*('EF.REF.,RELEV.Y EF.ADIM.'!$G24*('EF.REF.,RELEV.Y EF.ADIM.'!$H24/'EF.REF.,RELEV.Y EF.ADIM.'!$R24)*(ALT.3!D24/'EF.REF.,RELEV.Y EF.ADIM.'!H24))+'EF.REF.,RELEV.Y EF.ADIM.'!I$26*('EF.REF.,RELEV.Y EF.ADIM.'!$G25*('EF.REF.,RELEV.Y EF.ADIM.'!$H25/'EF.REF.,RELEV.Y EF.ADIM.'!$R25)*(ALT.3!D25/'EF.REF.,RELEV.Y EF.ADIM.'!H25))+'EF.REF.,RELEV.Y EF.ADIM.'!I$26*('EF.REF.,RELEV.Y EF.ADIM.'!$G26*('EF.REF.,RELEV.Y EF.ADIM.'!$H26/'EF.REF.,RELEV.Y EF.ADIM.'!$R26)*(ALT.3!D26/'EF.REF.,RELEV.Y EF.ADIM.'!H26))+'EF.REF.,RELEV.Y EF.ADIM.'!I$26*('EF.REF.,RELEV.Y EF.ADIM.'!$G27*('EF.REF.,RELEV.Y EF.ADIM.'!$H27/'EF.REF.,RELEV.Y EF.ADIM.'!$R27)*(ALT.3!D26/'EF.REF.,RELEV.Y EF.ADIM.'!H27)))*IF(D$5>$F$31,0,1)*IF($E$2>$H$31,0,1)","v":{"$error":"#DIV/0!"}},{"$f":"+('EF.REF.,RELEV.Y EF.ADIM.'!K$22*('EF.REF.,RELEV.Y EF.ADIM.'!$G21*('EF.REF.,RELEV.Y EF.ADIM.'!$J21/'EF.REF.,RELEV.Y EF.ADIM.'!$R21)*(ALT.3!E21/'EF.REF.,RELEV.Y EF.ADIM.'!J21)) +'EF.REF.,RELEV.Y EF.ADIM.'!K$22*('EF.REF.,RELEV.Y EF.ADIM.'!$G22*('EF.REF.,RELEV.Y EF.ADIM.'!$J22/'EF.REF.,RELEV.Y EF.ADIM.'!$R22)*(ALT.3!E22/'EF.REF.,RELEV.Y EF.ADIM.'!J22))+'EF.REF.,RELEV.Y EF.ADIM.'!K$22*('EF.REF.,RELEV.Y EF.ADIM.'!$G23*('EF.REF.,RELEV.Y EF.ADIM.'!$J23/'EF.REF.,RELEV.Y EF.ADIM.'!$R23)*(ALT.3!E23/'EF.REF.,RELEV.Y EF.ADIM.'!J23))+'EF.REF.,RELEV.Y EF.ADIM.'!K$22*('EF.REF.,RELEV.Y EF.ADIM.'!$G24*('EF.REF.,RELEV.Y EF.ADIM.'!$J24/'EF.REF.,RELEV.Y EF.ADIM.'!$R24)*(ALT.3!E24/'EF.REF.,RELEV.Y EF.ADIM.'!J24))+'EF.REF.,RELEV.Y EF.ADIM.'!K$26*('EF.REF.,RELEV.Y EF.ADIM.'!$G25*('EF.REF.,RELEV.Y EF.ADIM.'!$J25/'EF.REF.,RELEV.Y EF.ADIM.'!$R25)*(ALT.3!E25/'EF.REF.,RELEV.Y EF.ADIM.'!J25))+'EF.REF.,RELEV.Y EF.ADIM.'!K$26*('EF.REF.,RELEV.Y EF.ADIM.'!$G26*('EF.REF.,RELEV.Y EF.ADIM.'!$J26/'EF.REF.,RELEV.Y EF.ADIM.'!$R26)*(ALT.3!E26/'EF.REF.,RELEV.Y EF.ADIM.'!J26))+'EF.REF.,RELEV.Y EF.ADIM.'!K$26*('EF.REF.,RELEV.Y EF.ADIM.'!$G27*('EF.REF.,RELEV.Y EF.ADIM.'!$J27/'EF.REF.,RELEV.Y EF.ADIM.'!$R27)*(ALT.3!E26/'EF.REF.,RELEV.Y EF.ADIM.'!J27)))*IF(E$5>$F$31,0,1)*IF($E$2>$H$31,0,1)","v":{"$error":"#DIV/0!"}},{"$f":"+('EF.REF.,RELEV.Y EF.ADIM.'!M$22*('EF.REF.,RELEV.Y EF.ADIM.'!$G21*('EF.REF.,RELEV.Y EF.ADIM.'!$L21/'EF.REF.,RELEV.Y EF.ADIM.'!$R21)*(ALT.3!F21/'EF.REF.,RELEV.Y EF.ADIM.'!L21)) +'EF.REF.,RELEV.Y EF.ADIM.'!M$22*('EF.REF.,RELEV.Y EF.ADIM.'!$G22*('EF.REF.,RELEV.Y EF.ADIM.'!$L22/'EF.REF.,RELEV.Y EF.ADIM.'!$R22)*(ALT.3!F22/'EF.REF.,RELEV.Y EF.ADIM.'!L22))+'EF.REF.,RELEV.Y EF.ADIM.'!M$22*('EF.REF.,RELEV.Y EF.ADIM.'!$G23*('EF.REF.,RELEV.Y EF.ADIM.'!$L23/'EF.REF.,RELEV.Y EF.ADIM.'!$R23)*(ALT.3!F23/'EF.REF.,RELEV.Y EF.ADIM.'!L23))+'EF.REF.,RELEV.Y EF.ADIM.'!M$22*('EF.REF.,RELEV.Y EF.ADIM.'!$G24*('EF.REF.,RELEV.Y EF.ADIM.'!$L24/'EF.REF.,RELEV.Y EF.ADIM.'!$R24)*(ALT.3!F24/'EF.REF.,RELEV.Y EF.ADIM.'!L24))+'EF.REF.,RELEV.Y EF.ADIM.'!M$26*('EF.REF.,RELEV.Y EF.ADIM.'!$G25*('EF.REF.,RELEV.Y EF.ADIM.'!$L25/'EF.REF.,RELEV.Y EF.ADIM.'!$R25)*(ALT.3!F25/'EF.REF.,RELEV.Y EF.ADIM.'!L25))+'EF.REF.,RELEV.Y EF.ADIM.'!M$26*('EF.REF.,RELEV.Y EF.ADIM.'!$G26*('EF.REF.,RELEV.Y EF.ADIM.'!$L26/'EF.REF.,RELEV.Y EF.ADIM.'!$R26)*(ALT.3!F26/'EF.REF.,RELEV.Y EF.ADIM.'!L26))+'EF.REF.,RELEV.Y EF.ADIM.'!M$26*('EF.REF.,RELEV.Y EF.ADIM.'!$G27*('EF.REF.,RELEV.Y EF.ADIM.'!$L27/'EF.REF.,RELEV.Y EF.ADIM.'!$R27)*(ALT.3!F26/'EF.REF.,RELEV.Y EF.ADIM.'!L27)))*IF(F$5>$F$31,0,1)*IF($E$2>$H$31,0,1)","v":{"$error":"#DIV/0!"}},{"$f":"+('EF.REF.,RELEV.Y EF.ADIM.'!O$22*('EF.REF.,RELEV.Y EF.ADIM.'!$G21*('EF.REF.,RELEV.Y EF.ADIM.'!$N21/'EF.REF.,RELEV.Y EF.ADIM.'!$R21)*(ALT.3!G21/'EF.REF.,RELEV.Y EF.ADIM.'!N21)) +'EF.REF.,RELEV.Y EF.ADIM.'!O$22*('EF.REF.,RELEV.Y EF.ADIM.'!$G22*('EF.REF.,RELEV.Y EF.ADIM.'!$N22/'EF.REF.,RELEV.Y EF.ADIM.'!$R22)*(ALT.3!G22/'EF.REF.,RELEV.Y EF.ADIM.'!N22))+'EF.REF.,RELEV.Y EF.ADIM.'!O$22*('EF.REF.,RELEV.Y EF.ADIM.'!$G23*('EF.REF.,RELEV.Y EF.ADIM.'!$N23/'EF.REF.,RELEV.Y EF.ADIM.'!$R23)*(ALT.3!G23/'EF.REF.,RELEV.Y EF.ADIM.'!N23))+'EF.REF.,RELEV.Y EF.ADIM.'!O$22*('EF.REF.,RELEV.Y EF.ADIM.'!$G24*('EF.REF.,RELEV.Y EF.ADIM.'!$N24/'EF.REF.,RELEV.Y EF.ADIM.'!$R24)*(ALT.3!G24/'EF.REF.,RELEV.Y EF.ADIM.'!N24))+'EF.REF.,RELEV.Y EF.ADIM.'!O$26*('EF.REF.,RELEV.Y EF.ADIM.'!$G25*('EF.REF.,RELEV.Y EF.ADIM.'!$N25/'EF.REF.,RELEV.Y EF.ADIM.'!$R25)*(ALT.3!G25/'EF.REF.,RELEV.Y EF.ADIM.'!N25))+'EF.REF.,RELEV.Y EF.ADIM.'!O$26*('EF.REF.,RELEV.Y EF.ADIM.'!$G26*('EF.REF.,RELEV.Y EF.ADIM.'!$N26/'EF.REF.,RELEV.Y EF.ADIM.'!$R26)*(ALT.3!G26/'EF.REF.,RELEV.Y EF.ADIM.'!N26))+'EF.REF.,RELEV.Y EF.ADIM.'!O$26*('EF.REF.,RELEV.Y EF.ADIM.'!$G27*('EF.REF.,RELEV.Y EF.ADIM.'!$N27/'EF.REF.,RELEV.Y EF.ADIM.'!$R27)*(ALT.3!G26/'EF.REF.,RELEV.Y EF.ADIM.'!N27)))*IF(G$5>$F$31,0,1)*IF($E$2>$H$31,0,1)","v":{"$error":"#DIV/0!"}},{"$f":"+('EF.REF.,RELEV.Y EF.ADIM.'!Q$22*('EF.REF.,RELEV.Y EF.ADIM.'!$G21*('EF.REF.,RELEV.Y EF.ADIM.'!$P21/'EF.REF.,RELEV.Y EF.ADIM.'!$R21)*(ALT.3!H21/'EF.REF.,RELEV.Y EF.ADIM.'!P21)) +'EF.REF.,RELEV.Y EF.ADIM.'!Q$22*('EF.REF.,RELEV.Y EF.ADIM.'!$G22*('EF.REF.,RELEV.Y EF.ADIM.'!$P22/'EF.REF.,RELEV.Y EF.ADIM.'!$R22)*(ALT.3!H22/'EF.REF.,RELEV.Y EF.ADIM.'!P22))+'EF.REF.,RELEV.Y EF.ADIM.'!Q$22*('EF.REF.,RELEV.Y EF.ADIM.'!$G23*('EF.REF.,RELEV.Y EF.ADIM.'!$P23/'EF.REF.,RELEV.Y EF.ADIM.'!$R23)*(ALT.3!H23/'EF.REF.,RELEV.Y EF.ADIM.'!P23))+'EF.REF.,RELEV.Y EF.ADIM.'!Q$22*('EF.REF.,RELEV.Y EF.ADIM.'!$G24*('EF.REF.,RELEV.Y EF.ADIM.'!$P24/'EF.REF.,RELEV.Y EF.ADIM.'!$R24)*(ALT.3!H24/'EF.REF.,RELEV.Y EF.ADIM.'!P24))+'EF.REF.,RELEV.Y EF.ADIM.'!Q$26*('EF.REF.,RELEV.Y EF.ADIM.'!$G25*('EF.REF.,RELEV.Y EF.ADIM.'!$P25/'EF.REF.,RELEV.Y EF.ADIM.'!$R25)*(ALT.3!H25/'EF.REF.,RELEV.Y EF.ADIM.'!P25))+'EF.REF.,RELEV.Y EF.ADIM.'!Q$26*('EF.REF.,RELEV.Y EF.ADIM.'!$G26*('EF.REF.,RELEV.Y EF.ADIM.'!$P26/'EF.REF.,RELEV.Y EF.ADIM.'!$R26)*(ALT.3!H26/'EF.REF.,RELEV.Y EF.ADIM.'!P26))+'EF.REF.,RELEV.Y EF.ADIM.'!Q$26*('EF.REF.,RELEV.Y EF.ADIM.'!$G27*('EF.REF.,RELEV.Y EF.ADIM.'!$P27/'EF.REF.,RELEV.Y EF.ADIM.'!$R27)*(ALT.3!H26/'EF.REF.,RELEV.Y EF.ADIM.'!P27)))*IF(H$5>$F$31,0,1)*IF($E$2>$H$31,0,1)","v":{"$error":"#DIV/0!"}}]
["NÚMERO TOTAL DE SHM",null,"pu",{"$f":"+IF(D13<'EF.REF.,RELEV.Y EF.ADIM.'!$H$28,INT('EF.REF.,RELEV.Y EF.ADIM.'!$H$28/D13+0.9999),1)","v":1},{"$f":"+IF(E13<'EF.REF.,RELEV.Y EF.ADIM.'!$J$28,INT('EF.REF.,RELEV.Y EF.ADIM.'!$J$28/E13+0.9999),1)","v":1},{"$f":"+IF(F13<'EF.REF.,RELEV.Y EF.ADIM.'!$L$28,INT('EF.REF.,RELEV.Y EF.ADIM.'!$L$28/F13+0.9999),1)","v":1},{"$f":"+IF(G13<'EF.REF.,RELEV.Y EF.ADIM.'!$N$28,INT('EF.REF.,RELEV.Y EF.ADIM.'!$N$28/G13+0.9999),1)","v":1},{"$f":"+IF(H13<'EF.REF.,RELEV.Y EF.ADIM.'!$P$28,INT('EF.REF.,RELEV.Y EF.ADIM.'!$P$28/H13+0.9999),1)","v":1}]
["   ANUALIDADES RELATIVAS DE CONVENIENCIA ACTUALIZADAS",null,null,{"$f":"+D12+D20+D28","v":{"$error":"#DIV/0!"}},{"$f":"+E12+E20+E28","v":{"$error":"#DIV/0!"}},{"$error":"#DIV/0!"},{"$error":"#DIV/0!"},{"$error":"#DIV/0!"}]
["   INDICE RELATIVO DE CONVENIENCIA ALTERNATIVA 3",null,null,{"$f":"+IF($E$2<>\"VACÍA\",($D$30+$E$30+$F$30+G30+H30),-999999)","v":-999999},"Nº DE AÑOS",{"$f":"+'EF.REF.,RELEV.Y EF.ADIM.'!$L$5","v":1},"Nª DE ALTS",{"$f":"+'EF.REF.,RELEV.Y EF.ADIM.'!$Q$5","v":1}]

{"sheet":"ALT.4","index":7,"n_rows":31,"n_cols":8,"rows_kept":31,"cut":false,"hidden":false,"merged":[[30,0,30,2],[4,0,5,1],[6,0,10,0],[12,0,14,0],[24,0,26,0],[28,0,28,1],[29,0,29,2],[11,0,11,2],[19,0,19,2],[27,0,27,2],[15,0,16,0],[5,3,5,7],[0,2,0,7],[1,3,2,3],[1,0,2,0],[1,4,2,4],[3,0,3,1],[3,2,3,7],[1,6,2,7],[1,1,2,2]]}
["i","i","programa evalerg AdEA"]
["DENOMINACIÓN        EVALUACIÓN",{"$f":"+'EF.REF.,RELEV.Y EF.ADIM.'!E2","v":0},null,{"$f":"+IF(H31>=4,\"ALTERNATIVA\",\" ALTERNATIVA \")","v":" ALTERNATIVA "},{"$f":"+IF($H$31>=4,4,\"VACÍA\")","v":"VACÍA"},"DENOMINAC. ",{"$f":"+COSTOS!B10","v":"Escribir denominación alternativa 4"}]
[null,null,null,null,null,"ALTERNATIVA"]
[{"$f":"+IF(D2=\"ALTERNATIVA\",\"DESCRIPCIÓN:\",\"SIN DESCRIPCIÓN\")","v":"SIN DESCRIPCIÓN"}]
["FACTORES Y SUBFACTORES",null,"AÑOS:",1,2,3,4,5]
[null,null,"ESC. MEDIC. EFECT.","EFECTOS ANUALES"]
["PARTICIPACION                         (F A)","OCUPACION","nro. de SSH por SHM"]
[null,"PARTICIPACION CREATIVA","escala cualicuantitativa"]
[null,"PARTICIPACION ECONOMICA","(um/año)promedio",{"$f":"+COSTOS!$C$20","v":9.9999999999999995E-8},{"$f":"+COSTOS!$C$20","v":9.9999999999999995E-8},{"$f":"+COSTOS!$C$20","v":9.9999999999999995E-8},{"$f":"+COSTOS!$C$20","v":9.9999999999999995E-8},{"$f":"+COSTOS!$C$20","v":9.9999999999999995E-8}]
[null,"PARTICIPACION PSICOSOCIAL","escala cualicuantitativa"]
[null,"PARTICIPACION DECISIONAL","escala cualicuantitativa"]
["PARTICIPACIONES ANUALES DEL FACTOR PARTICIPACIÓN",null,null,{"$f":"+(D$29*'EF.REF.,RELEV.Y EF.ADIM.'!I$10*ALT.4!D7/'EF.REF.,RELEV.Y EF.ADIM.'!H9)*(('EF.REF.,RELEV.Y EF.ADIM.'!$G10*('EF.REF.,RELEV.Y EF.ADIM.'!H10/'EF.REF.,RELEV.Y EF.ADIM.'!$R10)*(ALT.4!D8/'EF.REF.,RELEV.Y EF.ADIM.'!H10))+('EF.REF.,RELEV.Y EF.ADIM.'!$G11*('EF.REF.,RELEV.Y EF.ADIM.'!H11/'EF.REF.,RELEV.Y EF.ADIM.'!$R11)*(ALT.4!D9/'EF.REF.,RELEV.Y EF.ADIM.'!H11))+('EF.REF.,RELEV.Y EF.ADIM.'!$G12*('EF.REF.,RELEV.Y EF.ADIM.'!H12/'EF.REF.,RELEV.Y EF.ADIM.'!$R12)*(ALT.4!D10/'EF.REF.,RELEV.Y EF.ADIM.'!H12))+('EF.REF.,RELEV.Y EF.ADIM.'!$G13*('EF.REF.,RELEV.Y EF.ADIM.'!H13/'EF.REF.,RELEV.Y EF.ADIM.'!$R13)*(ALT.4!D11/'EF.REF.,RELEV.Y EF.ADIM.'!H13))) *IF(D$5>$F$31,0,1)*IF($E$2>$H$31,0,1)","v":{"$error":"#DIV/0!"}},{"$f":"+(E$29*'EF.REF.,RELEV.Y EF.ADIM.'!K$10*ALT.4!E7/'EF.REF.,RELEV.Y EF.ADIM.'!J9)*(('EF.REF.,RELEV.Y EF.ADIM.'!$G10*('EF.REF.,RELEV.Y EF.ADIM.'!J10/'EF.REF.,RELEV.Y EF.ADIM.'!$R10)*(ALT.4!E8/'EF.REF.,RELEV.Y EF.ADIM.'!J10))+('EF.REF.,RELEV.Y EF.ADIM.'!$G11*('EF.REF.,RELEV.Y EF.ADIM.'!J11/'EF.REF.,RELEV.Y EF.ADIM.'!$R11)*(ALT.4!E9/'EF.REF.,RELEV.Y EF.ADIM.'!J11))+('EF.REF.,RELEV.Y EF.ADIM.'!$G12*('EF.REF.,RELEV.Y EF.ADIM.'!J12/'EF.REF.,RELEV.Y EF.ADIM.'!$R12)*(ALT.4!E10/'EF.REF.,RELEV.Y EF.ADIM.'!J12))+('EF.REF.,RELEV.Y EF.ADIM.'!$G13*('EF.REF.,RELEV.Y EF.ADIM.'!J13/'EF.REF.,RELEV.Y EF.ADIM.'!$R13)*(ALT.4!E11/'EF.REF.,RELEV.Y EF.ADIM.'!J13))) *IF(E$5>$F$31,0,1)*IF($E$2>$H$31,0,1)","v":{"$error":"#DIV/0!"}},{"$f":"+(F$29*'EF.REF.,RELEV.Y EF.ADIM.'!M$10*ALT.4!F7/'EF.REF.,RELEV.Y EF.ADIM.'!L9)*(('EF.REF.,RELEV.Y EF.ADIM.'!$G10*('EF.REF.,RELEV.Y EF.ADIM.'!L10/'EF.REF.,RELEV.Y EF.ADIM.'!$R10)*(ALT.4!F8/'EF.REF.,RELEV.Y EF.ADIM.'!L10))+('EF.REF.,RELEV.Y EF.ADIM.'!$G11*('EF.REF.,RELEV.Y EF.ADIM.'!L11/'EF.REF.,RELEV.Y EF.ADIM.'!$R11)*(ALT.4!F9/'EF.REF.,RELEV.Y EF.ADIM.'!L11))+('EF.REF.,RELEV.Y EF.ADIM.'!$G12*('EF.REF.,RELEV.Y EF.ADIM.'!L12/'EF.REF.,RELEV.Y EF.ADIM.'!$R12)*(ALT.4!F10/'EF.REF.,RELEV.Y EF.ADIM.'!L12))+('EF.REF.,RELEV.Y EF.ADIM.'!$G13*('EF.REF.,RELEV.Y EF.ADIM.'!L13/'EF.REF.,RELEV.Y EF.ADIM.'!$R13)*(ALT.4!F11/'EF.REF.,RELEV.Y EF.ADIM.'!L13))) *IF(F$5>$F$31,0,1)*IF($E$2>$H$31,0,1)","v":{"$error":"#DIV/0!"}},{"$f":"+(G$29*'EF.REF.,RELEV.Y EF.ADIM.'!O$10*ALT.4!G7/'EF.REF.,RELEV.Y EF.ADIM.'!N9)*(('EF.REF.,RELEV.Y EF.ADIM.'!$G10*('EF.REF.,RELEV.Y EF.ADIM.'!N10/'EF.REF.,RELEV.Y EF.ADIM.'!$R10)*(ALT.4!G8/'EF.REF.,RELEV.Y EF.ADIM.'!N10))+('EF.REF.,RELEV.Y EF.ADIM.'!$G11*('EF.REF.,RELEV.Y EF.ADIM.'!N11/'EF.REF.,RELEV.Y EF.ADIM.'!$R11)*(ALT.4!G9/'EF.REF.,RELEV.Y EF.ADIM.'!N11))+('EF.REF.,RELEV.Y EF.ADIM.'!$G12*('EF.REF.,RELEV.Y EF.ADIM.'!N12/'EF.REF.,RELEV.Y EF.ADIM.'!$R12)*(ALT.4!G10/'EF.REF.,RELEV.Y EF.ADIM.'!N12))+('EF.REF.,RELEV.Y EF.ADIM.'!$G13*('EF.REF.,RELEV.Y EF.ADIM.'!N13/'EF.REF.,RELEV.Y EF.ADIM.'!$R13)*(ALT.4!G11/'EF.REF.,RELEV.Y EF.ADIM.'!N13))) *IF(G$5>$F$31,0,1)*IF($E$2>$H$31,0,1)","v":{"$error":"#DIV/0!"}},{"$f":"+(H$29*'EF.REF.,RELEV.Y EF.ADIM.'!Q$10*ALT.4!H7/'EF.REF.,RELEV.Y EF.ADIM.'!P9)*(('EF.REF.,RELEV.Y EF.ADIM.'!$G10*('EF.REF.,RELEV.Y EF.ADIM.'!P10/'EF.REF.,RELEV.Y EF.ADIM.'!$R10)*(ALT.4!H8/'EF.REF.,RELEV.Y EF.ADIM.'!P10))+('EF.REF.,RELEV.Y EF.ADIM.'!$G11*('EF.REF.,RELEV.Y EF.ADIM.'!P11/'EF.REF.,RELEV.Y EF.ADIM.'!$R11)*(ALT.4!H9/'EF.REF.,RELEV.Y EF.ADIM.'!P11))+('EF.REF.,RELEV.Y EF.ADIM.'!$G12*('EF.REF.,RELEV.Y EF.ADIM.'!P12/'EF.REF.,RELEV.Y EF.ADIM.'!$R12)*(ALT.4!H10/'EF.REF.,RELEV.Y EF.ADIM.'!P12))+('EF.REF.,RELEV.Y EF.ADIM.'!$G13*('EF.REF.,RELEV.Y EF.ADIM.'!P13/'EF.REF.,RELEV.Y EF.ADIM.'!$R13)*(ALT.4!H11/'EF.REF.,RELEV.Y EF.ADIM.'!P13))) *IF(H$5>$F$31,0,1)*IF($E$2>$H$31,0,1)","v":{"$error":"#DIV/0!"}}]
["EFICACIA                               (F B)","CAPACIDAD UNITARIA DE PRODUC.","up/año"]
[null,"CALIDAD","escala cualicuantitativa"]
[null,"FIABILIDAD OPERATIVA","1 - tasa de fallas"]
["SUSTENTABI-  LIDAD (SF B2)","ELASTICIDAD CUANTITATIVA","escala cualicuantitativa"]
[null,"ADAPTABILIDAD CUALITATIVA","escala cualicuantitativa"]
["EFICIENCIA","COSTO POR INVERS. UNITARIO","um/up",{"$f":"-COSTOS!$F$10*D29/'EF.REF.,RELEV.Y EF.ADIM.'!$H$28","v":{"$error":"#DIV/0!"}},{"$f":"-COSTOS!$F$10*E29/'EF.REF.,RELEV.Y EF.ADIM.'!$J$28","v":{"$error":"#DIV/0!"}},{"$f":"-COSTOS!$F$10*F29/'EF.REF.,RELEV.Y EF.ADIM.'!$L$28","v":{"$error":"#DIV/0!"}},{"$f":"-COSTOS!$F$10*G29/'EF.REF.,RELEV.Y EF.ADIM.'!$N$28","v":{"$error":"#DIV/0!"}},{"$f":"-COSTOS!$F$10*H29/'EF.REF.,RELEV.Y EF.ADIM.'!$P$28","v":{"$error":"#DIV/0!"}}]
["(SF B.3)","COSTO OPERATIVO UNITARIO","um/up",{"$f":"-(COSTOS!$H$20*D29/'EF.REF.,RELEV.Y EF.ADIM.'!$H$28)-COSTOS!$E$30","v":{"$error":"#DIV/0!"}},{"$f":"-(COSTOS!$H$20*E29/'EF.REF.,RELEV.Y EF.ADIM.'!$J$28)-COSTOS!$E$30","v":{"$error":"#DIV/0!"}},{"$f":"-(COSTOS!$H$20*F29/'EF.REF.,RELEV.Y EF.ADIM.'!$L$28)-COSTOS!$E$30","v":{"$error":"#DIV/0!"}},{"$f":"-(COSTOS!$H$20*G29/'EF.REF.,RELEV.Y EF.ADIM.'!$N$28)-COSTOS!$E$30","v":{"$error":"#DIV/0!"}},{"$f":"-(COSTOS!$H$20*H29/'EF.REF.,RELEV.Y EF.ADIM.'!$P$28)-COSTOS!$E$30","v":{"$error":"#DIV/0!"}}]
["PARTICIPACIONES ANUALES DEL FACTOR PRODUCCIÓN",null,null,{"$f":"+('EF.REF.,RELEV.Y EF.ADIM.'!I$15*('EF.REF.,RELEV.Y EF.ADIM.'!$G14*('EF.REF.,RELEV.Y EF.ADIM.'!$H14/'EF.REF.,RELEV.Y EF.ADIM.'!$R14)*(ALT.4!D14/'EF.REF.,RELEV.Y EF.ADIM.'!H14)) +'EF.REF.,RELEV.Y EF.ADIM.'!I$15*('EF.REF.,RELEV.Y EF.ADIM.'!$G15*('EF.REF.,RELEV.Y EF.ADIM.'!$H15/'EF.REF.,RELEV.Y EF.ADIM.'!$R15)*(ALT.4!D15/'EF.REF.,RELEV.Y EF.ADIM.'!H15))+'EF.REF.,RELEV.Y EF.ADIM.'!I$17*('EF.REF.,RELEV.Y EF.ADIM.'!$G17*('EF.REF.,RELEV.Y EF.ADIM.'!$H16/'EF.REF.,RELEV.Y EF.ADIM.'!$R16)*(ALT.4!D16/'EF.REF.,RELEV.Y EF.ADIM.'!H16))+'EF.REF.,RELEV.Y EF.ADIM.'!I$17*('EF.REF.,RELEV.Y EF.ADIM.'!$G19*('EF.REF.,RELEV.Y EF.ADIM.'!$H17/'EF.REF.,RELEV.Y EF.ADIM.'!$R17)*(ALT.4!D17/'EF.REF.,RELEV.Y EF.ADIM.'!H17))+'EF.REF.,RELEV.Y EF.ADIM.'!I$19*('EF.REF.,RELEV.Y EF.ADIM.'!$G14*('EF.REF.,RELEV.Y EF.ADIM.'!$H19/'EF.REF.,RELEV.Y EF.ADIM.'!$R19)*(ALT.4!D18/'EF.REF.,RELEV.Y EF.ADIM.'!H19))+'EF.REF.,RELEV.Y EF.ADIM.'!I$19*('EF.REF.,RELEV.Y EF.ADIM.'!$G20*('EF.REF.,RELEV.Y EF.ADIM.'!$H20/'EF.REF.,RELEV.Y EF.ADIM.'!$R20)*(ALT.4!D19/'EF.REF.,RELEV.Y EF.ADIM.'!H20)))*IF(D$5>$F$31,0,1)*IF($E$2>$H$31,0,1)\n\n+('EF.REF.,RELEV.Y EF.ADIM.'!I$15*('EF.REF.,RELEV.Y EF.ADIM.'!$G14*('EF.REF.,RELEV.Y EF.ADIM.'!$H14/'EF.REF.,RELEV.Y EF.ADIM.'!$R14)*(ALT.4!D14/'EF.REF.,RELEV.Y EF.ADIM.'!H14)) +'EF.REF.,RELEV.Y EF.ADIM.'!I$15*('EF.REF.,RELEV.Y EF.ADIM.'!$G15*('EF.REF.,RELEV.Y EF.ADIM.'!$H15/'EF.REF.,RELEV.Y EF.ADIM.'!$R15)*(ALT.4!D15/'EF.REF.,RELEV.Y EF.ADIM.'!H15))+'EF.REF.,RELEV.Y EF.ADIM.'!I$17*('EF.REF.,RELEV.Y EF.ADIM.'!$G17*('EF.REF.,RELEV.Y EF.ADIM.'!$H16/'EF.REF.,RELEV.Y EF.ADIM.'!$R16)*(ALT.4!D16/'EF.REF.,RELEV.Y EF.ADIM.'!H16))+'EF.REF.,RELEV.Y EF.ADIM.'!I$17*('EF.REF.,RELEV.Y EF.ADIM.'!$G19*('EF.REF.,RELEV.Y EF.ADIM.'!$H17/'EF.REF.,RELEV.Y EF.ADIM.'!$R17)*(ALT.4!D17/'EF.REF.,RELEV.Y EF.ADIM.'!H17))+'EF.REF.,RELEV.Y EF.ADIM.'!I$19*('EF.REF.,RELEV.Y EF.ADIM.'!$G14*('EF.REF.,RELEV.Y EF.ADIM.'!$H19/'EF.REF.,RELEV.Y EF.ADIM.'!$R19)*(ALT.4!D18/'EF.REF.,RELEV.Y EF.ADIM.'!H19))+'EF.REF.,RELEV.Y EF.ADIM.'!I$19*('EF.REF.,RELEV.Y EF.ADIM.'!$G20*('EF.REF.,RELEV.Y EF.ADIM.'!$H20/'EF.REF.,RELEV.Y EF.ADIM.'!$R20)*(ALT.4!D19/'EF.REF.,RELEV.Y EF.ADIM.'!H20)))*IF(D$5>$F$31,0,1)*IF($E$2>$H$31,0,1)","v":{"$error":"#DIV/0!"}},{"$f":"+('EF.REF.,RELEV.Y EF.ADIM.'!K$15*('EF.REF.,RELEV.Y EF.ADIM.'!$G14*('EF.REF.,RELEV.Y EF.ADIM.'!$J14/'EF.REF.,RELEV.Y EF.ADIM.'!$R14)*(ALT.4!E14/'EF.REF.,RELEV.Y EF.ADIM.'!J14)) +'EF.REF.,RELEV.Y EF.ADIM.'!K$15*('EF.REF.,RELEV.Y EF.ADIM.'!$G15*('EF.REF.,RELEV.Y EF.ADIM.'!$J15/'EF.REF.,RELEV.Y EF.ADIM.'!$R15)*(ALT.4!E15/'EF.REF.,RELEV.Y EF.ADIM.'!J15))+'EF.REF.,RELEV.Y EF.ADIM.'!K$17*('EF.REF.,RELEV.Y EF.ADIM.'!$G17*('EF.REF.,RELEV.Y EF.ADIM.'!$J16/'EF.REF.,RELEV.Y EF.ADIM.'!$R16)*(ALT.4!E16/'EF.REF.,RELEV.Y EF.ADIM.'!J16))+'EF.REF.,RELEV.Y EF.ADIM.'!K$17*('EF.REF.,RELEV.Y EF.ADIM.'!$G19*('EF.REF.,RELEV.Y EF.ADIM.'!$J17/'EF.REF.,RELEV.Y EF.ADIM.'!$R17)*(ALT.4!E17/'EF.REF.,RELEV.Y EF.ADIM.'!J17))+'EF.REF.,RELEV.Y EF.ADIM.'!K$19*('EF.REF.,RELEV.Y EF.ADIM.'!$G14*('EF.REF.,RELEV.Y EF.ADIM.'!$J19/'EF.REF.,RELEV.Y EF.ADIM.'!$R19)*(ALT.4!E18/'EF.REF.,RELEV.Y EF.ADIM.'!J19))+'EF.REF.,RELEV.Y EF.ADIM.'!K$19*('EF.REF.,RELEV.Y EF.ADIM.'!$G20*('EF.REF.,RELEV.Y EF.ADIM.'!$J20/'EF.REF.,RELEV.Y EF.ADIM.'!$R20)*(ALT.4!E19/'EF.REF.,RELEV.Y EF.ADIM.'!J20)))*IF(E$5>$F$31,0,1)*IF($E$2>$H$31,0,1)","v":{"$error":"#DIV/0!"}},{"$f":"+('EF.REF.,RELEV.Y EF.ADIM.'!M$15*('EF.REF.,RELEV.Y EF.ADIM.'!$G14*('EF.REF.,RELEV.Y EF.ADIM.'!$L14/'EF.REF.,RELEV.Y EF.ADIM.'!$R14)*(ALT.4!F14/'EF.REF.,RELEV.Y EF.ADIM.'!L14)) +'EF.REF.,RELEV.Y EF.ADIM.'!M$15*('EF.REF.,RELEV.Y EF.ADIM.'!$G15*('EF.REF.,RELEV.Y EF.ADIM.'!$L15/'EF.REF.,RELEV.Y EF.ADIM.'!$R15)*(ALT.4!F15/'EF.REF.,RELEV.Y EF.ADIM.'!L15))+'EF.REF.,RELEV.Y EF.ADIM.'!M$17*('EF.REF.,RELEV.Y EF.ADIM.'!$G17*('EF.REF.,RELEV.Y EF.ADIM.'!$L16/'EF.REF.,RELEV.Y EF.ADIM.'!$R16)*(ALT.4!F16/'EF.REF.,RELEV.Y EF.ADIM.'!L16))+'EF.REF.,RELEV.Y EF.ADIM.'!M$17*('EF.REF.,RELEV.Y EF.ADIM.'!$G19*('EF.REF.,RELEV.Y EF.ADIM.'!$L17/'EF.REF.,RELEV.Y EF.ADIM.'!$R17)*(ALT.4!F17/'EF.REF.,RELEV.Y EF.ADIM.'!L17))+'EF.REF.,RELEV.Y EF.ADIM.'!M$19*('EF.REF.,RELEV.Y EF.ADIM.'!$G14*('EF.REF.,RELEV.Y EF.ADIM.'!$L19/'EF.REF.,RELEV.Y EF.ADIM.'!$R19)*(ALT.4!F18/'EF.REF.,RELEV.Y EF.ADIM.'!L19))+'EF.REF.,RELEV.Y EF.ADIM.'!M$19*('EF.REF.,RELEV.Y EF.ADIM.'!$G20*('EF.REF.,RELEV.Y EF.ADIM.'!$L20/'EF.REF.,RELEV.Y EF.ADIM.'!$R20)*(ALT.4!F19/'EF.REF.,RELEV.Y EF.ADIM.'!L20)))*IF(F$5>$F$31,0,1)*IF($E$2>$H$31,0,1)","v":{"$error":"#DIV/0!"}},{"$f":"+('EF.REF.,RELEV.Y EF.ADIM.'!O$15*('EF.REF.,RELEV.Y EF.ADIM.'!$G14*('EF.REF.,RELEV.Y EF.ADIM.'!$N14/'EF.REF.,RELEV.Y EF.ADIM.'!$R14)*(ALT.4!G14/'EF.REF.,RELEV.Y EF.ADIM.'!N14)) +'EF.REF.,RELEV.Y EF.ADIM.'!O$15*('EF.REF.,RELEV.Y EF.ADIM.'!$G15*('EF.REF.,RELEV.Y EF.ADIM.'!$N15/'EF.REF.,RELEV.Y EF.ADIM.'!$R15)*(ALT.4!G15/'EF.REF.,RELEV.Y EF.ADIM.'!N15))+'EF.REF.,RELEV.Y EF.ADIM.'!O$17*('EF.REF.,RELEV.Y EF.ADIM.'!$G17*('EF.REF.,RELEV.Y EF.ADIM.'!$N16/'EF.REF.,RELEV.Y EF.ADIM.'!$R16)*(ALT.4!G16/'EF.REF.,RELEV.Y EF.ADIM.'!N16))+'EF.REF.,RELEV.Y EF.ADIM.'!O$17*('EF.REF.,RELEV.Y EF.ADIM.'!$G19*('EF.REF.,RELEV.Y EF.ADIM.'!$N17/'EF.REF.,RELEV.Y EF.ADIM.'!$R17)*(ALT.4!G17/'EF.REF.,RELEV.Y EF.ADIM.'!N17))+'EF.REF.,RELEV.Y EF.ADIM.'!O$19*('EF.REF.,RELEV.Y EF.ADIM.'!$G14*('EF.REF.,RELEV.Y EF.ADIM.'!$N19/'EF.REF.,RELEV.Y EF.ADIM.'!$R19)*(ALT.4!G18/'EF.REF.,RELEV.Y EF.ADIM.'!N19))+'EF.REF.,RELEV.Y EF.ADIM.'!O$19*('EF.REF.,RELEV.Y EF.ADIM.'!$G20*('EF.REF.,RELEV.Y EF.ADIM.'!$N20/'EF.REF.,RELEV.Y EF.ADIM.'!$R20)*(ALT.4!G19/'EF.REF.,RELEV.Y EF.ADIM.'!N20)))*IF(G$5>$F$31,0,1)*IF($E$2>$H$31,0,1)","v":{"$error":"#DIV/0!"}},{"$f":"+('EF.REF.,RELEV.Y EF.ADIM.'!Q$15*('EF.REF.,RELEV.Y EF.ADIM.'!$G14*('EF.REF.,RELEV.Y EF.ADIM.'!$P14/'EF.REF.,RELEV.Y EF.ADIM.'!$R14)*(ALT.4!H14/'EF.REF.,RELEV.Y EF.ADIM.'!P14)) +'EF.REF.,RELEV.Y EF.ADIM.'!Q$15*('EF.REF.,RELEV.Y EF.ADIM.'!$G15*('EF.REF.,RELEV.Y EF.ADIM.'!$P15/'EF.REF.,RELEV.Y EF.ADIM.'!$R15)*(ALT.4!H15/'EF.REF.,RELEV.Y EF.ADIM.'!P15))+'EF.REF.,RELEV.Y EF.ADIM.'!Q$17*('EF.REF.,RELEV.Y EF.ADIM.'!$G17*('EF.REF.,RELEV.Y EF.ADIM.'!$P16/'EF.REF.,RELEV.Y EF.ADIM.'!$R16)*(ALT.4!H16/'EF.REF.,RELEV.Y EF.ADIM.'!P16))+'EF.REF.,RELEV.Y EF.ADIM.'!Q$17*('EF.REF.,RELEV.Y EF.ADIM.'!$G19*('EF.REF.,RELEV.Y EF.ADIM.'!$P17/'EF.REF.,RELEV.Y EF.ADIM.'!$R17)*(ALT.4!H17/'EF.REF.,RELEV.Y EF.ADIM.'!P17))+'EF.REF.,RELEV.Y EF.ADIM.'!Q$19*('EF.REF.,RELEV.Y EF.ADIM.'!$G14*('EF.REF.,RELEV.Y EF.ADIM.'!$P19/'EF.REF.,RELEV.Y EF.ADIM.'!$R19)*(ALT.4!H18/'EF.REF.,RELEV.Y EF.ADIM.'!P19))+'EF.REF.,RELEV.Y EF.ADIM.'!Q$19*('EF.REF.,RELEV.Y EF.ADIM.'!$G20*('EF.REF.,RELEV.Y EF.ADIM.'!$P20/'EF.REF.,RELEV.Y EF.ADIM.'!$R20)*(ALT.4!H19/'EF.REF.,RELEV.Y EF.ADIM.'!P20)))*IF(H$5>$F$31,0,1)*IF($E$2>$H$31,0,1)","v":{"$error":"#DIV/0!"}}]
[null,"SSH","escala cualicuantitativa"]
["RIESGO","SSM","escala cualicuantitativa"]
["(SF C.1)","SSGTR","escala cualicuantitativa"]
[null,"ENTORNO DEL SHM","escala cualicuantitativa"]
["INCONFORT       (SF C.2)","SSH","escala cualicuantitativa"]
[null,"SSGTR","escala cualicuantitativa"]
[null,"ENTORNO DEL SHM","escala cualicuantitativa"]
["PARTICIPACIONES ANUALES DEL FACTOR PROTECCIÓN",null,null,{"$f":"+('EF.REF.,RELEV.Y EF.ADIM.'!I$22*('EF.REF.,RELEV.Y EF.ADIM.'!$G21*('EF.REF.,RELEV.Y EF.ADIM.'!$H21/'EF.REF.,RELEV.Y EF.ADIM.'!$R21)*(ALT.4!D21/'EF.REF.,RELEV.Y EF.ADIM.'!H21)) +'EF.REF.,RELEV.Y EF.ADIM.'!I$22*('EF.REF.,RELEV.Y EF.ADIM.'!$G22*('EF.REF.,RELEV.Y EF.ADIM.'!$H22/'EF.REF.,RELEV.Y EF.ADIM.'!$R22)*(ALT.4!D22/'EF.REF.,RELEV.Y EF.ADIM.'!H22))+'EF.REF.,RELEV.Y EF.ADIM.'!I$22*('EF.REF.,RELEV.Y EF.ADIM.'!$G23*('EF.REF.,RELEV.Y EF.ADIM.'!$H23/'EF.REF.,RELEV.Y EF.ADIM.'!$R23)*(ALT.4!D23/'EF.REF.,RELEV.Y EF.ADIM.'!H23))+'EF.REF.,RELEV.Y EF.ADIM.'!I$22*('EF.REF.,RELEV.Y EF.ADIM.'!$G24*('EF.REF.,RELEV.Y EF.ADIM.'!$H24/'EF.REF.,RELEV.Y EF.ADIM.'!$R24)*(ALT.4!D24/'EF.REF.,RELEV.Y EF.ADIM.'!H24))+'EF.REF.,RELEV.Y EF.ADIM.'!I$26*('EF.REF.,RELEV.Y EF.ADIM.'!$G25*('EF.REF.,RELEV.Y EF.ADIM.'!$H25/'EF.REF.,RELEV.Y EF.ADIM.'!$R25)*(ALT.4!D25/'EF.REF.,RELEV.Y EF.ADIM.'!H25))+'EF.REF.,RELEV.Y EF.ADIM.'!I$26*('EF.REF.,RELEV.Y EF.ADIM.'!$G26*('EF.REF.,RELEV.Y EF.ADIM.'!$H26/'EF.REF.,RELEV.Y EF.ADIM.'!$R26)*(ALT.4!D26/'EF.REF.,RELEV.Y EF.ADIM.'!H26))+'EF.REF.,RELEV.Y EF.ADIM.'!I$26*('EF.REF.,RELEV.Y EF.ADIM.'!$G27*('EF.REF.,RELEV.Y EF.ADIM.'!$H27/'EF.REF.,RELEV.Y EF.ADIM.'!$R27)*(ALT.4!D26/'EF.REF.,RELEV.Y EF.ADIM.'!H27)))*IF(D$5>$F$31,0,1)*IF($E$2>$H$31,0,1)","v":{"$error":"#DIV/0!"}},{"$f":"+('EF.REF.,RELEV.Y EF.ADIM.'!K$22*('EF.REF.,RELEV.Y EF.ADIM.'!$G21*('EF.REF.,RELEV.Y EF.ADIM.'!$J21/'EF.REF.,RELEV.Y EF.ADIM.'!$R21)*(ALT.4!E21/'EF.REF.,RELEV.Y EF.ADIM.'!J21)) +'EF.REF.,RELEV.Y EF.ADIM.'!K$22*('EF.REF.,RELEV.Y EF.ADIM.'!$G22*('EF.REF.,RELEV.Y EF.ADIM.'!$J22/'EF.REF.,RELEV.Y EF.ADIM.'!$R22)*(ALT.4!E22/'EF.REF.,RELEV.Y EF.ADIM.'!J22))+'EF.REF.,RELEV.Y EF.ADIM.'!K$22*('EF.REF.,RELEV.Y EF.ADIM.'!$G23*('EF.REF.,RELEV.Y EF.ADIM.'!$J23/'EF.REF.,RELEV.Y EF.ADIM.'!$R23)*(ALT.4!E23/'EF.REF.,RELEV.Y EF.ADIM.'!J23))+'EF.REF.,RELEV.Y EF.ADIM.'!K$22*('EF.REF.,RELEV.Y EF.ADIM.'!$G24*('EF.REF.,RELEV.Y EF.ADIM.'!$J24/'EF.REF.,RELEV.Y EF.ADIM.'!$R24)*(ALT.4!E24/'EF.REF.,RELEV.Y EF.ADIM.'!J24))+'EF.REF.,RELEV.Y EF.ADIM.'!K$26*('EF.REF.,RELEV.Y EF.ADIM.'!$G25*('EF.REF.,RELEV.Y EF.ADIM.'!$J25/'EF.REF.,RELEV.Y EF.ADIM.'!$R25)*(ALT.4!E25/'EF.REF.,RELEV.Y EF.ADIM.'!J25))+'EF.REF.,RELEV.Y EF.ADIM.'!K$26*('EF.REF.,RELEV.Y EF.ADIM.'!$G26*('EF.REF.,RELEV.Y EF.ADIM.'!$J26/'EF.REF.,RELEV.Y EF.ADIM.'!$R26)*(ALT.4!E26/'EF.REF.,RELEV.Y EF.ADIM.'!J26))+'EF.REF.,RELEV.Y EF.ADIM.'!K$26*('EF.REF.,RELEV.Y EF.ADIM.'!$G27*('EF.REF.,RELEV.Y EF.ADIM.'!$J27/'EF.REF.,RELEV.Y EF.ADIM.'!$R27)*(ALT.4!E26/'EF.REF.,RELEV.Y EF.ADIM.'!J27)))*IF(E$5>$F$31,0,1)*IF($E$2>$H$31,0,1)","v":{"$error":"#DIV/0!"}},{"$f":"+('EF.REF.,RELEV.Y EF.ADIM.'!M$22*('EF.REF.,RELEV.Y EF.ADIM.'!$G21*('EF.REF.,RELEV.Y EF.ADIM.'!$L21/'EF.REF.,RELEV.Y EF.ADIM.'!$R21)*(ALT.4!F21/'EF.REF.,RELEV.Y EF.ADIM.'!L21)) +'EF.REF.,RELEV.Y EF.ADIM.'!M$22*('EF.REF.,RELEV.Y EF.ADIM.'!$G22*('EF.REF.,RELEV.Y EF.ADIM.'!$L22/'EF.REF.,RELEV.Y EF.ADIM.'!$R22)*(ALT.4!F22/'EF.REF.,RELEV.Y EF.ADIM.'!L22))+'EF.REF.,RELEV.Y EF.ADIM.'!M$22*('EF.REF.,RELEV.Y EF.ADIM.'!$G23*('EF.REF.,RELEV.Y EF.ADIM.'!$L23/'EF.REF.,RELEV.Y EF.ADIM.'!$R23)*(ALT.4!F23/'EF.REF.,RELEV.Y EF.ADIM.'!L23))+'EF.REF.,RELEV.Y EF.ADIM.'!M$22*('EF.REF.,RELEV.Y EF.ADIM.'!$G24*('EF.REF.,RELEV.Y EF.ADIM.'!$L24/'EF.REF.,RELEV.Y EF.ADIM.'!$R24)*(ALT.4!F24/'EF.REF.,RELEV.Y EF.ADIM.'!L24))+'EF.REF.,RELEV.Y EF.ADIM.'!M$26*('EF.REF.,RELEV.Y EF.ADIM.'!$G25*('EF.REF.,RELEV.Y EF.ADIM.'!$L25/'EF.REF.,RELEV.Y EF.ADIM.'!$R25)*(ALT.4!F25/'EF.REF.,RELEV.Y EF.ADIM.'!L25))+'EF.REF.,RELEV.Y EF.ADIM.'!M$26*('EF.REF.,RELEV.Y EF.ADIM.'!$G26*('EF.REF.,RELEV.Y EF.ADIM.'!$L26/'EF.REF.,RELEV.Y EF.ADIM.'!$R26)*(ALT.4!F26/'EF.REF.,RELEV.Y EF.ADIM.'!L26))+'EF.REF.,RELEV.Y EF.ADIM.'!M$26*('EF.REF.,RELEV.Y EF.ADIM.'!$G27*('EF.REF.,RELEV.Y EF.ADIM.'!$L27/'EF.REF.,RELEV.Y EF.ADIM.'!$R27)*(ALT.4!F26/'EF.REF.,RELEV.Y EF.ADIM.'!L27)))*IF(F$5>$F$31,0,1)*IF($E$2>$H$31,0,1)","v":{"$error":"#DIV/0!"}},{"$f":"+('EF.REF.,RELEV.Y EF.ADIM.'!O$22*('EF.REF.,RELEV.Y EF.ADIM.'!$G21*('EF.REF.,RELEV.Y EF.ADIM.'!$N21/'EF.REF.,RELEV.Y EF.ADIM.'!$R21)*(ALT.4!G21/'EF.REF.,RELEV.Y EF.ADIM.'!N21)) +'EF.REF.,RELEV.Y EF.ADIM.'!O$22*('EF.REF.,RELEV.Y EF.ADIM.'!$G22*('EF.REF.,RELEV.Y EF.ADIM.'!$N22/'EF.REF.,RELEV.Y EF.ADIM.'!$R22)*(ALT.4!G22/'EF.REF.,RELEV.Y EF.ADIM.'!N22))+'EF.REF.,RELEV.Y EF.ADIM.'!O$22*('EF.REF.,RELEV.Y EF.ADIM.'!$G23*('EF.REF.,RELEV.Y EF.ADIM.'!$N23/'EF.REF.,RELEV.Y EF.ADIM.'!$R23)*(ALT.4!G23/'EF.REF.,RELEV.Y EF.ADIM.'!N23))+'EF.REF.,RELEV.Y EF.ADIM.'!O$22*('EF.REF.,RELEV.Y EF.ADIM.'!$G24*('EF.REF.,RELEV.Y EF.ADIM.'!$N24/'EF.REF.,RELEV.Y EF.ADIM.'!$R24)*(ALT.4!G24/'EF.REF.,RELEV.Y EF.ADIM.'!N24))+'EF.REF.,RELEV.Y EF.ADIM.'!O$26*('EF.REF.,RELEV.Y EF.ADIM.'!$G25*('EF.REF.,RELEV.Y EF.ADIM.'!$N25/'EF.REF.,RELEV.Y EF.ADIM.'!$R25)*(ALT.4!G25/'EF.REF.,RELEV.Y EF.ADIM.'!N25))+'EF.REF.,RELEV.Y EF.ADIM.'!O$26*('EF.REF.,RELEV.Y EF.ADIM.'!$G26*('EF.REF.,RELEV.Y EF.ADIM.'!$N26/'EF.REF.,RELEV.Y EF.ADIM.'!$R26)*(ALT.4!G26/'EF.REF.,RELEV.Y EF.ADIM.'!N26))+'EF.REF.,RELEV.Y EF.ADIM.'!O$26*('EF.REF.,RELEV.Y EF.ADIM.'!$G27*('EF.REF.,RELEV.Y EF.ADIM.'!$N27/'EF.REF.,RELEV.Y EF.ADIM.'!$R27)*(ALT.4!G26/'EF.REF.,RELEV.Y EF.ADIM.'!N27)))*IF(G$5>$F$31,0,1)*IF($E$2>$H$31,0,1)","v":{"$error":"#DIV/0!"}},{"$f":"+('EF.REF.,RELEV.Y EF.ADIM.'!Q$22*('EF.REF.,RELEV.Y EF.ADIM.'!$G21*('EF.REF.,RELEV.Y EF.ADIM.'!$P21/'EF.REF.,RELEV.Y EF.ADIM.'!$R21)*(ALT.4!H21/'EF.REF.,RELEV.Y EF.ADIM.'!P21)) +'EF.REF.,RELEV.Y EF.ADIM.'!Q$22*('EF.REF.,RELEV.Y EF.ADIM.'!$G22*('EF.REF.,RELEV.Y EF.ADIM.'!$P22/'EF.REF.,RELEV.Y EF.ADIM.'!$R22)*(ALT.4!H22/'EF.REF.,RELEV.Y EF.ADIM.'!P22))+'EF.REF.,RELEV.Y EF.ADIM.'!Q$22*('EF.REF.,RELEV.Y EF.ADIM.'!$G23*('EF.REF.,RELEV.Y EF.ADIM.'!$P23/'EF.REF.,RELEV.Y EF.ADIM.'!$R23)*(ALT.4!H23/'EF.REF.,RELEV.Y EF.ADIM.'!P23))+'EF.REF.,RELEV.Y EF.ADIM.'!Q$22*('EF.REF.,RELEV.Y EF.ADIM.'!$G24*('EF.REF.,RELEV.Y EF.ADIM.'!$P24/'EF.REF.,RELEV.Y EF.ADIM.'!$R24)*(ALT.4!H24/'EF.REF.,RELEV.Y EF.ADIM.'!P24))+'EF.REF.,RELEV.Y EF.ADIM.'!Q$26*('EF.REF.,RELEV.Y EF.ADIM.'!$G25*('EF.REF.,RELEV.Y EF.ADIM.'!$P25/'EF.REF.,RELEV.Y EF.ADIM.'!$R25)*(ALT.4!H25/'EF.REF.,RELEV.Y EF.ADIM.'!P25))+'EF.REF.,RELEV.Y EF.ADIM.'!Q$26*('EF.REF.,RELEV.Y EF.ADIM.'!$G26*('EF.REF.,RELEV.Y EF.ADIM.'!$P26/'EF.REF.,RELEV.Y EF.ADIM.'!$R26)*(ALT.4!H26/'EF.REF.,RELEV.Y EF.ADIM.'!P26))+'EF.REF.,RELEV.Y EF.ADIM.'!Q$26*('EF.REF.,RELEV.Y EF.ADIM.'!$G27*('EF.REF.,RELEV.Y EF.ADIM.'!$P27/'EF.REF.,RELEV.Y EF.ADIM.'!$R27)*(ALT.4!H26/'EF.REF.,RELEV.Y EF.ADIM.'!P27)))*IF(H$5>$F$31,0,1)*IF($E$2>$H$31,0,1)","v":{"$error":"#DIV/0!"}}]
["NÚMERO TOTAL DE SHM",null,"pu",{"$f":"+IF(D13<'EF.REF.,RELEV.Y EF.ADIM.'!$H$28,INT('EF.REF.,RELEV.Y EF.ADIM.'!$H$28/D13+0.9999),1)","v":1},{"$f":"+IF(E13<'EF.REF.,RELEV.Y EF.ADIM.'!$J$28,INT('EF.REF.,RELEV.Y EF.ADIM.'!$J$28/E13+0.9999),1)","v":1},{"$f":"+IF(F13<'EF.REF.,RELEV.Y EF.ADIM.'!$L$28,INT('EF.REF.,RELEV.Y EF.ADIM.'!$L$28/F13+0.9999),1)","v":1},{"$f":"+IF(G13<'EF.REF.,RELEV.Y EF.ADIM.'!$N$28,INT('EF.REF.,RELEV.Y EF.ADIM.'!$N$28/G13+0.9999),1)","v":1},{"$f":"+IF(H13<'EF.REF.,RELEV.Y EF.ADIM.'!$P$28,INT('EF.REF.,RELEV.Y EF.ADIM.'!$P$28/H13+0.9999),1)","v":1}]
["   ANUALIDADES RELATIVAS DE CONVENIENCIA ACTUALIZADAS",null,null,{"$f":"+D12+D20+D28","v":{"$error":"#DIV/0!"}},{"$f":"+E12+E20+E28","v":{"$error":"#DIV/0!"}},{"$error":"#DIV/0!"},{"$error":"#DIV/0!"},{"$error":"#DIV/0!"}]
["   INDICE RELATIVO DE CONVENIENCIA ALTERNATIVA 4",null,null,{"$f":"+IF($E$2<>\"VACÍA\",($D$30+$E$30+$F$30+G30+H30),-999999)","v":-999999},"Nº DE AÑOS",{"$f":"+'EF.REF.,RELEV.Y EF.ADIM.'!$L$5","v":1},"Nª DE ALTS",{"$f":"+'EF.REF.,RELEV.Y EF.ADIM.'!$Q$5","v":1}]

{"sheet":"ALT.5","index":8,"n_rows":31,"n_cols":8,"rows_kept":31,"cut":false,"hidden":false,"merged":[[30,0,30,2],[4,0,5,1],[6,0,10,0],[12,0,14,0],[24,0,26,0],[28,0,28,1],[29,0,29,2],[11,0,11,2],[19,0,19,2],[27,0,27,2],[15,0,16,0],[5,3,5,7],[0,2,0,7],[1,3,2,3],[1,0,2,0],[1,4,2,4],[3,0,3,1],[3,2,3,7],[1,6,2,7],[1,1,2,2]]}
["i","i","programa evalerg AdEA"]
["DENOMINACIÓN        EVALUACIÓN",{"$f":"+'EF.REF.,RELEV.Y EF.ADIM.'!E2","v":0},null,{"$f":"+IF(H31>=5,\"ALTERNATIVA\",\" ALTERNATIVA \")","v":" ALTERNATIVA "},{"$f":"+IF($H$31>=5,5,\"VACÍA\")","v":"VACÍA"},"DENOMINAC. ",{"$f":"+COSTOS!B11","v":"Escribir denominación alternativa 5"}]
[null,null,null,null,null,"ALTERNATIVA"]
[{"$f":"+IF(D2=\"ALTERNATIVA\",\"DESCRIPCIÓN:\",\"SIN DESCRIPCIÓN\")","v":"SIN DESCRIPCIÓN"}]
["FACTORES Y SUBFACTORES",null,"AÑOS:",1,2,3,4,5]
[null,null,"ESC. MEDIC. EFECT.","EFECTOS ANUALES"]
["PARTICIPACION                         (F A)","OCUPACION","nro. de SSH por SHM"]
[null,"PARTICIPACION CREATIVA","escala cualicuantitativa"]
[null,"PARTICIPACION ECONOMICA","(um/año)promedio",{"$f":"+COSTOS!$C$21","v":9.9999999999999995E-8},{"$f":"+COSTOS!$C$21","v":9.9999999999999995E-8},{"$f":"+COSTOS!$C$21","v":9.9999999999999995E-8},{"$f":"+COSTOS!$C$21","v":9.9999999999999995E-8},{"$f":"+COSTOS!$C$21","v":9.9999999999999995E-8}]
[null,"PARTICIPACION PSICOSOCIAL","escala cualicuantitativa"]
[null,"PARTICIPACION DECISIONAL","escala cualicuantitativa"]
["PARTICIPACIONES ANUALES DEL FACTOR PARTICIPACIÓN",null,null,{"$f":"+(D$29*'EF.REF.,RELEV.Y EF.ADIM.'!I$10*ALT.5!D7/'EF.REF.,RELEV.Y EF.ADIM.'!H9)*(('EF.REF.,RELEV.Y EF.ADIM.'!$G10*('EF.REF.,RELEV.Y EF.ADIM.'!H10/'EF.REF.,RELEV.Y EF.ADIM.'!$R10)*(ALT.5!D8/'EF.REF.,RELEV.Y EF.ADIM.'!H10))+('EF.REF.,RELEV.Y EF.ADIM.'!$G11*('EF.REF.,RELEV.Y EF.ADIM.'!H11/'EF.REF.,RELEV.Y EF.ADIM.'!$R11)*(ALT.5!D9/'EF.REF.,RELEV.Y EF.ADIM.'!H11))+('EF.REF.,RELEV.Y EF.ADIM.'!$G12*('EF.REF.,RELEV.Y EF.ADIM.'!H12/'EF.REF.,RELEV.Y EF.ADIM.'!$R12)*(ALT.5!D10/'EF.REF.,RELEV.Y EF.ADIM.'!H12))+('EF.REF.,RELEV.Y EF.ADIM.'!$G13*('EF.REF.,RELEV.Y EF.ADIM.'!H13/'EF.REF.,RELEV.Y EF.ADIM.'!$R13)*(ALT.5!D11/'EF.REF.,RELEV.Y EF.ADIM.'!H13))) *IF(D$5>$F$31,0,1)*IF($E$2>$H$31,0,1)","v":{"$error":"#DIV/0!"}},{"$f":"+(E$29*'EF.REF.,RELEV.Y EF.ADIM.'!K$10*ALT.5!E7/'EF.REF.,RELEV.Y EF.ADIM.'!J9)*(('EF.REF.,RELEV.Y EF.ADIM.'!$G10*('EF.REF.,RELEV.Y EF.ADIM.'!J10/'EF.REF.,RELEV.Y EF.ADIM.'!$R10)*(ALT.5!E8/'EF.REF.,RELEV.Y EF.ADIM.'!J10))+('EF.REF.,RELEV.Y EF.ADIM.'!$G11*('EF.REF.,RELEV.Y EF.ADIM.'!J11/'EF.REF.,RELEV.Y EF.ADIM.'!$R11)*(ALT.5!E9/'EF.REF.,RELEV.Y EF.ADIM.'!J11))+('EF.REF.,RELEV.Y EF.ADIM.'!$G12*('EF.REF.,RELEV.Y EF.ADIM.'!J12/'EF.REF.,RELEV.Y EF.ADIM.'!$R12)*(ALT.5!E10/'EF.REF.,RELEV.Y EF.ADIM.'!J12))+('EF.REF.,RELEV.Y EF.ADIM.'!$G13*('EF.REF.,RELEV.Y EF.ADIM.'!J13/'EF.REF.,RELEV.Y EF.ADIM.'!$R13)*(ALT.5!E11/'EF.REF.,RELEV.Y EF.ADIM.'!J13))) *IF(E$5>$F$31,0,1)*IF($E$2>$H$31,0,1)","v":{"$error":"#DIV/0!"}},{"$f":"+(F$29*'EF.REF.,RELEV.Y EF.ADIM.'!M$10*ALT.5!F7/'EF.REF.,RELEV.Y EF.ADIM.'!L9)*(('EF.REF.,RELEV.Y EF.ADIM.'!$G10*('EF.REF.,RELEV.Y EF.ADIM.'!L10/'EF.REF.,RELEV.Y EF.ADIM.'!$R10)*(ALT.5!F8/'EF.REF.,RELEV.Y EF.ADIM.'!L10))+('EF.REF.,RELEV.Y EF.ADIM.'!$G11*('EF.REF.,RELEV.Y EF.ADIM.'!L11/'EF.REF.,RELEV.Y EF.ADIM.'!$R11)*(ALT.5!F9/'EF.REF.,RELEV.Y EF.ADIM.'!L11))+('EF.REF.,RELEV.Y EF.ADIM.'!$G12*('EF.REF.,RELEV.Y EF.ADIM.'!L12/'EF.REF.,RELEV.Y EF.ADIM.'!$R12)*(ALT.5!F10/'EF.REF.,RELEV.Y EF.ADIM.'!L12))+('EF.REF.,RELEV.Y EF.ADIM.'!$G13*('EF.REF.,RELEV.Y EF.ADIM.'!L13/'EF.REF.,RELEV.Y EF.ADIM.'!$R13)*(ALT.5!F11/'EF.REF.,RELEV.Y EF.ADIM.'!L13))) *IF(F$5>$F$31,0,1)*IF($E$2>$H$31,0,1)","v":{"$error":"#DIV/0!"}},{"$f":"+(G$29*'EF.REF.,RELEV.Y EF.ADIM.'!O$10*ALT.5!G7/'EF.REF.,RELEV.Y EF.ADIM.'!N9)*(('EF.REF.,RELEV.Y EF.ADIM.'!$G10*('EF.REF.,RELEV.Y EF.ADIM.'!N10/'EF.REF.,RELEV.Y EF.ADIM.'!$R10)*(ALT.5!G8/'EF.REF.,RELEV.Y EF.ADIM.'!N10))+('EF.REF.,RELEV.Y EF.ADIM.'!$G11*('EF.REF.,RELEV.Y EF.ADIM.'!N11/'EF.REF.,RELEV.Y EF.ADIM.'!$R11)*(ALT.5!G9/'EF.REF.,RELEV.Y EF.ADIM.'!N11))+('EF.REF.,RELEV.Y EF.ADIM.'!$G12*('EF.REF.,RELEV.Y EF.ADIM.'!N12/'EF.REF.,RELEV.Y EF.ADIM.'!$R12)*(ALT.5!G10/'EF.REF.,RELEV.Y EF.ADIM.'!N12))+('EF.REF.,RELEV.Y EF.ADIM.'!$G13*('EF.REF.,RELEV.Y EF.ADIM.'!N13/'EF.REF.,RELEV.Y EF.ADIM.'!$R13)*(ALT.5!G11/'EF.REF.,RELEV.Y EF.ADIM.'!N13))) *IF(G$5>$F$31,0,1)*IF($E$2>$H$31,0,1)","v":{"$error":"#DIV/0!"}},{"$f":"+(H$29*'EF.REF.,RELEV.Y EF.ADIM.'!Q$10*ALT.5!H7/'EF.REF.,RELEV.Y EF.ADIM.'!P9)*(('EF.REF.,RELEV.Y EF.ADIM.'!$G10*('EF.REF.,RELEV.Y EF.ADIM.'!P10/'EF.REF.,RELEV.Y EF.ADIM.'!$R10)*(ALT.5!H8/'EF.REF.,RELEV.Y EF.ADIM.'!P10))+('EF.REF.,RELEV.Y EF.ADIM.'!$G11*('EF.REF.,RELEV.Y EF.ADIM.'!P11/'EF.REF.,RELEV.Y EF.ADIM.'!$R11)*(ALT.5!H9/'EF.REF.,RELEV.Y EF.ADIM.'!P11))+('EF.REF.,RELEV.Y EF.ADIM.'!$G12*('EF.REF.,RELEV.Y EF.ADIM.'!P12/'EF.REF.,RELEV.Y EF.ADIM.'!$R12)*(ALT.5!H10/'EF.REF.,RELEV.Y EF.ADIM.'!P12))+('EF.REF.,RELEV.Y EF.ADIM.'!$G13*('EF.REF.,RELEV.Y EF.ADIM.'!P13/'EF.REF.,RELEV.Y EF.ADIM.'!$R13)*(ALT.5!H11/'EF.REF.,RELEV.Y EF.ADIM.'!P13))) *IF(H$5>$F$31,0,1)*IF($E$2>$H$31,0,1)","v":{"$error":"#DIV/0!"}}]
["EFICACIA                               (F B)","CAPACIDAD UNITARIA DE PRODUC.","up/año"]
[null,"CALIDAD","escala cualicuantitativa"]
[null,"FIABILIDAD OPERATIVA","1 - tasa de fallas"]
["SUSTENTABI-  LIDAD (SF B2)","ELASTICIDAD CUANTITATIVA","escala cualicuantitativa"]
[null,"ADAPTABILIDAD CUALITATIVA","escala cualicuantitativa"]
["EFICIENCIA","COSTO POR INVERS. UNITARIO","um/up",{"$f":"-COSTOS!$F$11*D29/'EF.REF.,RELEV.Y EF.ADIM.'!$H$28","v":{"$error":"#DIV/0!"}},{"$f":"-COSTOS!$F$11*E29/'EF.REF.,RELEV.Y EF.ADIM.'!$J$28","v":{"$error":"#DIV/0!"}},{"$f":"-COSTOS!$F$11*F29/'EF.REF.,RELEV.Y EF.ADIM.'!$L$28","v":{"$error":"#DIV/0!"}},{"$f":"-COSTOS!$F$11*G29/'EF.REF.,RELEV.Y EF.ADIM.'!$N$28","v":{"$error":"#DIV/0!"}},{"$f":"-COSTOS!$F$11*H29/'EF.REF.,RELEV.Y EF.ADIM.'!$P$28","v":{"$error":"#DIV/0!"}}]
["(SF B.3)","COSTO OPERATIVO UNITARIO","um/up",{"$f":"-(COSTOS!$H$21*D29/'EF.REF.,RELEV.Y EF.ADIM.'!$H$28)-COSTOS!$E$31","v":{"$error":"#DIV/0!"}},{"$f":"-(COSTOS!$H$21*E29/'EF.REF.,RELEV.Y EF.ADIM.'!$J$28)-COSTOS!$E$31","v":{"$error":"#DIV/0!"}},{"$f":"-(COSTOS!$H$21*F29/'EF.REF.,RELEV.Y EF.ADIM.'!$L$28)-COSTOS!$E$31","v":{"$error":"#DIV/0!"}},{"$f":"-(COSTOS!$H$21*G29/'EF.REF.,RELEV.Y EF.ADIM.'!$N$28)-COSTOS!$E$31","v":{"$error":"#DIV/0!"}},{"$f":"-(COSTOS!$H$21*H29/'EF.REF.,RELEV.Y EF.ADIM.'!$P$28)-COSTOS!$E$31","v":{"$error":"#DIV/0!"}}]
["PARTICIPACIONES ANUALES DEL FACTOR PRODUCCIÓN",null,null,{"$f":"+('EF.REF.,RELEV.Y EF.ADIM.'!I$15*('EF.REF.,RELEV.Y EF.ADIM.'!$G14*('EF.REF.,RELEV.Y EF.ADIM.'!$H14/'EF.REF.,RELEV.Y EF.ADIM.'!$R14)*(ALT.5!D14/'EF.REF.,RELEV.Y EF.ADIM.'!H14)) +'EF.REF.,RELEV.Y EF.ADIM.'!I$15*('EF.REF.,RELEV.Y EF.ADIM.'!$G15*('EF.REF.,RELEV.Y EF.ADIM.'!$H15/'EF.REF.,RELEV.Y EF.ADIM.'!$R15)*(ALT.5!D15/'EF.REF.,RELEV.Y EF.ADIM.'!H15))+'EF.REF.,RELEV.Y EF.ADIM.'!I$17*('EF.REF.,RELEV.Y EF.ADIM.'!$G17*('EF.REF.,RELEV.Y EF.ADIM.'!$H16/'EF.REF.,RELEV.Y EF.ADIM.'!$R16)*(ALT.5!D16/'EF.REF.,RELEV.Y EF.ADIM.'!H16))+'EF.REF.,RELEV.Y EF.ADIM.'!I$17*('EF.REF.,RELEV.Y EF.ADIM.'!$G19*('EF.REF.,RELEV.Y EF.ADIM.'!$H17/'EF.REF.,RELEV.Y EF.ADIM.'!$R17)*(ALT.5!D17/'EF.REF.,RELEV.Y EF.ADIM.'!H17))+'EF.REF.,RELEV.Y EF.ADIM.'!I$19*('EF.REF.,RELEV.Y EF.ADIM.'!$G14*('EF.REF.,RELEV.Y EF.ADIM.'!$H19/'EF.REF.,RELEV.Y EF.ADIM.'!$R19)*(ALT.5!D18/'EF.REF.,RELEV.Y EF.ADIM.'!H19))+'EF.REF.,RELEV.Y EF.ADIM.'!I$19*('EF.REF.,RELEV.Y EF.ADIM.'!$G20*('EF.REF.,RELEV.Y EF.ADIM.'!$H20/'EF.REF.,RELEV.Y EF.ADIM.'!$R20)*(ALT.5!D19/'EF.REF.,RELEV.Y EF.ADIM.'!H20)))*IF(D$5>$F$31,0,1)*IF($E$2>$H$31,0,1)\n\n+('EF.REF.,RELEV.Y EF.ADIM.'!I$15*('EF.REF.,RELEV.Y EF.ADIM.'!$G14*('EF.REF.,RELEV.Y EF.ADIM.'!$H14/'EF.REF.,RELEV.Y EF.ADIM.'!$R14)*(ALT.5!D14/'EF.REF.,RELEV.Y EF.ADIM.'!H14)) +'EF.REF.,RELEV.Y EF.ADIM.'!I$15*('EF.REF.,RELEV.Y EF.ADIM.'!$G15*('EF.REF.,RELEV.Y EF.ADIM.'!$H15/'EF.REF.,RELEV.Y EF.ADIM.'!$R15)*(ALT.5!D15/'EF.REF.,RELEV.Y EF.ADIM.'!H15))+'EF.REF.,RELEV.Y EF.ADIM.'!I$17*('EF.REF.,RELEV.Y EF.ADIM.'!$G17*('EF.REF.,RELEV.Y EF.ADIM.'!$H16/'EF.REF.,RELEV.Y EF.ADIM.'!$R16)*(ALT.5!D16/'EF.REF.,RELEV.Y EF.ADIM.'!H16))+'EF.REF.,RELEV.Y EF.ADIM.'!I$17*('EF.REF.,RELEV.Y EF.ADIM.'!$G19*('EF.REF.,RELEV.Y EF.ADIM.'!$H17/'EF.REF.,RELEV.Y EF.ADIM.'!$R17)*(ALT.5!D17/'EF.REF.,RELEV.Y EF.ADIM.'!H17))+'EF.REF.,RELEV.Y EF.ADIM.'!I$19*('EF.REF.,RELEV.Y EF.ADIM.'!$G14*('EF.REF.,RELEV.Y EF.ADIM.'!$H19/'EF.REF.,RELEV.Y EF.ADIM.'!$R19)*(ALT.5!D18/'EF.REF.,RELEV.Y EF.ADIM.'!H19))+'EF.REF.,RELEV.Y EF.ADIM.'!I$19*('EF.REF.,RELEV.Y EF.ADIM.'!$G20*('EF.REF.,RELEV.Y EF.ADIM.'!$H20/'EF.REF.,RELEV.Y EF.ADIM.'!$R20)*(ALT.5!D19/'EF.REF.,RELEV.Y EF.ADIM.'!H20)))*IF(D$5>$F$31,0,1)*IF($E$2>$H$31,0,1)","v":{"$error":"#DIV/0!"}},{"$f":"+('EF.REF.,RELEV.Y EF.ADIM.'!K$15*('EF.REF.,RELEV.Y EF.ADIM.'!$G14*('EF.REF.,RELEV.Y EF.ADIM.'!$J14/'EF.REF.,RELEV.Y EF.ADIM.'!$R14)*(ALT.5!E14/'EF.REF.,RELEV.Y EF.ADIM.'!J14)) +'EF.REF.,RELEV.Y EF.ADIM.'!K$15*('EF.REF.,RELEV.Y EF.ADIM.'!$G15*('EF.REF.,RELEV.Y EF.ADIM.'!$J15/'EF.REF.,RELEV.Y EF.ADIM.'!$R15)*(ALT.5!E15/'EF.REF.,RELEV.Y EF.ADIM.'!J15))+'EF.REF.,RELEV.Y EF.ADIM.'!K$17*('EF.REF.,RELEV.Y EF.ADIM.'!$G17*('EF.REF.,RELEV.Y EF.ADIM.'!$J16/'EF.REF.,RELEV.Y EF.ADIM.'!$R16)*(ALT.5!E16/'EF.REF.,RELEV.Y EF.ADIM.'!J16))+'EF.REF.,RELEV.Y EF.ADIM.'!K$17*('EF.REF.,RELEV.Y EF.ADIM.'!$G19*('EF.REF.,RELEV.Y EF.ADIM.'!$J17/'EF.REF.,RELEV.Y EF.ADIM.'!$R17)*(ALT.5!E17/'EF.REF.,RELEV.Y EF.ADIM.'!J17))+'EF.REF.,RELEV.Y EF.ADIM.'!K$19*('EF.REF.,RELEV.Y EF.ADIM.'!$G14*('EF.REF.,RELEV.Y EF.ADIM.'!$J19/'EF.REF.,RELEV.Y EF.ADIM.'!$R19)*(ALT.5!E18/'EF.REF.,RELEV.Y EF.ADIM.'!J19))+'EF.REF.,RELEV.Y EF.ADIM.'!K$19*('EF.REF.,RELEV.Y EF.ADIM.'!$G20*('EF.REF.,RELEV.Y EF.ADIM.'!$J20/'EF.REF.,RELEV.Y EF.ADIM.'!$R20)*(ALT.5!E19/'EF.REF.,RELEV.Y EF.ADIM.'!J20)))*IF(E$5>$F$31,0,1)*IF($E$2>$H$31,0,1)","v":{"$error":"#DIV/0!"}},{"$f":"+('EF.REF.,RELEV.Y EF.ADIM.'!M$15*('EF.REF.,RELEV.Y EF.ADIM.'!$G14*('EF.REF.,RELEV.Y EF.ADIM.'!$L14/'EF.REF.,RELEV.Y EF.ADIM.'!$R14)*(ALT.5!F14/'EF.REF.,RELEV.Y EF.ADIM.'!L14)) +'EF.REF.,RELEV.Y EF.ADIM.'!M$15*('EF.REF.,RELEV.Y EF.ADIM.'!$G15*('EF.REF.,RELEV.Y EF.ADIM.'!$L15/'EF.REF.,RELEV.Y EF.ADIM.'!$R15)*(ALT.5!F15/'EF.REF.,RELEV.Y EF.ADIM.'!L15))+'EF.REF.,RELEV.Y EF.ADIM.'!M$17*('EF.REF.,RELEV.Y EF.ADIM.'!$G17*('EF.REF.,RELEV.Y EF.ADIM.'!$L16/'EF.REF.,RELEV.Y EF.ADIM.'!$R16)*(ALT.5!F16/'EF.REF.,RELEV.Y EF.ADIM.'!L16))+'EF.REF.,RELEV.Y EF.ADIM.'!M$17*('EF.REF.,RELEV.Y EF.ADIM.'!$G19*('EF.REF.,RELEV.Y EF.ADIM.'!$L17/'EF.REF.,RELEV.Y EF.ADIM.'!$R17)*(ALT.5!F17/'EF.REF.,RELEV.Y EF.ADIM.'!L17))+'EF.REF.,RELEV.Y EF.ADIM.'!M$19*('EF.REF.,RELEV.Y EF.ADIM.'!$G14*('EF.REF.,RELEV.Y EF.ADIM.'!$L19/'EF.REF.,RELEV.Y EF.ADIM.'!$R19)*(ALT.5!F18/'EF.REF.,RELEV.Y EF.ADIM.'!L19))+'EF.REF.,RELEV.Y EF.ADIM.'!M$19*('EF.REF.,RELEV.Y EF.ADIM.'!$G20*('EF.REF.,RELEV.Y EF.ADIM.'!$L20/'EF.REF.,RELEV.Y EF.ADIM.'!$R20)*(ALT.5!F19/'EF.REF.,RELEV.Y EF.ADIM.'!L20)))*IF(F$5>$F$31,0,1)*IF($E$2>$H$31,0,1)","v":{"$error":"#DIV/0!"}},{"$f":"+('EF.REF.,RELEV.Y EF.ADIM.'!O$15*('EF.REF.,RELEV.Y EF.ADIM.'!$G14*('EF.REF.,RELEV.Y EF.ADIM.'!$N14/'EF.REF.,RELEV.Y EF.ADIM.'!$R14)*(ALT.5!G14/'EF.REF.,RELEV.Y EF.ADIM.'!N14)) +'EF.REF.,RELEV.Y EF.ADIM.'!O$15*('EF.REF.,RELEV.Y EF.ADIM.'!$G15*('EF.REF.,RELEV.Y EF.ADIM.'!$N15/'EF.REF.,RELEV.Y EF.ADIM.'!$R15)*(ALT.5!G15/'EF.REF.,RELEV.Y EF.ADIM.'!N15))+'EF.REF.,RELEV.Y EF.ADIM.'!O$17*('EF.REF.,RELEV.Y EF.ADIM.'!$G17*('EF.REF.,RELEV.Y EF.ADIM.'!$N16/'EF.REF.,RELEV.Y EF.ADIM.'!$R16)*(ALT.5!G16/'EF.REF.,RELEV.Y EF.ADIM.'!N16))+'EF.REF.,RELEV.Y EF.ADIM.'!O$17*('EF.REF.,RELEV.Y EF.ADIM.'!$G19*('EF.REF.,RELEV.Y EF.ADIM.'!$N17/'EF.REF.,RELEV.Y EF.ADIM.'!$R17)*(ALT.5!G17/'EF.REF.,RELEV.Y EF.ADIM.'!N17))+'EF.REF.,RELEV.Y EF.ADIM.'!O$19*('EF.REF.,RELEV.Y EF.ADIM.'!$G14*('EF.REF.,RELEV.Y EF.ADIM.'!$N19/'EF.REF.,RELEV.Y EF.ADIM.'!$R19)*(ALT.5!G18/'EF.REF.,RELEV.Y EF.ADIM.'!N19))+'EF.REF.,RELEV.Y EF.ADIM.'!O$19*('EF.REF.,RELEV.Y EF.ADIM.'!$G20*('EF.REF.,RELEV.Y EF.ADIM.'!$N20/'EF.REF.,RELEV.Y EF.ADIM.'!$R20)*(ALT.5!G19/'EF.REF.,RELEV.Y EF.ADIM.'!N20)))*IF(G$5>$F$31,0,1)*IF($E$2>$H$31,0,1)","v":{"$error":"#DIV/0!"}},{"$f":"+('EF.REF.,RELEV.Y EF.ADIM.'!Q$15*('EF.REF.,RELEV.Y EF.ADIM.'!$G14*('EF.REF.,RELEV.Y EF.ADIM.'!$P14/'EF.REF.,RELEV.Y EF.ADIM.'!$R14)*(ALT.5!H14/'EF.REF.,RELEV.Y EF.ADIM.'!P14)) +'EF.REF.,RELEV.Y EF.ADIM.'!Q$15*('EF.REF.,RELEV.Y EF.ADIM.'!$G15*('EF.REF.,RELEV.Y EF.ADIM.'!$P15/'EF.REF.,RELEV.Y EF.ADIM.'!$R15)*(ALT.5!H15/'EF.REF.,RELEV.Y EF.ADIM.'!P15))+'EF.REF.,RELEV.Y EF.ADIM.'!Q$17*('EF.REF.,RELEV.Y EF.ADIM.'!$G17*('EF.REF.,RELEV.Y EF.ADIM.'!$P16/'EF.REF.,RELEV.Y EF.ADIM.'!$R16)*(ALT.5!H16/'EF.REF.,RELEV.Y EF.ADIM.'!P16))+'EF.REF.,RELEV.Y EF.ADIM.'!Q$17*('EF.REF.,RELEV.Y EF.ADIM.'!$G19*('EF.REF.,RELEV.Y EF.ADIM.'!$P17/'EF.REF.,RELEV.Y EF.ADIM.'!$R17)*(ALT.5!H17/'EF.REF.,RELEV.Y EF.ADIM.'!P17))+'EF.REF.,RELEV.Y EF.ADIM.'!Q$19*('EF.REF.,RELEV.Y EF.ADIM.'!$G14*('EF.REF.,RELEV.Y EF.ADIM.'!$P19/'EF.REF.,RELEV.Y EF.ADIM.'!$R19)*(ALT.5!H18/'EF.REF.,RELEV.Y EF.ADIM.'!P19))+'EF.REF.,RELEV.Y EF.ADIM.'!Q$19*('EF.REF.,RELEV.Y EF.ADIM.'!$G20*('EF.REF.,RELEV.Y EF.ADIM.'!$P20/'EF.REF.,RELEV.Y EF.ADIM.'!$R20)*(ALT.5!H19/'EF.REF.,RELEV.Y EF.ADIM.'!P20)))*IF(H$5>$F$31,0,1)*IF($E$2>$H$31,0,1)","v":{"$error":"#DIV/0!"}}]
[null,"SSH","escala cualicuantitativa"]
["RIESGO","SSM","escala cualicuantitativa"]
["(SF C.1)","SSGTR","escala cualicuantitativa"]
[null,"ENTORNO DEL SHM","escala cualicuantitativa"]
["INCONFORT       (SF C.2)","SSH","escala cualicuantitativa"]
[null,"SSGTR","escala cualicuantitativa"]
[null,"ENTORNO DEL SHM","escala cualicuantitativa"]
["PARTICIPACIONES ANUALES DEL FACTOR PROTECCIÓN",null,null,{"$f":"+('EF.REF.,RELEV.Y EF.ADIM.'!I$22*('EF.REF.,RELEV.Y EF.ADIM.'!$G21*('EF.REF.,RELEV.Y EF.ADIM.'!$H21/'EF.REF.,RELEV.Y EF.ADIM.'!$R21)*(ALT.5!D21/'EF.REF.,RELEV.Y EF.ADIM.'!H21)) +'EF.REF.,RELEV.Y EF.ADIM.'!I$22*('EF.REF.,RELEV.Y EF.ADIM.'!$G22*('EF.REF.,RELEV.Y EF.ADIM.'!$H22/'EF.REF.,RELEV.Y EF.ADIM.'!$R22)*(ALT.5!D22/'EF.REF.,RELEV.Y EF.ADIM.'!H22))+'EF.REF.,RELEV.Y EF.ADIM.'!I$22*('EF.REF.,RELEV.Y EF.ADIM.'!$G23*('EF.REF.,RELEV.Y EF.ADIM.'!$H23/'EF.REF.,RELEV.Y EF.ADIM.'!$R23)*(ALT.5!D23/'EF.REF.,RELEV.Y EF.ADIM.'!H23))+'EF.REF.,RELEV.Y EF.ADIM.'!I$22*('EF.REF.,RELEV.Y EF.ADIM.'!$G24*('EF.REF.,RELEV.Y EF.ADIM.'!$H24/'EF.REF.,RELEV.Y EF.ADIM.'!$R24)*(ALT.5!D24/'EF.REF.,RELEV.Y EF.ADIM.'!H24))+'EF.REF.,RELEV.Y EF.ADIM.'!I$26*('EF.REF.,RELEV.Y EF.ADIM.'!$G25*('EF.REF.,RELEV.Y EF.ADIM.'!$H25/'EF.REF.,RELEV.Y EF.ADIM.'!$R25)*(ALT.5!D25/'EF.REF.,RELEV.Y EF.ADIM.'!H25))+'EF.REF.,RELEV.Y EF.ADIM.'!I$26*('EF.REF.,RELEV.Y EF.ADIM.'!$G26*('EF.REF.,RELEV.Y EF.ADIM.'!$H26/'EF.REF.,RELEV.Y EF.ADIM.'!$R26)*(ALT.5!D26/'EF.REF.,RELEV.Y EF.ADIM.'!H26))+'EF.REF.,RELEV.Y EF.ADIM.'!I$26*('EF.REF.,RELEV.Y EF.ADIM.'!$G27*('EF.REF.,RELEV.Y EF.ADIM.'!$H27/'EF.REF.,RELEV.Y EF.ADIM.'!$R27)*(ALT.5!D26/'EF.REF.,RELEV.Y EF.ADIM.'!H27)))*IF(D$5>$F$31,0,1)*IF($E$2>$H$31,0,1)","v":{"$error":"#DIV/0!"}},{"$f":"+('EF.REF.,RELEV.Y EF.ADIM.'!K$22*('EF.REF.,RELEV.Y EF.ADIM.'!$G21*('EF.REF.,RELEV.Y EF.ADIM.'!$J21/'EF.REF.,RELEV.Y EF.ADIM.'!$R21)*(ALT.5!E21/'EF.REF.,RELEV.Y EF.ADIM.'!J21)) +'EF.REF.,RELEV.Y EF.ADIM.'!K$22*('EF.REF.,RELEV.Y EF.ADIM.'!$G22*('EF.REF.,RELEV.Y EF.ADIM.'!$J22/'EF.REF.,RELEV.Y EF.ADIM.'!$R22)*(ALT.5!E22/'EF.REF.,RELEV.Y EF.ADIM.'!J22))+'EF.REF.,RELEV.Y EF.ADIM.'!K$22*('EF.REF.,RELEV.Y EF.ADIM.'!$G23*('EF.REF.,RELEV.Y EF.ADIM.'!$J23/'EF.REF.,RELEV.Y EF.ADIM.'!$R23)*(ALT.5!E23/'EF.REF.,RELEV.Y EF.ADIM.'!J23))+'EF.REF.,RELEV.Y EF.ADIM.'!K$22*('EF.REF.,RELEV.Y EF.ADIM.'!$G24*('EF.REF.,RELEV.Y EF.ADIM.'!$J24/'EF.REF.,RELEV.Y EF.ADIM.'!$R24)*(ALT.5!E24/'EF.REF.,RELEV.Y EF.ADIM.'!J24))+'EF.REF.,RELEV.Y EF.ADIM.'!K$26*('EF.REF.,RELEV.Y EF.ADIM.'!$G25*('EF.REF.,RELEV.Y EF.ADIM.'!$J25/'EF.REF.,RELEV.Y EF.ADIM.'!$R25)*(ALT.5!E25/'EF.REF.,RELEV.Y EF.ADIM.'!J25))+'EF.REF.,RELEV.Y EF.ADIM.'!K$26*('EF.REF.,RELEV.Y EF.ADIM.'!$G26*('EF.REF.,RELEV.Y EF.ADIM.'!$J26/'EF.REF.,RELEV.Y EF.ADIM.'!$R26)*(ALT.5!E26/'EF.REF.,RELEV.Y EF.ADIM.'!J26))+'EF.REF.,RELEV.Y EF.ADIM.'!K$26*('EF.REF.,RELEV.Y EF.ADIM.'!$G27*('EF.REF.,RELEV.Y EF.ADIM.'!$J27/'EF.REF.,RELEV.Y EF.ADIM.'!$R27)*(ALT.5!E26/'EF.REF.,RELEV.Y EF.ADIM.'!J27)))*IF(E$5>$F$31,0,1)*IF($E$2>$H$31,0,1)","v":{"$error":"#DIV/0!"}},{"$f":"+('EF.REF.,RELEV.Y EF.ADIM.'!M$22*('EF.REF.,RELEV.Y EF.ADIM.'!$G21*('EF.REF.,RELEV.Y EF.ADIM.'!$L21/'EF.REF.,RELEV.Y EF.ADIM.'!$R21)*(ALT.5!F21/'EF.REF.,RELEV.Y EF.ADIM.'!L21)) +'EF.REF.,RELEV.Y EF.ADIM.'!M$22*('EF.REF.,RELEV.Y EF.ADIM.'!$G22*('EF.REF.,RELEV.Y EF.ADIM.'!$L22/'EF.REF.,RELEV.Y EF.ADIM.'!$R22)*(ALT.5!F22/'EF.REF.,RELEV.Y EF.ADIM.'!L22))+'EF.REF.,RELEV.Y EF.ADIM.'!M$22*('EF.REF.,RELEV.Y EF.ADIM.'!$G23*('EF.REF.,RELEV.Y EF.ADIM.'!$L23/'EF.REF.,RELEV.Y EF.ADIM.'!$R23)*(ALT.5!F23/'EF.REF.,RELEV.Y EF.ADIM.'!L23))+'EF.REF.,RELEV.Y EF.ADIM.'!M$22*('EF.REF.,RELEV.Y EF.ADIM.'!$G24*('EF.REF.,RELEV.Y EF.ADIM.'!$L24/'EF.REF.,RELEV.Y EF.ADIM.'!$R24)*(ALT.5!F24/'EF.REF.,RELEV.Y EF.ADIM.'!L24))+'EF.REF.,RELEV.Y EF.ADIM.'!M$26*('EF.REF.,RELEV.Y EF.ADIM.'!$G25*('EF.REF.,RELEV.Y EF.ADIM.'!$L25/'EF.REF.,RELEV.Y EF.ADIM.'!$R25)*(ALT.5!F25/'EF.REF.,RELEV.Y EF.ADIM.'!L25))+'EF.REF.,RELEV.Y EF.ADIM.'!M$26*('EF.REF.,RELEV.Y EF.ADIM.'!$G26*('EF.REF.,RELEV.Y EF.ADIM.'!$L26/'EF.REF.,RELEV.Y EF.ADIM.'!$R26)*(ALT.5!F26/'EF.REF.,RELEV.Y EF.ADIM.'!L26))+'EF.REF.,RELEV.Y EF.ADIM.'!M$26*('EF.REF.,RELEV.Y EF.ADIM.'!$G27*('EF.REF.,RELEV.Y EF.ADIM.'!$L27/'EF.REF.,RELEV.Y EF.ADIM.'!$R27)*(ALT.5!F26/'EF.REF.,RELEV.Y EF.ADIM.'!L27)))*IF(F$5>$F$31,0,1)*IF($E$2>$H$31,0,1)","v":{"$error":"#DIV/0!"}},{"$f":"+('EF.REF.,RELEV.Y EF.ADIM.'!O$22*('EF.REF.,RELEV.Y EF.ADIM.'!$G21*('EF.REF.,RELEV.Y EF.ADIM.'!$N21/'EF.REF.,RELEV.Y EF.ADIM.'!$R21)*(ALT.5!G21/'EF.REF.,RELEV.Y EF.ADIM.'!N21)) +'EF.REF.,RELEV.Y EF.ADIM.'!O$22*('EF.REF.,RELEV.Y EF.ADIM.'!$G22*('EF.REF.,RELEV.Y EF.ADIM.'!$N22/'EF.REF.,RELEV.Y EF.ADIM.'!$R22)*(ALT.5!G22/'EF.REF.,RELEV.Y EF.ADIM.'!N22))+'EF.REF.,RELEV.Y EF.ADIM.'!O$22*('EF.REF.,RELEV.Y EF.ADIM.'!$G23*('EF.REF.,RELEV.Y EF.ADIM.'!$N23/'EF.REF.,RELEV.Y EF.ADIM.'!$R23)*(ALT.5!G23/'EF.REF.,RELEV.Y EF.ADIM.'!N23))+'EF.REF.,RELEV.Y EF.ADIM.'!O$22*('EF.REF.,RELEV.Y EF.ADIM.'!$G24*('EF.REF.,RELEV.Y EF.ADIM.'!$N24/'EF.REF.,RELEV.Y EF.ADIM.'!$R24)*(ALT.5!G24/'EF.REF.,RELEV.Y EF.ADIM.'!N24))+'EF.REF.,RELEV.Y EF.ADIM.'!O$26*('EF.REF.,RELEV.Y EF.ADIM.'!$G25*('EF.REF.,RELEV.Y EF.ADIM.'!$N25/'EF.REF.,RELEV.Y EF.ADIM.'!$R25)*(ALT.5!G25/'EF.REF.,RELEV.Y EF.ADIM.'!N25))+'EF.REF.,RELEV.Y EF.ADIM.'!O$26*('EF.REF.,RELEV.Y EF.ADIM.'!$G26*('EF.REF.,RELEV.Y EF.ADIM.'!$N26/'EF.REF.,RELEV.Y EF.ADIM.'!$R26)*(ALT.5!G26/'EF.REF.,RELEV.Y EF.ADIM.'!N26))+'EF.REF.,RELEV.Y EF.ADIM.'!O$26*('EF.REF.,RELEV.Y EF.ADIM.'!$G27*('EF.REF.,RELEV.Y EF.ADIM.'!$N27/'EF.REF.,RELEV.Y EF.ADIM.'!$R27)*(ALT.5!G26/'EF.REF.,RELEV.Y EF.ADIM.'!N27)))*IF(G$5>$F$31,0,1)*IF($E$2>$H$31,0,1)","v":{"$error":"#DIV/0!"}},{"$f":"+('EF.REF.,RELEV.Y EF.ADIM.'!Q$22*('EF.REF.,RELEV.Y EF.ADIM.'!$G21*('EF.REF.,RELEV.Y EF.ADIM.'!$P21/'EF.REF.,RELEV.Y EF.ADIM.'!$R21)*(ALT.5!H21/'EF.REF.,RELEV.Y EF.ADIM.'!P21)) +'EF.REF.,RELEV.Y EF.ADIM.'!Q$22*('EF.REF.,RELEV.Y EF.ADIM.'!$G22*('EF.REF.,RELEV.Y EF.ADIM.'!$P22/'EF.REF.,RELEV.Y EF.ADIM.'!$R22)*(ALT.5!H22/'EF.REF.,RELEV.Y EF.ADIM.'!P22))+'EF.REF.,RELEV.Y EF.ADIM.'!Q$22*('EF.REF.,RELEV.Y EF.ADIM.'!$G23*('EF.REF.,RELEV.Y EF.ADIM.'!$P23/'EF.REF.,RELEV.Y EF.ADIM.'!$R23)*(ALT.5!H23/'EF.REF.,RELEV.Y EF.ADIM.'!P23))+'EF.REF.,RELEV.Y EF.ADIM.'!Q$22*('EF.REF.,RELEV.Y EF.ADIM.'!$G24*('EF.REF.,RELEV.Y EF.ADIM.'!$P24/'EF.REF.,RELEV.Y EF.ADIM.'!$R24)*(ALT.5!H24/'EF.REF.,RELEV.Y EF.ADIM.'!P24))+'EF.REF.,RELEV.Y EF.ADIM.'!Q$26*('EF.REF.,RELEV.Y EF.ADIM.'!$G25*('EF.REF.,RELEV.Y EF.ADIM.'!$P25/'EF.REF.,RELEV.Y EF.ADIM.'!$R25)*(ALT.5!H25/'EF.REF.,RELEV.Y EF.ADIM.'!P25))+'EF.REF.,RELEV.Y EF.ADIM.'!Q$26*('EF.REF.,RELEV.Y EF.ADIM.'!$G26*('EF.REF.,RELEV.Y EF.ADIM.'!$P26/'EF.REF.,RELEV.Y EF.ADIM.'!$R26)*(ALT.5!H26/'EF.REF.,RELEV.Y EF.ADIM.'!P26))+'EF.REF.,RELEV.Y EF.ADIM.'!Q$26*('EF.REF.,RELEV.Y EF.ADIM.'!$G27*('EF.REF.,RELEV.Y EF.ADIM.'!$P27/'EF.REF.,RELEV.Y EF.ADIM.'!$R27)*(ALT.5!H26/'EF.REF.,RELEV.Y EF.ADIM.'!P27)))*IF(H$5>$F$31,0,1)*IF($E$2>$H$31,0,1)","v":{"$error":"#DIV/0!"}}]
["NÚMERO TOTAL DE SHM",null,"pu",{"$f":"+IF(D13<'EF.REF.,RELEV.Y EF.ADIM.'!$H$28,INT('EF.REF.,RELEV.Y EF.ADIM.'!$H$28/D13+0.9999),1)","v":1},{"$f":"+IF(E13<'EF.REF.,RELEV.Y EF.ADIM.'!$J$28,INT('EF.REF.,RELEV.Y EF.ADIM.'!$J$28/E13+0.9999),1)","v":1},{"$f":"+IF(F13<'EF.REF.,RELEV.Y EF.ADIM.'!$L$28,INT('EF.REF.,RELEV.Y EF.ADIM.'!$L$28/F13+0.9999),1)","v":1},{"$f":"+IF(G13<'EF.REF.,RELEV.Y EF.ADIM.'!$N$28,INT('EF.REF.,RELEV.Y EF.ADIM.'!$N$28/G13+0.9999),1)","v":1},{"$f":"+IF(H13<'EF.REF.,RELEV.Y EF.ADIM.'!$P$28,INT('EF.REF.,RELEV.Y EF.ADIM.'!$P$28/H13+0.9999),1)","v":1}]
["   ANUALIDADES RELATIVAS DE CONVENIENCIA ACTUALIZADAS",null,null,{"$f":"+D12+D20+D28","v":{"$error":"#DIV/0!"}},{"$f":"+E12+E20+E28","v":{"$error":"#DIV/0!"}},{"$error":"#DIV/0!"},{"$error":"#DIV/0!"},{"$error":"#DIV/0!"}]
["   INDICE RELATIVO DE CONVENIENCIA ALTERNATIVA 5",null,null,{"$f":"+IF($E$2<>\"VACÍA\",($D$30+$E$30+$F$30+G30+H30),-999999)","v":-999999},"Nº DE AÑOS",{"$f":"+'EF.REF.,RELEV.Y EF.ADIM.'!$L$5","v":1},"Nª DE ALTS",{"$f":"+'EF.REF.,RELEV.Y EF.ADIM.'!$Q$5","v":1}]

{"sheet":"ALT.6","index":9,"n_rows":31,"n_cols":8,"rows_kept":31,"cut":false,"hidden":false,"merged":[[30,0,30,2],[4,0,5,1],[6,0,10,0],[12,0,14,0],[24,0,26,0],[28,0,28,1],[29,0,29,2],[11,0,11,2],[19,0,19,2],[27,0,27,2],[15,0,16,0],[5,3,5,7],[0,2,0,7],[1,3,2,3],[1,0,2,0],[1,4,2,4],[3,0,3,1],[3,2,3,7],[1,6,2,7],[1,1,2,2]]}
["i","i","programa evalerg AdEA"]
["DENOMINACIÓN        EVALUACIÓN",{"$f":"+'EF.REF.,RELEV.Y EF.ADIM.'!E2","v":0},null,{"$f":"+IF(H31>=6,\"ALTERNATIVA\",\" ALTERNATIVA \")","v":" ALTERNATIVA "},{"$f":"+IF($H$31>=6,6,\"VACÍA\")","v":"VACÍA"},"DENOMINAC. ",{"$f":"+COSTOS!B12","v":"Escribir denominación alternativa 6"}]
[null,null,null,null,null,"ALTERNATIVA"]
[{"$f":"+IF(D2=\"ALTERNATIVA\",\"DESCRIPCIÓN:\",\"SIN DESCRIPCIÓN\")","v":"SIN DESCRIPCIÓN"}]
["FACTORES Y SUBFACTORES",null,"AÑOS:",1,2,3,4,5]
[null,null,"ESC. MEDIC. EFECT.","EFECTOS ANUALES"]
["PARTICIPACION                         (F A)","OCUPACION","nro. de SSH por SHM"]
[null,"PARTICIPACION CREATIVA","escala cualicuantitativa"]
[null,"PARTICIPACION ECONOMICA","(um/año)promedio",{"$f":"+COSTOS!$C$21","v":9.9999999999999995E-8},{"$f":"+COSTOS!$C$21","v":9.9999999999999995E-8},{"$f":"+COSTOS!$C$21","v":9.9999999999999995E-8},{"$f":"+COSTOS!$C$21","v":9.9999999999999995E-8},{"$f":"+COSTOS!$C$21","v":9.9999999999999995E-8}]
[null,"PARTICIPACION PSICOSOCIAL","escala cualicuantitativa"]
[null,"PARTICIPACION DECISIONAL","escala cualicuantitativa"]
["PARTICIPACIONES ANUALES DEL FACTOR PARTICIPACIÓN",null,null,{"$f":"+(D$29*'EF.REF.,RELEV.Y EF.ADIM.'!I$10*ALT.6!D7/'EF.REF.,RELEV.Y EF.ADIM.'!H9)*(('EF.REF.,RELEV.Y EF.ADIM.'!$G10*('EF.REF.,RELEV.Y EF.ADIM.'!H10/'EF.REF.,RELEV.Y EF.ADIM.'!$R10)*(ALT.6!D8/'EF.REF.,RELEV.Y EF.ADIM.'!H10))+('EF.REF.,RELEV.Y EF.ADIM.'!$G11*('EF.REF.,RELEV.Y EF.ADIM.'!H11/'EF.REF.,RELEV.Y EF.ADIM.'!$R11)*(ALT.6!D9/'EF.REF.,RELEV.Y EF.ADIM.'!H11))+('EF.REF.,RELEV.Y EF.ADIM.'!$G12*('EF.REF.,RELEV.Y EF.ADIM.'!H12/'EF.REF.,RELEV.Y EF.ADIM.'!$R12)*(ALT.6!D10/'EF.REF.,RELEV.Y EF.ADIM.'!H12))+('EF.REF.,RELEV.Y EF.ADIM.'!$G13*('EF.REF.,RELEV.Y EF.ADIM.'!H13/'EF.REF.,RELEV.Y EF.ADIM.'!$R13)*(ALT.6!D11/'EF.REF.,RELEV.Y EF.ADIM.'!H13))) *IF(D$5>$F$31,0,1)*IF($E$2>$H$31,0,1)","v":{"$error":"#DIV/0!"}},{"$f":"+(E$29*'EF.REF.,RELEV.Y EF.ADIM.'!K$10*ALT.6!E7/'EF.REF.,RELEV.Y EF.ADIM.'!J9)*(('EF.REF.,RELEV.Y EF.ADIM.'!$G10*('EF.REF.,RELEV.Y EF.ADIM.'!J10/'EF.REF.,RELEV.Y EF.ADIM.'!$R10)*(ALT.6!E8/'EF.REF.,RELEV.Y EF.ADIM.'!J10))+('EF.REF.,RELEV.Y EF.ADIM.'!$G11*('EF.REF.,RELEV.Y EF.ADIM.'!J11/'EF.REF.,RELEV.Y EF.ADIM.'!$R11)*(ALT.6!E9/'EF.REF.,RELEV.Y EF.ADIM.'!J11))+('EF.REF.,RELEV.Y EF.ADIM.'!$G12*('EF.REF.,RELEV.Y EF.ADIM.'!J12/'EF.REF.,RELEV.Y EF.ADIM.'!$R12)*(ALT.6!E10/'EF.REF.,RELEV.Y EF.ADIM.'!J12))+('EF.REF.,RELEV.Y EF.ADIM.'!$G13*('EF.REF.,RELEV.Y EF.ADIM.'!J13/'EF.REF.,RELEV.Y EF.ADIM.'!$R13)*(ALT.6!E11/'EF.REF.,RELEV.Y EF.ADIM.'!J13))) *IF(E$5>$F$31,0,1)*IF($E$2>$H$31,0,1)","v":{"$error":"#DIV/0!"}},"3ytpfedp",{"$f":"+(G$29*'EF.REF.,RELEV.Y EF.ADIM.'!O$10*ALT.6!G7/'EF.REF.,RELEV.Y EF.ADIM.'!N9)*(('EF.REF.,RELEV.Y EF.ADIM.'!$G10*('EF.REF.,RELEV.Y EF.ADIM.'!N10/'EF.REF.,RELEV.Y EF.ADIM.'!$R10)*(ALT.6!G8/'EF.REF.,RELEV.Y EF.ADIM.'!N10))+('EF.REF.,RELEV.Y EF.ADIM.'!$G11*('EF.REF.,RELEV.Y EF.ADIM.'!N11/'EF.REF.,RELEV.Y EF.ADIM.'!$R11)*(ALT.6!G9/'EF.REF.,RELEV.Y EF.ADIM.'!N11))+('EF.REF.,RELEV.Y EF.ADIM.'!$G12*('EF.REF.,RELEV.Y EF.ADIM.'!N12/'EF.REF.,RELEV.Y EF.ADIM.'!$R12)*(ALT.6!G10/'EF.REF.,RELEV.Y EF.ADIM.'!N12))+('EF.REF.,RELEV.Y EF.ADIM.'!$G13*('EF.REF.,RELEV.Y EF.ADIM.'!N13/'EF.REF.,RELEV.Y EF.ADIM.'!$R13)*(ALT.6!G11/'EF.REF.,RELEV.Y EF.ADIM.'!N13))) *IF(G$5>$F$31,0,1)*IF($E$2>$H$31,0,1)","v":{"$error":"#DIV/0!"}},{"$f":"+(H$29*'EF.REF.,RELEV.Y EF.ADIM.'!Q$10*ALT.6!H7/'EF.REF.,RELEV.Y EF.ADIM.'!P9)*(('EF.REF.,RELEV.Y EF.ADIM.'!$G10*('EF.REF.,RELEV.Y EF.ADIM.'!P10/'EF.REF.,RELEV.Y EF.ADIM.'!$R10)*(ALT.6!H8/'EF.REF.,RELEV.Y EF.ADIM.'!P10))+('EF.REF.,RELEV.Y EF.ADIM.'!$G11*('EF.REF.,RELEV.Y EF.ADIM.'!P11/'EF.REF.,RELEV.Y EF.ADIM.'!$R11)*(ALT.6!H9/'EF.REF.,RELEV.Y EF.ADIM.'!P11))+('EF.REF.,RELEV.Y EF.ADIM.'!$G12*('EF.REF.,RELEV.Y EF.ADIM.'!P12/'EF.REF.,RELEV.Y EF.ADIM.'!$R12)*(ALT.6!H10/'EF.REF.,RELEV.Y EF.ADIM.'!P12))+('EF.REF.,RELEV.Y EF.ADIM.'!$G13*('EF.REF.,RELEV.Y EF.ADIM.'!P13/'EF.REF.,RELEV.Y EF.ADIM.'!$R13)*(ALT.6!H11/'EF.REF.,RELEV.Y EF.ADIM.'!P13))) *IF(H$5>$F$31,0,1)*IF($E$2>$H$31,0,1)","v":{"$error":"#DIV/0!"}}]
["EFICACIA                               (F B)","CAPACIDAD UNITARIA DE PRODUC.","up/año",null,null,"3ytpfedp"]
[null,"CALIDAD","escala cualicuantitativa"]
[null,"FIABILIDAD OPERATIVA","1 - tasa de fallas"]
["SUSTENTABI-  LIDAD (SF B2)","ELASTICIDAD CUANTITATIVA","escala cualicuantitativa"]
[null,"ADAPTABILIDAD CUALITATIVA","escala cualicuantitativa"]
["EFICIENCIA","COSTO POR INVERS. UNITARIO","um/up",{"$f":"-COSTOS!$F$12*D29/'EF.REF.,RELEV.Y EF.ADIM.'!$H$28","v":{"$error":"#DIV/0!"}},{"$f":"-COSTOS!$F$12*E29/'EF.REF.,RELEV.Y EF.ADIM.'!$J$28","v":{"$error":"#DIV/0!"}},{"$f":"-COSTOS!$F$12*F29/'EF.REF.,RELEV.Y EF.ADIM.'!$L$28","v":{"$error":"#DIV/0!"}},{"$f":"-COSTOS!$F$12*G29/'EF.REF.,RELEV.Y EF.ADIM.'!$N$28","v":{"$error":"#DIV/0!"}},{"$f":"-COSTOS!$F$12*H29/'EF.REF.,RELEV.Y EF.ADIM.'!$P$28","v":{"$error":"#DIV/0!"}}]
["(SF B.3)","COSTO OPERATIVO UNITARIO","um/up",{"$f":"-(COSTOS!$H$22*D29/'EF.REF.,RELEV.Y EF.ADIM.'!$H$28)-COSTOS!$E$32","v":{"$error":"#DIV/0!"}},{"$f":"-(COSTOS!$H$22*E29/'EF.REF.,RELEV.Y EF.ADIM.'!$J$28)-COSTOS!$E$32","v":{"$error":"#DIV/0!"}},{"$f":"-(COSTOS!$H$22*F29/'EF.REF.,RELEV.Y EF.ADIM.'!$L$28)-COSTOS!$E$32","v":{"$error":"#DIV/0!"}},{"$f":"-(COSTOS!$H$22*G29/'EF.REF.,RELEV.Y EF.ADIM.'!$N$28)-COSTOS!$E$32","v":{"$error":"#DIV/0!"}},{"$f":"-(COSTOS!$H$22*H29/'EF.REF.,RELEV.Y EF.ADIM.'!$P$28)-COSTOS!$E$32","v":{"$error":"#DIV/0!"}}]
["PARTICIPACIONES ANUALES DEL FACTOR PRODUCCIÓN",null,null,{"$f":"+('EF.REF.,RELEV.Y EF.ADIM.'!I$15*('EF.REF.,RELEV.Y EF.ADIM.'!$G14*('EF.REF.,RELEV.Y EF.ADIM.'!$H14/'EF.REF.,RELEV.Y EF.ADIM.'!$R14)*(ALT.6!D14/'EF.REF.,RELEV.Y EF.ADIM.'!H14)) +'EF.REF.,RELEV.Y EF.ADIM.'!I$15*('EF.REF.,RELEV.Y EF.ADIM.'!$G15*('EF.REF.,RELEV.Y EF.ADIM.'!$H15/'EF.REF.,RELEV.Y EF.ADIM.'!$R15)*(ALT.6!D15/'EF.REF.,RELEV.Y EF.ADIM.'!H15))+'EF.REF.,RELEV.Y EF.ADIM.'!I$17*('EF.REF.,RELEV.Y EF.ADIM.'!$G17*('EF.REF.,RELEV.Y EF.ADIM.'!$H16/'EF.REF.,RELEV.Y EF.ADIM.'!$R16)*(ALT.6!D16/'EF.REF.,RELEV.Y EF.ADIM.'!H16))+'EF.REF.,RELEV.Y EF.ADIM.'!I$17*('EF.REF.,RELEV.Y EF.ADIM.'!$G19*('EF.REF.,RELEV.Y EF.ADIM.'!$H17/'EF.REF.,RELEV.Y EF.ADIM.'!$R17)*(ALT.6!D17/'EF.REF.,RELEV.Y EF.ADIM.'!H17))+'EF.REF.,RELEV.Y EF.ADIM.'!I$19*('EF.REF.,RELEV.Y EF.ADIM.'!$G14*('EF.REF.,RELEV.Y EF.ADIM.'!$H19/'EF.REF.,RELEV.Y EF.ADIM.'!$R19)*(ALT.6!D18/'EF.REF.,RELEV.Y EF.ADIM.'!H19))+'EF.REF.,RELEV.Y EF.ADIM.'!I$19*('EF.REF.,RELEV.Y EF.ADIM.'!$G20*('EF.REF.,RELEV.Y EF.ADIM.'!$H20/'EF.REF.,RELEV.Y EF.ADIM.'!$R20)*(ALT.6!D19/'EF.REF.,RELEV.Y EF.ADIM.'!H20)))*IF(D$5>$F$31,0,1)*IF($E$2>$H$31,0,1)\n\n+('EF.REF.,RELEV.Y EF.ADIM.'!I$15*('EF.REF.,RELEV.Y EF.ADIM.'!$G14*('EF.REF.,RELEV.Y EF.ADIM.'!$H14/'EF.REF.,RELEV.Y EF.ADIM.'!$R14)*(ALT.6!D14/'EF.REF.,RELEV.Y EF.ADIM.'!H14)) +'EF.REF.,RELEV.Y EF.ADIM.'!I$15*('EF.REF.,RELEV.Y EF.ADIM.'!$G15*('EF.REF.,RELEV.Y EF.ADIM.'!$H15/'EF.REF.,RELEV.Y EF.ADIM.'!$R15)*(ALT.6!D15/'EF.REF.,RELEV.Y EF.ADIM.'!H15))+'EF.REF.,RELEV.Y EF.ADIM.'!I$17*('EF.REF.,RELEV.Y EF.ADIM.'!$G17*('EF.REF.,RELEV.Y EF.ADIM.'!$H16/'EF.REF.,RELEV.Y EF.ADIM.'!$R16)*(ALT.6!D16/'EF.REF.,RELEV.Y EF.ADIM.'!H16))+'EF.REF.,RELEV.Y EF.ADIM.'!I$17*('EF.REF.,RELEV.Y EF.ADIM.'!$G19*('EF.REF.,RELEV.Y EF.ADIM.'!$H17/'EF.REF.,RELEV.Y EF.ADIM.'!$R17)*(ALT.6!D17/'EF.REF.,RELEV.Y EF.ADIM.'!H17))+'EF.REF.,RELEV.Y EF.ADIM.'!I$19*('EF.REF.,RELEV.Y EF.ADIM.'!$G14*('EF.REF.,RELEV.Y EF.ADIM.'!$H19/'EF.REF.,RELEV.Y EF.ADIM.'!$R19)*(ALT.6!D18/'EF.REF.,RELEV.Y EF.ADIM.'!H19))+'EF.REF.,RELEV.Y EF.ADIM.'!I$19*('EF.REF.,RELEV.Y EF.ADIM.'!$G20*('EF.REF.,RELEV.Y EF.ADIM.'!$H20/'EF.REF.,RELEV.Y EF.ADIM.'!$R20)*(ALT.6!D19/'EF.REF.,RELEV.Y EF.ADIM.'!H20)))*IF(D$5>$F$31,0,1)*IF($E$2>$H$31,0,1)","v":{"$error":"#DIV/0!"}},{"$f":"+('EF.REF.,RELEV.Y EF.ADIM.'!K$15*('EF.REF.,RELEV.Y EF.ADIM.'!$G14*('EF.REF.,RELEV.Y EF.ADIM.'!$J14/'EF.REF.,RELEV.Y EF.ADIM.'!$R14)*(ALT.6!E14/'EF.REF.,RELEV.Y EF.ADIM.'!J14)) +'EF.REF.,RELEV.Y EF.ADIM.'!K$15*('EF.REF.,RELEV.Y EF.ADIM.'!$G15*('EF.REF.,RELEV.Y EF.ADIM.'!$J15/'EF.REF.,RELEV.Y EF.ADIM.'!$R15)*(ALT.6!E15/'EF.REF.,RELEV.Y EF.ADIM.'!J15))+'EF.REF.,RELEV.Y EF.ADIM.'!K$17*('EF.REF.,RELEV.Y EF.ADIM.'!$G17*('EF.REF.,RELEV.Y EF.ADIM.'!$J16/'EF.REF.,RELEV.Y EF.ADIM.'!$R16)*(ALT.6!E16/'EF.REF.,RELEV.Y EF.ADIM.'!J16))+'EF.REF.,RELEV.Y EF.ADIM.'!K$17*('EF.REF.,RELEV.Y EF.ADIM.'!$G19*('EF.REF.,RELEV.Y EF.ADIM.'!$J17/'EF.REF.,RELEV.Y EF.ADIM.'!$R17)*(ALT.6!E17/'EF.REF.,RELEV.Y EF.ADIM.'!J17))+'EF.REF.,RELEV.Y EF.ADIM.'!K$19*('EF.REF.,RELEV.Y EF.ADIM.'!$G14*('EF.REF.,RELEV.Y EF.ADIM.'!$J19/'EF.REF.,RELEV.Y EF.ADIM.'!$R19)*(ALT.6!E18/'EF.REF.,RELEV.Y EF.ADIM.'!J19))+'EF.REF.,RELEV.Y EF.ADIM.'!K$19*('EF.REF.,RELEV.Y EF.ADIM.'!$G20*('EF.REF.,RELEV.Y EF.ADIM.'!$J20/'EF.REF.,RELEV.Y EF.ADIM.'!$R20)*(ALT.6!E19/'EF.REF.,RELEV.Y EF.ADIM.'!J20)))*IF(E$5>$F$31,0,1)*IF($E$2>$H$31,0,1)","v":{"$error":"#DIV/0!"}},{"$f":"+('EF.REF.,RELEV.Y EF.ADIM.'!M$15*('EF.REF.,RELEV.Y EF.ADIM.'!$G14*('EF.REF.,RELEV.Y EF.ADIM.'!$L14/'EF.REF.,RELEV.Y EF.ADIM.'!$R14)*(ALT.6!F14/'EF.REF.,RELEV.Y EF.ADIM.'!L14)) +'EF.REF.,RELEV.Y EF.ADIM.'!M$15*('EF.REF.,RELEV.Y EF.ADIM.'!$G15*('EF.REF.,RELEV.Y EF.ADIM.'!$L15/'EF.REF.,RELEV.Y EF.ADIM.'!$R15)*(ALT.6!F15/'EF.REF.,RELEV.Y EF.ADIM.'!L15))+'EF.REF.,RELEV.Y EF.ADIM.'!M$17*('EF.REF.,RELEV.Y EF.ADIM.'!$G17*('EF.REF.,RELEV.Y EF.ADIM.'!$L16/'EF.REF.,RELEV.Y EF.ADIM.'!$R16)*(ALT.6!F16/'EF.REF.,RELEV.Y EF.ADIM.'!L16))+'EF.REF.,RELEV.Y EF.ADIM.'!M$17*('EF.REF.,RELEV.Y EF.ADIM.'!$G19*('EF.REF.,RELEV.Y EF.ADIM.'!$L17/'EF.REF.,RELEV.Y EF.ADIM.'!$R17)*(ALT.6!F17/'EF.REF.,RELEV.Y EF.ADIM.'!L17))+'EF.REF.,RELEV.Y EF.ADIM.'!M$19*('EF.REF.,RELEV.Y EF.ADIM.'!$G14*('EF.REF.,RELEV.Y EF.ADIM.'!$L19/'EF.REF.,RELEV.Y EF.ADIM.'!$R19)*(ALT.6!F18/'EF.REF.,RELEV.Y EF.ADIM.'!L19))+'EF.REF.,RELEV.Y EF.ADIM.'!M$19*('EF.REF.,RELEV.Y EF.ADIM.'!$G20*('EF.REF.,RELEV.Y EF.ADIM.'!$L20/'EF.REF.,RELEV.Y EF.ADIM.'!$R20)*(ALT.6!F19/'EF.REF.,RELEV.Y EF.ADIM.'!L20)))*IF(F$5>$F$31,0,1)*IF($E$2>$H$31,0,1)","v":{"$error":"#DIV/0!"}},{"$f":"+('EF.REF.,RELEV.Y EF.ADIM.'!O$15*('EF.REF.,RELEV.Y EF.ADIM.'!$G14*('EF.REF.,RELEV.Y EF.ADIM.'!$N14/'EF.REF.,RELEV.Y EF.ADIM.'!$R14)*(ALT.6!G14/'EF.REF.,RELEV.Y EF.ADIM.'!N14)) +'EF.REF.,RELEV.Y EF.ADIM.'!O$15*('EF.REF.,RELEV.Y EF.ADIM.'!$G15*('EF.REF.,RELEV.Y EF.ADIM.'!$N15/'EF.REF.,RELEV.Y EF.ADIM.'!$R15)*(ALT.6!G15/'EF.REF.,RELEV.Y EF.ADIM.'!N15))+'EF.REF.,RELEV.Y EF.ADIM.'!O$17*('EF.REF.,RELEV.Y EF.ADIM.'!$G17*('EF.REF.,RELEV.Y EF.ADIM.'!$N16/'EF.REF.,RELEV.Y EF.ADIM.'!$R16)*(ALT.6!G16/'EF.REF.,RELEV.Y EF.ADIM.'!N16))+'EF.REF.,RELEV.Y EF.ADIM.'!O$17*('EF.REF.,RELEV.Y EF.ADIM.'!$G19*('EF.REF.,RELEV.Y EF.ADIM.'!$N17/'EF.REF.,RELEV.Y EF.ADIM.'!$R17)*(ALT.6!G17/'EF.REF.,RELEV.Y EF.ADIM.'!N17))+'EF.REF.,RELEV.Y EF.ADIM.'!O$19*('EF.REF.,RELEV.Y EF.ADIM.'!$G14*('EF.REF.,RELEV.Y EF.ADIM.'!$N19/'EF.REF.,RELEV.Y EF.ADIM.'!$R19)*(ALT.6!G18/'EF.REF.,RELEV.Y EF.ADIM.'!N19))+'EF.REF.,RELEV.Y EF.ADIM.'!O$19*('EF.REF.,RELEV.Y EF.ADIM.'!$G20*('EF.REF.,RELEV.Y EF.ADIM.'!$N20/'EF.REF.,RELEV.Y EF.ADIM.'!$R20)*(ALT.6!G19/'EF.REF.,RELEV.Y EF.ADIM.'!N20)))*IF(G$5>$F$31,0,1)*IF($E$2>$H$31,0,1)","v":{"$error":"#DIV/0!"}},{"$f":"+('EF.REF.,RELEV.Y EF.ADIM.'!Q$15*('EF.REF.,RELEV.Y EF.ADIM.'!$G14*('EF.REF.,RELEV.Y EF.ADIM.'!$P14/'EF.REF.,RELEV.Y EF.ADIM.'!$R14)*(ALT.6!H14/'EF.REF.,RELEV.Y EF.ADIM.'!P14)) +'EF.REF.,RELEV.Y EF.ADIM.'!Q$15*('EF.REF.,RELEV.Y EF.ADIM.'!$G15*('EF.REF.,RELEV.Y EF.ADIM.'!$P15/'EF.REF.,RELEV.Y EF.ADIM.'!$R15)*(ALT.6!H15/'EF.REF.,RELEV.Y EF.ADIM.'!P15))+'EF.REF.,RELEV.Y EF.ADIM.'!Q$17*('EF.REF.,RELEV.Y EF.ADIM.'!$G17*('EF.REF.,RELEV.Y EF.ADIM.'!$P16/'EF.REF.,RELEV.Y EF.ADIM.'!$R16)*(ALT.6!H16/'EF.REF.,RELEV.Y EF.ADIM.'!P16))+'EF.REF.,RELEV.Y EF.ADIM.'!Q$17*('EF.REF.,RELEV.Y EF.ADIM.'!$G19*('EF.REF.,RELEV.Y EF.ADIM.'!$P17/'EF.REF.,RELEV.Y EF.ADIM.'!$R17)*(ALT.6!H17/'EF.REF.,RELEV.Y EF.ADIM.'!P17))+'EF.REF.,RELEV.Y EF.ADIM.'!Q$19*('EF.REF.,RELEV.Y EF.ADIM.'!$G14*('EF.REF.,RELEV.Y EF.ADIM.'!$P19/'EF.REF.,RELEV.Y EF.ADIM.'!$R19)*(ALT.6!H18/'EF.REF.,RELEV.Y EF.ADIM.'!P19))+'EF.REF.,RELEV.Y EF.ADIM.'!Q$19*('EF.REF.,RELEV.Y EF.ADIM.'!$G20*('EF.REF.,RELEV.Y EF.ADIM.'!$P20/'EF.REF.,RELEV.Y EF.ADIM.'!$R20)*(ALT.6!H19/'EF.REF.,RELEV.Y EF.ADIM.'!P20)))*IF(H$5>$F$31,0,1)*IF($E$2>$H$31,0,1)","v":{"$error":"#DIV/0!"}}]
[null,"SSH","escala cualicuantitativa"]
["RIESGO","SSM","escala cualicuantitativa"]
["(SF C.1)","SSGTR","escala cualicuantitativa"]
[null,"ENTORNO DEL SHM","escala cualicuantitativa"]
["INCONFORT       (SF C.2)","SSH","escala cualicuantitativa"]
[null,"SSGTR","escala cualicuantitativa"]
[null,"ENTORNO DEL SHM","escala cualicuantitativa"]
["PARTICIPACIONES ANUALES DEL FACTOR PROTECCIÓN",null,null,{"$f":"+('EF.REF.,RELEV.Y EF.ADIM.'!I$22*('EF.REF.,RELEV.Y EF.ADIM.'!$G21*('EF.REF.,RELEV.Y EF.ADIM.'!$H21/'EF.REF.,RELEV.Y EF.ADIM.'!$R21)*(ALT.6!D21/'EF.REF.,RELEV.Y EF.ADIM.'!H21)) +'EF.REF.,RELEV.Y EF.ADIM.'!I$22*('EF.REF.,RELEV.Y EF.ADIM.'!$G22*('EF.REF.,RELEV.Y EF.ADIM.'!$H22/'EF.REF.,RELEV.Y EF.ADIM.'!$R22)*(ALT.6!D22/'EF.REF.,RELEV.Y EF.ADIM.'!H22))+'EF.REF.,RELEV.Y EF.ADIM.'!I$22*('EF.REF.,RELEV.Y EF.ADIM.'!$G23*('EF.REF.,RELEV.Y EF.ADIM.'!$H23/'EF.REF.,RELEV.Y EF.ADIM.'!$R23)*(ALT.6!D23/'EF.REF.,RELEV.Y EF.ADIM.'!H23))+'EF.REF.,RELEV.Y EF.ADIM.'!I$22*('EF.REF.,RELEV.Y EF.ADIM.'!$G24*('EF.REF.,RELEV.Y EF.ADIM.'!$H24/'EF.REF.,RELEV.Y EF.ADIM.'!$R24)*(ALT.6!D24/'EF.REF.,RELEV.Y EF.ADIM.'!H24))+'EF.REF.,RELEV.Y EF.ADIM.'!I$26*('EF.REF.,RELEV.Y EF.ADIM.'!$G25*('EF.REF.,RELEV.Y EF.ADIM.'!$H25/'EF.REF.,RELEV.Y EF.ADIM.'!$R25)*(ALT.6!D25/'EF.REF.,RELEV.Y EF.ADIM.'!H25))+'EF.REF.,RELEV.Y EF.ADIM.'!I$26*('EF.REF.,RELEV.Y EF.ADIM.'!$G26*('EF.REF.,RELEV.Y EF.ADIM.'!$H26/'EF.REF.,RELEV.Y EF.ADIM.'!$R26)*(ALT.6!D26/'EF.REF.,RELEV.Y EF.ADIM.'!H26))+'EF.REF.,RELEV.Y EF.ADIM.'!I$26*('EF.REF.,RELEV.Y EF.ADIM.'!$G27*('EF.REF.,RELEV.Y EF.ADIM.'!$H27/'EF.REF.,RELEV.Y EF.ADIM.'!$R27)*(ALT.6!D26/'EF.REF.,RELEV.Y EF.ADIM.'!H27)))*IF(D$5>$F$31,0,1)*IF($E$2>$H$31,0,1)","v":{"$error":"#DIV/0!"}},{"$f":"+('EF.REF.,RELEV.Y EF.ADIM.'!K$22*('EF.REF.,RELEV.Y EF.ADIM.'!$G21*('EF.REF.,RELEV.Y EF.ADIM.'!$J21/'EF.REF.,RELEV.Y EF.ADIM.'!$R21)*(ALT.6!E21/'EF.REF.,RELEV.Y EF.ADIM.'!J21)) +'EF.REF.,RELEV.Y EF.ADIM.'!K$22*('EF.REF.,RELEV.Y EF.ADIM.'!$G22*('EF.REF.,RELEV.Y EF.ADIM.'!$J22/'EF.REF.,RELEV.Y EF.ADIM.'!$R22)*(ALT.6!E22/'EF.REF.,RELEV.Y EF.ADIM.'!J22))+'EF.REF.,RELEV.Y EF.ADIM.'!K$22*('EF.REF.,RELEV.Y EF.ADIM.'!$G23*('EF.REF.,RELEV.Y EF.ADIM.'!$J23/'EF.REF.,RELEV.Y EF.ADIM.'!$R23)*(ALT.6!E23/'EF.REF.,RELEV.Y EF.ADIM.'!J23))+'EF.REF.,RELEV.Y EF.ADIM.'!K$22*('EF.REF.,RELEV.Y EF.ADIM.'!$G24*('EF.REF.,RELEV.Y EF.ADIM.'!$J24/'EF.REF.,RELEV.Y EF.ADIM.'!$R24)*(ALT.6!E24/'EF.REF.,RELEV.Y EF.ADIM.'!J24))+'EF.REF.,RELEV.Y EF.ADIM.'!K$26*('EF.REF.,RELEV.Y EF.ADIM.'!$G25*('EF.REF.,RELEV.Y EF.ADIM.'!$J25/'EF.REF.,RELEV.Y EF.ADIM.'!$R25)*(ALT.6!E25/'EF.REF.,RELEV.Y EF.ADIM.'!J25))+'EF.REF.,RELEV.Y EF.ADIM.'!K$26*('EF.REF.,RELEV.Y EF.ADIM.'!$G26*('EF.REF.,RELEV.Y EF.ADIM.'!$J26/'EF.REF.,RELEV.Y EF.ADIM.'!$R26)*(ALT.6!E26/'EF.REF.,RELEV.Y EF.ADIM.'!J26))+'EF.REF.,RELEV.Y EF.ADIM.'!K$26*('EF.REF.,RELEV.Y EF.ADIM.'!$G27*('EF.REF.,RELEV.Y EF.ADIM.'!$J27/'EF.REF.,RELEV.Y EF.ADIM.'!$R27)*(ALT.6!E26/'EF.REF.,RELEV.Y EF.ADIM.'!J27)))*IF(E$5>$F$31,0,1)*IF($E$2>$H$31,0,1)","v":{"$error":"#DIV/0!"}},{"$f":"+('EF.REF.,RELEV.Y EF.ADIM.'!M$22*('EF.REF.,RELEV.Y EF.ADIM.'!$G21*('EF.REF.,RELEV.Y EF.ADIM.'!$L21/'EF.REF.,RELEV.Y EF.ADIM.'!$R21)*(ALT.6!F21/'EF.REF.,RELEV.Y EF.ADIM.'!L21)) +'EF.REF.,RELEV.Y EF.ADIM.'!M$22*('EF.REF.,RELEV.Y EF.ADIM.'!$G22*('EF.REF.,RELEV.Y EF.ADIM.'!$L22/'EF.REF.,RELEV.Y EF.ADIM.'!$R22)*(ALT.6!F22/'EF.REF.,RELEV.Y EF.ADIM.'!L22))+'EF.REF.,RELEV.Y EF.ADIM.'!M$22*('EF.REF.,RELEV.Y EF.ADIM.'!$G23*('EF.REF.,RELEV.Y EF.ADIM.'!$L23/'EF.REF.,RELEV.Y EF.ADIM.'!$R23)*(ALT.6!F23/'EF.REF.,RELEV.Y EF.ADIM.'!L23))+'EF.REF.,RELEV.Y EF.ADIM.'!M$22*('EF.REF.,RELEV.Y EF.ADIM.'!$G24*('EF.REF.,RELEV.Y EF.ADIM.'!$L24/'EF.REF.,RELEV.Y EF.ADIM.'!$R24)*(ALT.6!F24/'EF.REF.,RELEV.Y EF.ADIM.'!L24))+'EF.REF.,RELEV.Y EF.ADIM.'!M$26*('EF.REF.,RELEV.Y EF.ADIM.'!$G25*('EF.REF.,RELEV.Y EF.ADIM.'!$L25/'EF.REF.,RELEV.Y EF.ADIM.'!$R25)*(ALT.6!F25/'EF.REF.,RELEV.Y EF.ADIM.'!L25))+'EF.REF.,RELEV.Y EF.ADIM.'!M$26*('EF.REF.,RELEV.Y EF.ADIM.'!$G26*('EF.REF.,RELEV.Y EF.ADIM.'!$L26/'EF.REF.,RELEV.Y EF.ADIM.'!$R26)*(ALT.6!F26/'EF.REF.,RELEV.Y EF.ADIM.'!L26))+'EF.REF.,RELEV.Y EF.ADIM.'!M$26*('EF.REF.,RELEV.Y EF.ADIM.'!$G27*('EF.REF.,RELEV.Y EF.ADIM.'!$L27/'EF.REF.,RELEV.Y EF.ADIM.'!$R27)*(ALT.6!F26/'EF.REF.,RELEV.Y EF.ADIM.'!L27)))*IF(F$5>$F$31,0,1)*IF($E$2>$H$31,0,1)","v":{"$error":"#DIV/0!"}},{"$f":"+('EF.REF.,RELEV.Y EF.ADIM.'!O$22*('EF.REF.,RELEV.Y EF.ADIM.'!$G21*('EF.REF.,RELEV.Y EF.ADIM.'!$N21/'EF.REF.,RELEV.Y EF.ADIM.'!$R21)*(ALT.6!G21/'EF.REF.,RELEV.Y EF.ADIM.'!N21)) +'EF.REF.,RELEV.Y EF.ADIM.'!O$22*('EF.REF.,RELEV.Y EF.ADIM.'!$G22*('EF.REF.,RELEV.Y EF.ADIM.'!$N22/'EF.REF.,RELEV.Y EF.ADIM.'!$R22)*(ALT.6!G22/'EF.REF.,RELEV.Y EF.ADIM.'!N22))+'EF.REF.,RELEV.Y EF.ADIM.'!O$22*('EF.REF.,RELEV.Y EF.ADIM.'!$G23*('EF.REF.,RELEV.Y EF.ADIM.'!$N23/'EF.REF.,RELEV.Y EF.ADIM.'!$R23)*(ALT.6!G23/'EF.REF.,RELEV.Y EF.ADIM.'!N23))+'EF.REF.,RELEV.Y EF.ADIM.'!O$22*('EF.REF.,RELEV.Y EF.ADIM.'!$G24*('EF.REF.,RELEV.Y EF.ADIM.'!$N24/'EF.REF.,RELEV.Y EF.ADIM.'!$R24)*(ALT.6!G24/'EF.REF.,RELEV.Y EF.ADIM.'!N24))+'EF.REF.,RELEV.Y EF.ADIM.'!O$26*('EF.REF.,RELEV.Y EF.ADIM.'!$G25*('EF.REF.,RELEV.Y EF.ADIM.'!$N25/'EF.REF.,RELEV.Y EF.ADIM.'!$R25)*(ALT.6!G25/'EF.REF.,RELEV.Y EF.ADIM.'!N25))+'EF.REF.,RELEV.Y EF.ADIM.'!O$26*('EF.REF.,RELEV.Y EF.ADIM.'!$G26*('EF.REF.,RELEV.Y EF.ADIM.'!$N26/'EF.REF.,RELEV.Y EF.ADIM.'!$R26)*(ALT.6!G26/'EF.REF.,RELEV.Y EF.ADIM.'!N26))+'EF.REF.,RELEV.Y EF.ADIM.'!O$26*('EF.REF.,RELEV.Y EF.ADIM.'!$G27*('EF.REF.,RELEV.Y EF.ADIM.'!$N27/'EF.REF.,RELEV.Y EF.ADIM.'!$R27)*(ALT.6!G26/'EF.REF.,RELEV.Y EF.ADIM.'!N27)))*IF(G$5>$F$31,0,1)*IF($E$2>$H$31,0,1)","v":{"$error":"#DIV/0!"}},{"$f":"+('EF.REF.,RELEV.Y EF.ADIM.'!Q$22*('EF.REF.,RELEV.Y EF.ADIM.'!$G21*('EF.REF.,RELEV.Y EF.ADIM.'!$P21/'EF.REF.,RELEV.Y EF.ADIM.'!$R21)*(ALT.6!H21/'EF.REF.,RELEV.Y EF.ADIM.'!P21)) +'EF.REF.,RELEV.Y EF.ADIM.'!Q$22*('EF.REF.,RELEV.Y EF.ADIM.'!$G22*('EF.REF.,RELEV.Y EF.ADIM.'!$P22/'EF.REF.,RELEV.Y EF.ADIM.'!$R22)*(ALT.6!H22/'EF.REF.,RELEV.Y EF.ADIM.'!P22))+'EF.REF.,RELEV.Y EF.ADIM.'!Q$22*('EF.REF.,RELEV.Y EF.ADIM.'!$G23*('EF.REF.,RELEV.Y EF.ADIM.'!$P23/'EF.REF.,RELEV.Y EF.ADIM.'!$R23)*(ALT.6!H23/'EF.REF.,RELEV.Y EF.ADIM.'!P23))+'EF.REF.,RELEV.Y EF.ADIM.'!Q$22*('EF.REF.,RELEV.Y EF.ADIM.'!$G24*('EF.REF.,RELEV.Y EF.ADIM.'!$P24/'EF.REF.,RELEV.Y EF.ADIM.'!$R24)*(ALT.6!H24/'EF.REF.,RELEV.Y EF.ADIM.'!P24))+'EF.REF.,RELEV.Y EF.ADIM.'!Q$26*('EF.REF.,RELEV.Y EF.ADIM.'!$G25*('EF.REF.,RELEV.Y EF.ADIM.'!$P25/'EF.REF.,RELEV.Y EF.ADIM.'!$R25)*(ALT.6!H25/'EF.REF.,RELEV.Y EF.ADIM.'!P25))+'EF.REF.,RELEV.Y EF.ADIM.'!Q$26*('EF.REF.,RELEV.Y EF.ADIM.'!$G26*('EF.REF.,RELEV.Y EF.ADIM.'!$P26/'EF.REF.,RELEV.Y EF.ADIM.'!$R26)*(ALT.6!H26/'EF.REF.,RELEV.Y EF.ADIM.'!P26))+'EF.REF.,RELEV.Y EF.ADIM.'!Q$26*('EF.REF.,RELEV.Y EF.ADIM.'!$G27*('EF.REF.,RELEV.Y EF.ADIM.'!$P27/'EF.REF.,RELEV.Y EF.ADIM.'!$R27)*(ALT.6!H26/'EF.REF.,RELEV.Y EF.ADIM.'!P27)))*IF(H$5>$F$31,0,1)*IF($E$2>$H$31,0,1)","v":{"$error":"#DIV/0!"}}]
["NÚMERO TOTAL DE SHM",null,"pu",{"$f":"+IF(D13<'EF.REF.,RELEV.Y EF.ADIM.'!$H$28,INT('EF.REF.,RELEV.Y EF.ADIM.'!$H$28/D13+0.9999),1)","v":1},{"$f":"+IF(E13<'EF.REF.,RELEV.Y EF.ADIM.'!$J$28,INT('EF.REF.,RELEV.Y EF.ADIM.'!$J$28/E13+0.9999),1)","v":1},{"$f":"+IF(F13<'EF.REF.,RELEV.Y EF.ADIM.'!$L$28,INT('EF.REF.,RELEV.Y EF.ADIM.'!$L$28/F13+0.9999),1)","v":1},{"$f":"+IF(G13<'EF.REF.,RELEV.Y EF.ADIM.'!$N$28,INT('EF.REF.,RELEV.Y EF.ADIM.'!$N$28/G13+0.9999),1)","v":1},{"$f":"+IF(H13<'EF.REF.,RELEV.Y EF.ADIM.'!$P$28,INT('EF.REF.,RELEV.Y EF.ADIM.'!$P$28/H13+0.9999),1)","v":1}]
["   ANUALIDADES RELATIVAS DE CONVENIENCIA ACTUALIZADAS",null,null,{"$f":"+D12+D20+D28","v":{"$error":"#DIV/0!"}},{"$f":"+E12+E20+E28","v":{"$error":"#DIV/0!"}},{"$error":"#VALUE!"},{"$error":"#DIV/0!"},{"$error":"#DIV/0!"}]
["   INDICE RELATIVO DE CONVENIENCIA ALTERNATIVA 6",null,null,{"$f":"+IF($E$2<>\"VACÍA\",($D$30+$E$30+$F$30+G30+H30),-999999)","v":-999999},"Nº DE AÑOS",{"$f":"+'EF.REF.,RELEV.Y EF.ADIM.'!$L$5","v":1},"Nª DE ALTS",{"$f":"+'EF.REF.,RELEV.Y EF.ADIM.'!$Q$5","v":1}]

{"sheet":"RESULTADOS","index":10,"n_rows":11,"n_cols":3,"rows_kept":11,"cut":false,"hidden":false,"merged":[[3,0,3,2],[0,1,0,2],[1,0,2,0],[1,1,2,2]]}
["i","    programa evalerg AdEA"]
["DENOM. DE LA EVALUACIÓN:",{"$f":"+'EF.REF.,RELEV.Y EF.ADIM.'!E2","v":0}]
[]
["RESULTADOS DE LA EVALUACION MULTIDIMENSIONAL                                                                                DE CONVENIENCIA POR ORDEN DE ALTERNATIVA"]
["ALTERNATIVA Nº","DENOMINACIÓN DE LA ALTERNATIVA ","INDICE RELATIVO     DE CONVENIENCIA"]
[1,{"$f":"+ALT.1!G2","v":"Escribir denominación alternativa 1"},{"$f":"+ALT.1!D31","v":{"$error":"#DIV/0!"}}]
[2,{"$f":"ALT.2!G2","v":"Escribir denominación alternativa 2"},{"$f":"+ALT.2!D31","v":-999999}]
[3,{"$f":"ALT.3!G2","v":"Escribir denominación alternativa 3"},{"$f":"+ALT.3!D31","v":-999999}]
[4,{"$f":"ALT.4!G2","v":"Escribir denominación alternativa 4"},{"$f":"+ALT.4!D31","v":-999999}]
[5,{"$f":"ALT.5!G2","v":"Escribir denominación alternativa 5"},{"$f":"+ALT.5!D31","v":-999999}]
[6,{"$f":"ALT.6!G2","v":"Escribir denominación alternativa 6"},{"$f":"+ALT.6!D31","v":-999999}]

{"sheet":"RANKING","index":11,"n_rows":19,"n_cols":4,"rows_kept":19,"cut":false,"hidden":false,"merged":[[7,0,10,3],[4,1,6,3],[4,0,6,0],[2,0,3,0],[0,0,1,3],[2,1,3,3]]}
["       programa evalerg    "]
[]
["DENOM. DE LA EVALUACION:",{"$f":"+'EF.REF.,RELEV.Y EF.ADIM.'!E2","v":0}]
[]
["i","PLANILLA AUXILIAR PARA ORDENAR LOS INDICES PARCIALES DE CONVENIENCIA DE LAS ALTERNATIVAS"]
[]
[]
["Para ordenar los índices de conveniencia en sentido decreciente simplemente haga \"Control + o\" o apriete el botón ordenar. En la cuarta columna a la derecha aparecerán las diferencias porcentuales entre la alternativa de arriba y la alternativa de la fila, referidas a la alternativa de arriba."]
[]
[]
[]
["ALTERNATIVA Nº","DENOMINACIÓN DE LA ALTERNATIVA ","INDICES RELATIVOS DE CONVENIENCIA","DIFERENCIAS PORCENTUALES"]
[1,{"$f":"+RESULTADOS!B6","v":"Escribir denominación alternativa 1"},{"$f":"+RESULTADOS!C6","v":{"$error":"#DIV/0!"}},"* * *"]
[3,{"$f":"+RESULTADOS!B8","v":"Escribir denominación alternativa 3"},{"$f":"+RESULTADOS!C8","v":-999999},{"$f":"+IF(A14>$D$19,-999999,(C$13-C14)*100/C$13)","v":-999999}]
[2,{"$f":"+RESULTADOS!B7","v":"Escribir denominación alternativa 2"},{"$f":"+RESULTADOS!C7","v":-999999},{"$f":"+IF(A15>$D$19,-999999,(C$13-C15)*100/C$13)","v":-999999}]
[4,{"$f":"+RESULTADOS!B9","v":"Escribir denominación alternativa 4"},{"$f":"+RESULTADOS!C9","v":-999999},{"$f":"+IF(A16>$D$19,-999999,(C$13-C16)*100/C$13)","v":-999999}]
[5,{"$f":"+RESULTADOS!B10","v":"Escribir denominación alternativa 5"},{"$f":"+RESULTADOS!C10","v":-999999},{"$f":"+IF(A17>$D$19,-999999,(C$13-C17)*100/C$13)","v":-999999}]
[6,{"$f":"+RESULTADOS!B11","v":"Escribir denominación alternativa 6"},{"$f":"+RESULTADOS!C11","v":-999999},{"$f":"+IF(A18>$D$19,-999999,(C$13-C18)*100/C$13)","v":-999999}]
[null,null,"Nª DE ALTERNS.",{"$f":"+'EF.REF.,RELEV.Y EF.ADIM.'!$Q$5","v":1}]

{"sheet":"IMPRIMIR","index":12,"n_rows":29,"n_cols":8,"rows_kept":29,"cut":false,"hidden":false,"merged":[[8,1,8,3],[1,7,4,7],[15,1,16,5],[25,0,26,0],[25,1,26,5],[15,0,16,0],[17,0,18,0],[17,1,18,5],[19,0,20,0],[19,1,20,5],[28,0,46,5],[27,0,27,5],[21,0,22,0],[21,1,22,5],[23,0,24,0],[23,1,24,5],[0,1,0,5],[14,0,14,5],[1,0,1,5],[2,0,2,1],[2,2,2,5],[3,0,3,1],[3,3,3,4],[9,1,9,3],[4,1,4,3],[11,1,11,3],[13,1,13,3],[10,1,10,3],[12,1,12,3],[5,1,5,3],[6,0,6,5],[7,1,7,3]]}
["i","PLANILLA PARA IMPRIMIR EN PAPEL",null,null,null,null,null,"ATENCIÓN"]
["programa evalerg   ",null,null,null,null,null,null,"Antes de imprimir debe llenar las celdas correspondientes a la EMPRESA, al ANALISTA, a la FECHA DE EVALUACIÓN y eventualmente a las OBSERVACIONES"]
["DENOMINAC. DE LA EVALUACIÓN",null,{"$f":"+'EF.REF.,RELEV.Y EF.ADIM.'!E2","v":0}]
["NÚMERO DE AÑOS",null,{"$f":"+'EF.REF.,RELEV.Y EF.ADIM.'!L5","v":1},"NÚMERO DE ALTERNATIVAS",null,{"$f":"+'EF.REF.,RELEV.Y EF.ADIM.'!Q5","v":1}]
["EMPRESA","{ NOMBRE O RAZÓN SOCIAL }",null,null,"FECHA REFERENCIA",{"$f":"+'EF.REF.,RELEV.Y EF.ADIM.'!T2","v":"00:00:00"}]
["ANALISTA","{ NOMBRE ANALISTA }",null,null,"FECHA EVALUACIÓN","2017-03-21"]
["RANKING DE LAS ALTERNATIVAS ERGONÓMICAS EVALUADAS"]
["ALTERNATIVA             Nº","DENOMINACIÓN DE LA ALTERNATIVA",null,null,"ÍNDICES RELATIVOS DE CONVENIENCIA","DIFERENCIAS PORCENTUALES"]
[{"$f":"+RANKING!A13","v":1},{"$f":"+IF(A9>$F$4,0,RANKING!B13)","v":"Escribir denominación alternativa 1"},null,null,{"$f":"+RANKING!C13","v":{"$error":"#DIV/0!"}},{"$f":"+RANKING!D13","v":"* * *"}]
[{"$f":"+RANKING!A14","v":3},{"$f":"+IF(A10>$F$4,0,RANKING!B14)","v":0},null,null,{"$f":"+RANKING!C14","v":-999999},{"$f":"+RANKING!D14","v":-999999}]
[{"$f":"+RANKING!A15","v":2},{"$f":"+IF(A11>$F$4,0,RANKING!B15)","v":0},null,null,{"$f":"+RANKING!C15","v":-999999},{"$f":"+RANKING!D15","v":-999999}]
[{"$f":"+RANKING!A16","v":4},{"$f":"+IF(A12>$F$4,0,RANKING!B16)","v":0},null,null,{"$f":"+RANKING!C16","v":-999999},{"$f":"+RANKING!D16","v":-999999}]
[{"$f":"+RANKING!A17","v":5},{"$f":"+IF(A13>$F$4,0,RANKING!B17)","v":0},null,null,{"$f":"+RANKING!C17","v":-999999},{"$f":"+RANKING!D17","v":-999999}]
[{"$f":"+RANKING!A18","v":6},{"$f":"+IF(A14>$F$4,0,RANKING!B18)","v":0},null,null,{"$f":"+RANKING!C18","v":-999999},{"$f":"+RANKING!D18","v":-999999}]
["DESCRIPCIONES DE LAS ALTERNATIVAS ERGONÓMICAS"]
[1,{"$f":"+ALT.1!C4","v":0}]
[]
[2,{"$f":"+ALT.2!C4","v":0}]
[]
[3,{"$f":"+ALT.3!C4","v":0}]
[]
[4,{"$f":"+ALT.4!C4","v":0}]
[]
[5,{"$f":"+ALT.5!C4","v":0}]
[]
[6,{"$f":"+ALT.6!C4","v":0}]
[]
["OBSERVACIONES"]
["Aquí se escriben las observaciones"]